Body Name,Date Paid,Transaction Number,Amount,Supplier Name,Supplier Type ,Expense Area ,Cost Centre Description ,Expense Type
Cambridgeshire County Council,11-Apr-19,51300852485,"-389,787.15",TOTAL GAS AND POWER,TRADE SUPPLIER,Control Accounts,Control Accounts - Payables,Electricity
Cambridgeshire County Council,05-Apr-19,51300806461,"-163,055.16",THE SHIRES SCHOOL,EDUCATION,SEN Placements,Placements - Education,Other Recharged Income
Cambridgeshire County Council,29-Apr-19,51300895210,"-137,773.55",LGSS LAW LTD,TRADE SUPPLIER,Control Accounts,Suspense Account - General,External Legal Fees
Cambridgeshire County Council,08-Apr-19,51300809976,"-134,669.81",MOTT MACDONALD LTD,TRADE SUPPLIER,GCP - West of Cambridge Package,GCP - West of Cambridge Package,Construction - External Professional Fees
Cambridgeshire County Council,23-Apr-19,51300810430,"-40,753.76",A2B BUS & COACH LTD,TRADE SUPPLIER,Passenger Transport other,Tendered Bus Costs,Support - subsidised bus routes
Cambridgeshire County Council,11-Apr-19,51300853101,"-38,763.75",AGE UK CAMBRIDGESHIRE,CHARITY,Central Commissioning - Adults,OP Blocks and Grants,Grants to Voluntary Bodies
Cambridgeshire County Council,05-Apr-19,51300753621,"-33,728.57",BARCHESTER HEALTHCARE,CARE ESTABLISHMENT,OP - City & South Locality,Older People - City & South,Nursing Care
Cambridgeshire County Council,01-Apr-19,51300842473,"-24,000.00",W S ATKINS (SERVICES) LTD,COMPANY,GCP - City Centre Access,City Access - Demand Management,Consultancy
Cambridgeshire County Council,03-Apr-19,51300844028,"-21,071.46",LGSS LAW LTD,TRADE SUPPLIER,Legal Proceedings,Legal Proceedings,External Legal Fees
Cambridgeshire County Council,15-Apr-19,51300861264,"-14,586.00",W S ATKINS (SERVICES) LTD,COMPANY,Combined Authority Schemes,Combined Authority Schemes,Construction - External Professional Fees
Cambridgeshire County Council,26-Apr-19,51300682477,"-14,040.00",THE BEECHES UK LIMITED,CARE ESTABLISHMENT,LAC Placements,Placements - supported accommodation,Agency Placements - In County
Cambridgeshire County Council,29-Apr-19,51300895213,"-12,899.04",LGSS LAW LTD,TRADE SUPPLIER,Control Accounts,Suspense Account - General,External Legal Fees
Cambridgeshire County Council,25-Apr-19,51300869310,"-11,284.00",BUCHAN HEALTHCARE LTD,CARE ESTABLISHMENT,OP - City & South Blocks,City and South - Long term blocks,Nursing Care
Cambridgeshire County Council,25-Apr-19,51300869310,"-11,284.00",BUCHAN HEALTHCARE LTD,CARE ESTABLISHMENT,OP - City & South Blocks,City and South - Long term blocks,Nursing Care
Cambridgeshire County Council,24-Apr-19,51300868612,"-11,000.00",New Horizons (Childcare) Group Ltd,CARE ESTABLISHMENT,LAC Placements,Placements - residential homes,Agency Placements - Out of  County
Cambridgeshire County Council,25-Apr-19,51300869310,"-10,478.00",BUCHAN HEALTHCARE LTD,CARE ESTABLISHMENT,OP - City & South Blocks,City and South - Long term blocks,Nursing Care
Cambridgeshire County Council,25-Apr-19,51300869310,"-10,478.00",BUCHAN HEALTHCARE LTD,CARE ESTABLISHMENT,OP - City & South Blocks,City and South - Long term blocks,Nursing Care
Cambridgeshire County Council,25-Apr-19,51300869310,"-10,478.00",BUCHAN HEALTHCARE LTD,CARE ESTABLISHMENT,OP - City & South Blocks,City and South - Long term blocks,Nursing Care
Cambridgeshire County Council,15-Apr-19,51300786222,"-10,378.13",MOTT MACDONALD LTD,TRADE SUPPLIER,GCP - Cambourne to Cambridge (A428),GCP - Cambourne to Cambridge (A428),Construction - External Professional Fees
Cambridgeshire County Council,25-Apr-19,51300869310,"-9,704.00",BUCHAN HEALTHCARE LTD,CARE ESTABLISHMENT,OP - City & South Blocks,City and South - Long term blocks,Nursing Care
Cambridgeshire County Council,25-Apr-19,51300869310,"-9,072.00",BUCHAN HEALTHCARE LTD,CARE ESTABLISHMENT,OP - City & South Blocks,City and South - Long term blocks,Nursing Care
Cambridgeshire County Council,25-Apr-19,51300869310,"-9,072.00",BUCHAN HEALTHCARE LTD,CARE ESTABLISHMENT,OP - City & South Blocks,City and South - Long term blocks,Nursing Care
Cambridgeshire County Council,25-Apr-19,51300869310,"-9,072.00",BUCHAN HEALTHCARE LTD,CARE ESTABLISHMENT,OP - City & South Blocks,City and South - Long term blocks,Nursing Care
Cambridgeshire County Council,25-Apr-19,51300869310,"-9,072.00",BUCHAN HEALTHCARE LTD,CARE ESTABLISHMENT,OP - City & South Blocks,City and South - Long term blocks,Nursing Care
Cambridgeshire County Council,25-Apr-19,51300869310,"-9,072.00",BUCHAN HEALTHCARE LTD,CARE ESTABLISHMENT,OP - City & South Blocks,City and South - Long term blocks,Nursing Care
Cambridgeshire County Council,25-Apr-19,51300869310,"-9,072.00",BUCHAN HEALTHCARE LTD,CARE ESTABLISHMENT,OP - City & South Blocks,City and South - Long term blocks,Nursing Care
Cambridgeshire County Council,25-Apr-19,51300869310,"-9,072.00",BUCHAN HEALTHCARE LTD,CARE ESTABLISHMENT,OP - City & South Blocks,City and South - Long term blocks,Nursing Care
Cambridgeshire County Council,25-Apr-19,51300869310,"-9,072.00",BUCHAN HEALTHCARE LTD,CARE ESTABLISHMENT,OP - City & South Blocks,City and South - Long term blocks,Nursing Care
Cambridgeshire County Council,25-Apr-19,51300869310,"-9,072.00",BUCHAN HEALTHCARE LTD,CARE ESTABLISHMENT,OP - City & South Blocks,City and South - Long term blocks,Nursing Care
Cambridgeshire County Council,25-Apr-19,51300869310,"-9,072.00",BUCHAN HEALTHCARE LTD,CARE ESTABLISHMENT,OP - City & South Blocks,City and South - Long term blocks,Nursing Care
Cambridgeshire County Council,25-Apr-19,51300869310,"-9,072.00",BUCHAN HEALTHCARE LTD,CARE ESTABLISHMENT,OP - City & South Blocks,City and South - Long term blocks,Nursing Care
Cambridgeshire County Council,25-Apr-19,51300869310,"-9,072.00",BUCHAN HEALTHCARE LTD,CARE ESTABLISHMENT,OP - City & South Blocks,City and South - Long term blocks,Nursing Care
Cambridgeshire County Council,25-Apr-19,51300869310,"-8,981.14",BUCHAN HEALTHCARE LTD,CARE ESTABLISHMENT,OP - City & South Blocks,City and South - Long term blocks,Nursing Care
Cambridgeshire County Council,25-Apr-19,51300869310,"-8,060.00",BUCHAN HEALTHCARE LTD,CARE ESTABLISHMENT,OP - City & South Blocks,City and South - Long term blocks,Nursing Care
Cambridgeshire County Council,03-Apr-19,51300843338,"-7,470.96",LGSS LAW LTD,TRADE SUPPLIER,Strategic Management - Adults,Service Director - OP and MH,External Legal Fees
Cambridgeshire County Council,17-Apr-19,51300861740,"-7,059.76",AXIOM HOUSING ASSOCIATION LTD,CARE ESTABLISHMENT,Unaccompanied Asylum Seeking Children,Unaccompanied Asylum Seeking Children >18 Leaving Care,Living Spport Grants - Financial Assistance 18+
Cambridgeshire County Council,25-Apr-19,51300837294,"-6,761.00",Glebe Farm,COMPANY,LD - Hunts Locality,LD - Huntigndonshire  - Special Needs,Residential Care
Cambridgeshire County Council,25-Apr-19,51300869310,"-5,526.86",BUCHAN HEALTHCARE LTD,CARE ESTABLISHMENT,OP - City & South Blocks,City and South - Long term blocks,Nursing Care
Cambridgeshire County Council,01-Apr-19,51300509068,"-5,509.50",KIRKSTONE HOUSE SCHOOL,EDUCATION,Control Accounts,Control Accounts - Payables,Migration Only - Marked as Do Not Use
Cambridgeshire County Council,01-Apr-19,51300509066,"-5,509.50",KIRKSTONE HOUSE SCHOOL,EDUCATION,Control Accounts,Control Accounts - Payables,Migration Only - Marked as Do Not Use
Cambridgeshire County Council,25-Apr-19,51300867976,"-4,655.00",Accomplish Group Support Limited,CARE ESTABLISHMENT,LD - Hunts Locality,LD - Huntigndonshire  - Special Needs,Rehabilitation And Respite Care
Cambridgeshire County Council,25-Apr-19,51300859656,"-4,655.00",Accomplish Group Support Limited,CARE ESTABLISHMENT,LD - Hunts Locality,LD - Huntigndonshire  - Special Needs,Rehabilitation And Respite Care
Cambridgeshire County Council,25-Apr-19,51300867978,"-4,655.00",Accomplish Group Support Limited,CARE ESTABLISHMENT,LD - Hunts Locality,LD - Huntigndonshire  - Special Needs,Rehabilitation And Respite Care
Cambridgeshire County Council,25-Apr-19,51300851340,"-4,655.00",Accomplish Group Support Limited,CARE ESTABLISHMENT,LD - Hunts Locality,LD - Huntigndonshire  - Special Needs,Rehabilitation And Respite Care
Cambridgeshire County Council,25-Apr-19,51300892210,"-4,655.00",Accomplish Group Support Limited,CARE ESTABLISHMENT,LD - Hunts Locality,LD - Huntigndonshire  - Special Needs,Rehabilitation And Respite Care
Cambridgeshire County Council,25-Apr-19,51300851342,"-4,655.00",Accomplish Group Support Limited,CARE ESTABLISHMENT,LD - Hunts Locality,LD - Huntigndonshire  - Special Needs,Rehabilitation And Respite Care
Cambridgeshire County Council,25-Apr-19,51300859648,"-4,655.00",Accomplish Group Support Limited,CARE ESTABLISHMENT,LD - Hunts Locality,LD - Huntigndonshire  - Special Needs,Rehabilitation And Respite Care
Cambridgeshire County Council,25-Apr-19,51300867974,"-4,655.00",Accomplish Group Support Limited,CARE ESTABLISHMENT,LD - Hunts Locality,LD - Huntigndonshire  - Special Needs,Rehabilitation And Respite Care
Cambridgeshire County Council,25-Apr-19,51300840825,"-4,655.00",Accomplish Group Support Limited,CARE ESTABLISHMENT,LD - Hunts Locality,LD - Huntigndonshire  - Special Needs,Rehabilitation And Respite Care
Cambridgeshire County Council,25-Apr-19,51300840821,"-4,655.00",Accomplish Group Support Limited,CARE ESTABLISHMENT,LD - Hunts Locality,LD - Huntigndonshire  - Special Needs,Rehabilitation And Respite Care
Cambridgeshire County Council,25-Apr-19,51300851356,"-4,655.00",Accomplish Group Support Limited,CARE ESTABLISHMENT,LD - Hunts Locality,LD - Huntigndonshire  - Special Needs,Rehabilitation And Respite Care
Cambridgeshire County Council,25-Apr-19,51300867971,"-4,655.00",Accomplish Group Support Limited,CARE ESTABLISHMENT,LD - Hunts Locality,LD - Huntigndonshire  - Special Needs,Rehabilitation And Respite Care
Cambridgeshire County Council,25-Apr-19,51300859660,"-4,655.00",Accomplish Group Support Limited,CARE ESTABLISHMENT,LD - Hunts Locality,LD - Huntigndonshire  - Special Needs,Rehabilitation And Respite Care
Cambridgeshire County Council,25-Apr-19,51300851345,"-4,655.00",Accomplish Group Support Limited,CARE ESTABLISHMENT,LD - Hunts Locality,LD - Huntigndonshire  - Special Needs,Rehabilitation And Respite Care
Cambridgeshire County Council,25-Apr-19,51300840836,"-4,655.00",Accomplish Group Support Limited,CARE ESTABLISHMENT,LD - Hunts Locality,LD - Huntigndonshire  - Special Needs,Rehabilitation And Respite Care
Cambridgeshire County Council,25-Apr-19,51300892191,"-4,655.00",Accomplish Group Support Limited,CARE ESTABLISHMENT,LD - Hunts Locality,LD - Huntigndonshire  - Special Needs,Rehabilitation And Respite Care
Cambridgeshire County Council,25-Apr-19,51300840847,"-4,655.00",Accomplish Group Support Limited,CARE ESTABLISHMENT,LD - Hunts Locality,LD - Huntigndonshire  - Special Needs,Rehabilitation And Respite Care
Cambridgeshire County Council,25-Apr-19,51300867984,"-4,655.00",Accomplish Group Support Limited,CARE ESTABLISHMENT,LD - Hunts Locality,LD - Huntigndonshire  - Care,Rehabilitation And Respite Care
Cambridgeshire County Council,25-Apr-19,51300851353,"-4,655.00",Accomplish Group Support Limited,CARE ESTABLISHMENT,LD - Hunts Locality,LD - Huntigndonshire  - Care,Rehabilitation And Respite Care
Cambridgeshire County Council,25-Apr-19,51300840830,"-4,655.00",Accomplish Group Support Limited,CARE ESTABLISHMENT,LD - Hunts Locality,LD - Huntigndonshire  - Special Needs,Rehabilitation And Respite Care
Cambridgeshire County Council,25-Apr-19,51300892209,"-4,655.00",Accomplish Group Support Limited,CARE ESTABLISHMENT,LD - Hunts Locality,LD - Huntigndonshire  - Special Needs,Rehabilitation And Respite Care
Cambridgeshire County Council,25-Apr-19,51300859647,"-4,655.00",Accomplish Group Support Limited,CARE ESTABLISHMENT,LD - Hunts Locality,LD - Huntigndonshire  - Care,Rehabilitation And Respite Care
Cambridgeshire County Council,25-Apr-19,51300859646,"-4,655.00",Accomplish Group Support Limited,CARE ESTABLISHMENT,LD - Hunts Locality,LD - Huntigndonshire  - Care,Rehabilitation And Respite Care
Cambridgeshire County Council,25-Apr-19,51300892184,"-4,655.00",Accomplish Group Support Limited,CARE ESTABLISHMENT,LD - Hunts Locality,LD - Huntigndonshire  - Care,Rehabilitation And Respite Care
Cambridgeshire County Council,25-Apr-19,51300840837,"-4,655.00",Accomplish Group Support Limited,CARE ESTABLISHMENT,LD - Hunts Locality,LD - Huntigndonshire  - Care,Rehabilitation And Respite Care
Cambridgeshire County Council,25-Apr-19,51300892174,"-4,655.00",Accomplish Group Support Limited,CARE ESTABLISHMENT,LD - Hunts Locality,LD - Huntigndonshire  - Care,Rehabilitation And Respite Care
Cambridgeshire County Council,25-Apr-19,51300840817,"-4,655.00",Accomplish Group Support Limited,CARE ESTABLISHMENT,LD - Hunts Locality,LD - Huntigndonshire  - Care,Rehabilitation And Respite Care
Cambridgeshire County Council,25-Apr-19,51300851339,"-4,655.00",Accomplish Group Support Limited,CARE ESTABLISHMENT,LD - Hunts Locality,LD - Huntigndonshire  - Care,Rehabilitation And Respite Care
Cambridgeshire County Council,25-Apr-19,51300867983,"-4,655.00",Accomplish Group Support Limited,CARE ESTABLISHMENT,LD - Hunts Locality,LD - Huntigndonshire  - Care,Rehabilitation And Respite Care
Cambridgeshire County Council,25-Apr-19,51300892203,"-4,655.00",Accomplish Group Support Limited,CARE ESTABLISHMENT,LD - Hunts Locality,LD - Huntigndonshire  - Care,Rehabilitation And Respite Care
Cambridgeshire County Council,25-Apr-19,51300859653,"-4,655.00",Accomplish Group Support Limited,CARE ESTABLISHMENT,LD - Hunts Locality,LD - Huntigndonshire  - Care,Rehabilitation And Respite Care
Cambridgeshire County Council,25-Apr-19,51300851349,"-4,655.00",Accomplish Group Support Limited,CARE ESTABLISHMENT,LD - Hunts Locality,LD - Huntigndonshire  - Care,Rehabilitation And Respite Care
Cambridgeshire County Council,25-Apr-19,51300867980,"-4,655.00",Accomplish Group Support Limited,CARE ESTABLISHMENT,LD - Hunts Locality,LD - Huntigndonshire  - Care,Rehabilitation And Respite Care
Cambridgeshire County Council,25-Apr-19,51300867975,"-4,655.00",Accomplish Group Support Limited,CARE ESTABLISHMENT,LD - Hunts Locality,LD - Huntigndonshire  - Care,Rehabilitation And Respite Care
Cambridgeshire County Council,25-Apr-19,51300859662,"-4,655.00",Accomplish Group Support Limited,CARE ESTABLISHMENT,LD - Hunts Locality,LD - Huntigndonshire  - Care,Rehabilitation And Respite Care
Cambridgeshire County Council,25-Apr-19,51300859661,"-4,655.00",Accomplish Group Support Limited,CARE ESTABLISHMENT,LD - Hunts Locality,LD - Huntigndonshire  - Care,Rehabilitation And Respite Care
Cambridgeshire County Council,25-Apr-19,51300892202,"-4,655.00",Accomplish Group Support Limited,CARE ESTABLISHMENT,LD - Hunts Locality,LD - Huntigndonshire  - Care,Rehabilitation And Respite Care
Cambridgeshire County Council,25-Apr-19,51300840843,"-4,655.00",Accomplish Group Support Limited,CARE ESTABLISHMENT,LD - Hunts Locality,LD - Huntigndonshire  - Care,Rehabilitation And Respite Care
Cambridgeshire County Council,25-Apr-19,51300851358,"-4,655.00",Accomplish Group Support Limited,CARE ESTABLISHMENT,LD - Hunts Locality,LD - Huntigndonshire  - Care,Rehabilitation And Respite Care
Cambridgeshire County Council,25-Apr-19,51300859659,"-4,655.00",Accomplish Group Support Limited,CARE ESTABLISHMENT,LD - Hunts Locality,LD - Huntigndonshire  - Care,Rehabilitation And Respite Care
Cambridgeshire County Council,25-Apr-19,51300867986,"-4,655.00",Accomplish Group Support Limited,CARE ESTABLISHMENT,LD - Hunts Locality,LD - Huntigndonshire  - Care,Rehabilitation And Respite Care
Cambridgeshire County Council,25-Apr-19,51300892215,"-4,655.00",Accomplish Group Support Limited,CARE ESTABLISHMENT,LD - Hunts Locality,LD - Huntigndonshire  - Care,Rehabilitation And Respite Care
Cambridgeshire County Council,25-Apr-19,51300851352,"-4,655.00",Accomplish Group Support Limited,CARE ESTABLISHMENT,LD - Hunts Locality,LD - Huntigndonshire  - Care,Rehabilitation And Respite Care
Cambridgeshire County Council,25-Apr-19,51300840813,"-4,655.00",Accomplish Group Support Limited,CARE ESTABLISHMENT,LD - Hunts Locality,LD - Huntigndonshire  - Special Needs,Rehabilitation And Respite Care
Cambridgeshire County Council,25-Apr-19,51300892182,"-4,655.00",Accomplish Group Support Limited,CARE ESTABLISHMENT,LD - Hunts Locality,LD - Huntigndonshire  - Special Needs,Rehabilitation And Respite Care
Cambridgeshire County Council,29-Apr-19,51300863009,"-4,480.13",NORFOLK COUNTY COUNCIL,OTHER PUBLIC BODIES,L&D Grants,Step Up 2SW,Payments to Other Local Authorities
Cambridgeshire County Council,25-Apr-19,51300837275,"-3,734.34",Glebe Farm,COMPANY,LD - Hunts Locality,LD - Huntigndonshire  - Special Needs,Residential Care
Cambridgeshire County Council,25-Apr-19,51300837278,"-3,734.34",Glebe Farm,COMPANY,LD - Hunts Locality,LD - Huntigndonshire  - Special Needs,Residential Care
Cambridgeshire County Council,25-Apr-19,51300892208,"-3,325.00",Accomplish Group Support Limited,CARE ESTABLISHMENT,LD - Hunts Locality,LD - Huntigndonshire  - Care,Rehabilitation And Respite Care
Cambridgeshire County Council,25-Apr-19,51300851347,"-3,325.00",Accomplish Group Support Limited,CARE ESTABLISHMENT,LD - Hunts Locality,LD - Huntigndonshire  - Care,Rehabilitation And Respite Care
Cambridgeshire County Council,25-Apr-19,51300859650,"-3,325.00",Accomplish Group Support Limited,CARE ESTABLISHMENT,LD - Hunts Locality,LD - Huntigndonshire  - Special Needs,Rehabilitation And Respite Care
Cambridgeshire County Council,25-Apr-19,51300867977,"-3,325.00",Accomplish Group Support Limited,CARE ESTABLISHMENT,LD - Hunts Locality,LD - Huntigndonshire  - Special Needs,Rehabilitation And Respite Care
Cambridgeshire County Council,25-Apr-19,51300840816,"-3,325.00",Accomplish Group Support Limited,CARE ESTABLISHMENT,LD - Hunts Locality,LD - Huntigndonshire  - Special Needs,Rehabilitation And Respite Care
Cambridgeshire County Council,25-Apr-19,51300822532,"-3,285.00",Glebe Farm,COMPANY,LD - Young Adults Team,LD - Young Adults - Special Needs,Residential Care
Cambridgeshire County Council,25-Apr-19,51300822531,"-3,285.00",Glebe Farm,COMPANY,LD - Young Adults Team,LD - Young Adults - Special Needs,Residential Care
Cambridgeshire County Council,05-Apr-19,51300810326,"-3,159.95",TARMAC TRADING LIMITED,COMPANY,Highways - 90m Mtce,Highways - 90m Mtce,Construction - External Professional Fees
Cambridgeshire County Council,25-Apr-19,51300869310,"-2,993.71",BUCHAN HEALTHCARE LTD,CARE ESTABLISHMENT,OP - City & South Blocks,City and South - Long term blocks,Nursing Care
Cambridgeshire County Council,25-Apr-19,51300823621,"-2,960.00",CONSENSUS COMMUNITY SUPPORT LTD,CARE ESTABLISHMENT,LD - Young Adults Team,LD - Young Adults - Care,Residential Care
Cambridgeshire County Council,25-Apr-19,51300823629,"-2,960.00",CONSENSUS COMMUNITY SUPPORT LTD,CARE ESTABLISHMENT,LD - Young Adults Team,LD - Young Adults - Care,Residential Care
Cambridgeshire County Council,15-Apr-19,51300810465,"-2,926.84",SENSE,CARE ESTABLISHMENT,SEND High Needs Top Up,SEND Specialist Services-High needs top-up-Mainstream,Independent School Placements
Cambridgeshire County Council,25-Apr-19,51300836597,"-2,698.58",Accomplish Group Support Limited,CARE ESTABLISHMENT,LD - Fenland Locality,LD - Fenland  - Special Needs,Residential Care
Cambridgeshire County Council,25-Apr-19,51300836596,"-2,698.58",Accomplish Group Support Limited,CARE ESTABLISHMENT,LD - Fenland Locality,LD - Fenland  - Special Needs,Residential Care
Cambridgeshire County Council,30-Apr-19,51300711003,"-2,600.00",Brampton Park Golf Club,COMPANY,L&D Grants,ASYE,Casual hire of facilities
Cambridgeshire County Council,25-Apr-19,51300869615,"-2,562.86",ASKHAM VILLAGE COMMUNITY LTD,CARE ESTABLISHMENT,OP - Fenland Locality,Older People - Fenland,Nursing Care
Cambridgeshire County Council,25-Apr-19,51300814923,"-2,485.43",ZERO THREE CARE,CARE ESTABLISHMENT,LD - Hunts Locality,LD - Huntigndonshire  - Special Needs,Residential Care
Cambridgeshire County Council,25-Apr-19,51300814932,"-2,485.43",ZERO THREE CARE,CARE ESTABLISHMENT,LD - Hunts Locality,LD - Huntigndonshire  - Special Needs,Residential Care
Cambridgeshire County Council,25-Apr-19,51300881415,"-2,462.65",VOYAGE,CARE ESTABLISHMENT,LD - Hunts Locality,LD - Huntigndonshire  - Special Needs,Residential Care
Cambridgeshire County Council,18-Apr-19,51300867294,"-2,428.46",VOYAGE,CARE ESTABLISHMENT,LD - South Locality,LD - South Cambs - Special Needs,Residential Care
Cambridgeshire County Council,18-Apr-19,51300867301,"-2,428.46",VOYAGE,CARE ESTABLISHMENT,LD - South Locality,LD - South Cambs - Special Needs,Residential Care
Cambridgeshire County Council,18-Apr-19,51300867302,"-2,428.46",VOYAGE,CARE ESTABLISHMENT,LD - South Locality,LD - South Cambs - Special Needs,Residential Care
Cambridgeshire County Council,18-Apr-19,51300867310,"-2,428.46",VOYAGE,CARE ESTABLISHMENT,LD - South Locality,LD - South Cambs - Special Needs,Residential Care
Cambridgeshire County Council,18-Apr-19,51300867297,"-2,428.46",VOYAGE,CARE ESTABLISHMENT,LD - South Locality,LD - South Cambs - Special Needs,Residential Care
Cambridgeshire County Council,18-Apr-19,51300867305,"-2,428.46",VOYAGE,CARE ESTABLISHMENT,LD - South Locality,LD - South Cambs - Special Needs,Residential Care
Cambridgeshire County Council,18-Apr-19,51300867312,"-2,428.46",VOYAGE,CARE ESTABLISHMENT,LD - South Locality,LD - South Cambs - Special Needs,Residential Care
Cambridgeshire County Council,18-Apr-19,51300867293,"-2,428.46",VOYAGE,CARE ESTABLISHMENT,LD - South Locality,LD - South Cambs - Special Needs,Residential Care
Cambridgeshire County Council,18-Apr-19,51300867296,"-2,428.46",VOYAGE,CARE ESTABLISHMENT,LD - South Locality,LD - South Cambs - Special Needs,Residential Care
Cambridgeshire County Council,18-Apr-19,51300867288,"-2,428.46",VOYAGE,CARE ESTABLISHMENT,LD - South Locality,LD - South Cambs - Special Needs,Residential Care
Cambridgeshire County Council,18-Apr-19,51300867311,"-2,428.46",VOYAGE,CARE ESTABLISHMENT,LD - South Locality,LD - South Cambs - Special Needs,Residential Care
Cambridgeshire County Council,25-Apr-19,51300813093,"-2,365.80",BLUNHAM DAIRY MANOR FARM (BROOKDALE),CARE ESTABLISHMENT,LD - Hunts Locality,LD - Huntigndonshire  - Special Needs,Residential Care
Cambridgeshire County Council,25-Apr-19,51300813094,"-2,365.80",BLUNHAM DAIRY MANOR FARM (BROOKDALE),CARE ESTABLISHMENT,LD - Hunts Locality,LD - Huntigndonshire  - Special Needs,Residential Care
Cambridgeshire County Council,05-Apr-19,51300849432,"-2,337.29",DIMENSIONS (UK) LTD,CARE ESTABLISHMENT,LD - City Locality,LD - City - Special Needs,Supported Living
Cambridgeshire County Council,05-Apr-19,51300849440,"-2,337.29",DIMENSIONS (UK) LTD,CARE ESTABLISHMENT,LD - City Locality,LD - City - Special Needs,Supported Living
Cambridgeshire County Council,05-Apr-19,51300849438,"-2,337.29",DIMENSIONS (UK) LTD,CARE ESTABLISHMENT,LD - South Locality,LD - South Cambs - Special Needs,Supported Living
Cambridgeshire County Council,05-Apr-19,51300849443,"-2,337.29",DIMENSIONS (UK) LTD,CARE ESTABLISHMENT,LD - City Locality,LD - City - Special Needs,Supported Living
Cambridgeshire County Council,05-Apr-19,51300849429,"-2,337.29",DIMENSIONS (UK) LTD,CARE ESTABLISHMENT,LD - City Locality,LD - City - Special Needs,Supported Living
Cambridgeshire County Council,05-Apr-19,51300849431,"-2,337.29",DIMENSIONS (UK) LTD,CARE ESTABLISHMENT,LD - City Locality,LD - City - Special Needs,Supported Living
Cambridgeshire County Council,05-Apr-19,51300849444,"-2,337.29",DIMENSIONS (UK) LTD,CARE ESTABLISHMENT,LD - City Locality,LD - City - Special Needs,Supported Living
Cambridgeshire County Council,05-Apr-19,51300849435,"-2,337.29",DIMENSIONS (UK) LTD,CARE ESTABLISHMENT,LD - South Locality,LD - South Cambs - Special Needs,Supported Living
Cambridgeshire County Council,25-Apr-19,51300866971,"-2,337.29",DIMENSIONS (UK) LTD,CARE ESTABLISHMENT,LD - South Locality,LD - South Cambs - Special Needs,Supported Living
Cambridgeshire County Council,25-Apr-19,51300866978,"-2,337.29",DIMENSIONS (UK) LTD,CARE ESTABLISHMENT,LD - South Locality,LD - South Cambs - Special Needs,Supported Living
Cambridgeshire County Council,25-Apr-19,51300858454,"-2,337.29",DIMENSIONS (UK) LTD,CARE ESTABLISHMENT,LD - South Locality,LD - South Cambs - Special Needs,Supported Living
Cambridgeshire County Council,25-Apr-19,51300885513,"-2,337.29",DIMENSIONS (UK) LTD,CARE ESTABLISHMENT,LD - South Locality,LD - South Cambs - Special Needs,Supported Living
Cambridgeshire County Council,25-Apr-19,51300885520,"-2,337.29",DIMENSIONS (UK) LTD,CARE ESTABLISHMENT,LD - South Locality,LD - South Cambs - Special Needs,Supported Living
Cambridgeshire County Council,25-Apr-19,51300885522,"-2,337.29",DIMENSIONS (UK) LTD,CARE ESTABLISHMENT,LD - South Locality,LD - South Cambs - Special Needs,Supported Living
Cambridgeshire County Council,25-Apr-19,51300885519,"-2,337.29",DIMENSIONS (UK) LTD,CARE ESTABLISHMENT,LD - City Locality,LD - City - Special Needs,Supported Living
Cambridgeshire County Council,25-Apr-19,51300866983,"-2,337.29",DIMENSIONS (UK) LTD,CARE ESTABLISHMENT,LD - City Locality,LD - City - Special Needs,Supported Living
Cambridgeshire County Council,25-Apr-19,51300885531,"-2,337.29",DIMENSIONS (UK) LTD,CARE ESTABLISHMENT,LD - City Locality,LD - City - Special Needs,Supported Living
Cambridgeshire County Council,25-Apr-19,51300866967,"-2,337.29",DIMENSIONS (UK) LTD,CARE ESTABLISHMENT,LD - City Locality,LD - City - Special Needs,Supported Living
Cambridgeshire County Council,25-Apr-19,51300858461,"-2,337.29",DIMENSIONS (UK) LTD,CARE ESTABLISHMENT,LD - City Locality,LD - City - Special Needs,Supported Living
Cambridgeshire County Council,25-Apr-19,51300858464,"-2,337.29",DIMENSIONS (UK) LTD,CARE ESTABLISHMENT,LD - City Locality,LD - City - Special Needs,Supported Living
Cambridgeshire County Council,25-Apr-19,51300858469,"-2,337.29",DIMENSIONS (UK) LTD,CARE ESTABLISHMENT,LD - City Locality,LD - City - Special Needs,Supported Living
Cambridgeshire County Council,25-Apr-19,51300866976,"-2,337.29",DIMENSIONS (UK) LTD,CARE ESTABLISHMENT,LD - City Locality,LD - City - Special Needs,Supported Living
Cambridgeshire County Council,25-Apr-19,51300858460,"-2,337.29",DIMENSIONS (UK) LTD,CARE ESTABLISHMENT,LD - City Locality,LD - City - Special Needs,Supported Living
Cambridgeshire County Council,25-Apr-19,51300885507,"-2,337.29",DIMENSIONS (UK) LTD,CARE ESTABLISHMENT,LD - City Locality,LD - City - Special Needs,Supported Living
Cambridgeshire County Council,25-Apr-19,51300858459,"-2,337.29",DIMENSIONS (UK) LTD,CARE ESTABLISHMENT,LD - City Locality,LD - City - Special Needs,Supported Living
Cambridgeshire County Council,25-Apr-19,51300866970,"-2,337.29",DIMENSIONS (UK) LTD,CARE ESTABLISHMENT,LD - City Locality,LD - City - Special Needs,Supported Living
Cambridgeshire County Council,25-Apr-19,51300885510,"-2,337.29",DIMENSIONS (UK) LTD,CARE ESTABLISHMENT,LD - City Locality,LD - City - Special Needs,Supported Living
Cambridgeshire County Council,25-Apr-19,51300866974,"-2,337.29",DIMENSIONS (UK) LTD,CARE ESTABLISHMENT,LD - City Locality,LD - City - Special Needs,Supported Living
Cambridgeshire County Council,25-Apr-19,51300885532,"-2,337.29",DIMENSIONS (UK) LTD,CARE ESTABLISHMENT,LD - City Locality,LD - City - Special Needs,Supported Living
Cambridgeshire County Council,25-Apr-19,51300858463,"-2,337.29",DIMENSIONS (UK) LTD,CARE ESTABLISHMENT,LD - South Locality,LD - South Cambs - Special Needs,Supported Living
Cambridgeshire County Council,25-Apr-19,51300866980,"-2,337.29",DIMENSIONS (UK) LTD,CARE ESTABLISHMENT,LD - City Locality,LD - City - Special Needs,Supported Living
Cambridgeshire County Council,25-Apr-19,51300858458,"-2,337.29",DIMENSIONS (UK) LTD,CARE ESTABLISHMENT,LD - City Locality,LD - City - Special Needs,Supported Living
Cambridgeshire County Council,25-Apr-19,51300831960,"-2,250.87",Accomplish Group Support Limited,CARE ESTABLISHMENT,LD - Hunts Locality,LD - Huntigndonshire  - Special Needs,Residential Care
Cambridgeshire County Council,25-Apr-19,51300831961,"-2,250.87",Accomplish Group Support Limited,CARE ESTABLISHMENT,LD - Hunts Locality,LD - Huntigndonshire  - Special Needs,Residential Care
Cambridgeshire County Council,05-Apr-19,51300810433,"-2,232.94",TARMAC TRADING LIMITED,COMPANY,Highways - 90m Mtce,Highways - 90m Mtce,Construction - External Professional Fees
Cambridgeshire County Council,17-Apr-19,51300863086,"-2,214.82",LGSS LAW LTD,TRADE SUPPLIER,Legal Proceedings,Legal Proceedings,External Legal Fees
Cambridgeshire County Council,25-Apr-19,51300865814,"-2,196.72",ALDERTON HOUSE,CARE ESTABLISHMENT,LD - Young Adults Team,LD - Young Adults - Special Needs,Residential Care
Cambridgeshire County Council,25-Apr-19,51300865811,"-2,196.72",ALDERTON HOUSE,CARE ESTABLISHMENT,LD - Young Adults Team,LD - Young Adults - Special Needs,Residential Care
Cambridgeshire County Council,25-Apr-19,51300865815,"-2,196.72",ALDERTON HOUSE,CARE ESTABLISHMENT,LD - Young Adults Team,LD - Young Adults - Special Needs,Residential Care
Cambridgeshire County Council,25-Apr-19,51300865820,"-2,196.72",ALDERTON HOUSE,CARE ESTABLISHMENT,LD - Young Adults Team,LD - Young Adults - Special Needs,Residential Care
Cambridgeshire County Council,25-Apr-19,51300865822,"-2,196.72",ALDERTON HOUSE,CARE ESTABLISHMENT,LD - Young Adults Team,LD - Young Adults - Special Needs,Residential Care
Cambridgeshire County Council,25-Apr-19,51300865816,"-2,196.72",ALDERTON HOUSE,CARE ESTABLISHMENT,LD - Young Adults Team,LD - Young Adults - Special Needs,Residential Care
Cambridgeshire County Council,25-Apr-19,51300865817,"-2,196.72",ALDERTON HOUSE,CARE ESTABLISHMENT,LD - Young Adults Team,LD - Young Adults - Special Needs,Residential Care
Cambridgeshire County Council,25-Apr-19,51300865807,"-2,146.52",ALDERTON HOUSE,CARE ESTABLISHMENT,LD - Young Adults Team,LD - Young Adults - Special Needs,Residential Care
Cambridgeshire County Council,25-Apr-19,51300865806,"-2,146.52",ALDERTON HOUSE,CARE ESTABLISHMENT,LD - Young Adults Team,LD - Young Adults - Special Needs,Residential Care
Cambridgeshire County Council,18-Apr-19,51300867309,"-2,081.54",VOYAGE,CARE ESTABLISHMENT,LD - South Locality,LD - South Cambs - Special Needs,Residential Care
Cambridgeshire County Council,11-Apr-19,51300844484,"-2,009.04",LEX AUTOLEASE LTD,TRADE SUPPLIER,BM - Corporate Offices,Building Maintenance,Leased Vehicle Costs
Cambridgeshire County Council,11-Apr-19,51300818202,"-1,967.43",CARETECH COMMUNITY SERVICES,CARE ESTABLISHMENT,LD - City Locality,LD - City - Care,Residential Care
Cambridgeshire County Council,11-Apr-19,51300818200,"-1,967.43",CARETECH COMMUNITY SERVICES,CARE ESTABLISHMENT,LD - City Locality,LD - City - Care,Residential Care
Cambridgeshire County Council,11-Apr-19,51300818189,"-1,967.43",CARETECH COMMUNITY SERVICES,CARE ESTABLISHMENT,LD - City Locality,LD - City - Care,Residential Care
Cambridgeshire County Council,11-Apr-19,51300818206,"-1,967.43",CARETECH COMMUNITY SERVICES,CARE ESTABLISHMENT,LD - City Locality,LD - City - Care,Residential Care
Cambridgeshire County Council,11-Apr-19,51300818191,"-1,967.43",CARETECH COMMUNITY SERVICES,CARE ESTABLISHMENT,LD - City Locality,LD - City - Care,Residential Care
Cambridgeshire County Council,11-Apr-19,51300818190,"-1,967.43",CARETECH COMMUNITY SERVICES,CARE ESTABLISHMENT,LD - City Locality,LD - City - Care,Residential Care
Cambridgeshire County Council,11-Apr-19,51300818204,"-1,967.43",CARETECH COMMUNITY SERVICES,CARE ESTABLISHMENT,LD - City Locality,LD - City - Care,Residential Care
Cambridgeshire County Council,25-Apr-19,51300837279,"-1,931.71",Glebe Farm,COMPANY,LD - Hunts Locality,LD - Huntigndonshire  - Special Needs,Residential Care
Cambridgeshire County Council,23-Apr-19,51300868721,"-1,896.00",CARTER CABIN HIRE LIMITED,COMPANY,Libraries - South Cambridgeshire,Libraries - Sawston,Rents and Leases
Cambridgeshire County Council,25-Apr-19,51300865809,"-1,882.90",ALDERTON HOUSE,CARE ESTABLISHMENT,LD - Young Adults Team,LD - Young Adults - Special Needs,Residential Care
Cambridgeshire County Council,25-Apr-19,51300865818,"-1,882.90",ALDERTON HOUSE,CARE ESTABLISHMENT,LD - Young Adults Team,LD - Young Adults - Special Needs,Residential Care
Cambridgeshire County Council,25-Apr-19,51300825383,"-1,868.51",CARETECH COMMUNITY SERVICES LTD (161 WOOTTON RD),CARE ESTABLISHMENT,LD - Hunts Locality,LD - Huntigndonshire  - Special Needs,Residential Care
Cambridgeshire County Council,25-Apr-19,51300825377,"-1,868.51",CARETECH COMMUNITY SERVICES LTD (161 WOOTTON RD),CARE ESTABLISHMENT,LD - Hunts Locality,LD - Huntigndonshire  - Special Needs,Residential Care
Cambridgeshire County Council,25-Apr-19,51300825373,"-1,868.51",CARETECH COMMUNITY SERVICES LTD (161 WOOTTON RD),CARE ESTABLISHMENT,LD - Hunts Locality,LD - Huntigndonshire  - Special Needs,Residential Care
Cambridgeshire County Council,25-Apr-19,51300825393,"-1,868.51",CARETECH COMMUNITY SERVICES LTD (161 WOOTTON RD),CARE ESTABLISHMENT,LD - Hunts Locality,LD - Huntigndonshire  - Special Needs,Residential Care
Cambridgeshire County Council,25-Apr-19,51300825386,"-1,868.51",CARETECH COMMUNITY SERVICES LTD (161 WOOTTON RD),CARE ESTABLISHMENT,LD - Hunts Locality,LD - Huntigndonshire  - Special Needs,Residential Care
Cambridgeshire County Council,25-Apr-19,51300825390,"-1,868.51",CARETECH COMMUNITY SERVICES LTD (161 WOOTTON RD),CARE ESTABLISHMENT,LD - Hunts Locality,LD - Huntigndonshire  - Special Needs,Residential Care
Cambridgeshire County Council,25-Apr-19,51300825387,"-1,868.51",CARETECH COMMUNITY SERVICES LTD (161 WOOTTON RD),CARE ESTABLISHMENT,LD - Hunts Locality,LD - Huntigndonshire  - Special Needs,Residential Care
Cambridgeshire County Council,25-Apr-19,51300825389,"-1,868.51",CARETECH COMMUNITY SERVICES LTD (161 WOOTTON RD),CARE ESTABLISHMENT,LD - Hunts Locality,LD - Huntigndonshire  - Special Needs,Residential Care
Cambridgeshire County Council,25-Apr-19,51300814687,"-1,845.97",TRACS LIMITED,CARE ESTABLISHMENT,AMH - City South,Cambridge South Mental Health,Residential Care
Cambridgeshire County Council,25-Apr-19,51300814690,"-1,845.97",TRACS LIMITED,CARE ESTABLISHMENT,AMH - City South,Cambridge South Mental Health,Residential Care
Cambridgeshire County Council,25-Apr-19,51300840671,"-1,804.31",EAGLE WOOD NEUROLOGICAL CARE,CARE ESTABLISHMENT,OPMH - Hunts & Fens,Older People Mental Health Fenland,Nursing Care
Cambridgeshire County Council,25-Apr-19,51300840670,"-1,804.31",EAGLE WOOD NEUROLOGICAL CARE,CARE ESTABLISHMENT,OPMH - Hunts & Fens,Older People Mental Health Fenland,Nursing Care
Cambridgeshire County Council,05-Apr-19,51300842229,"-1,792.96",TARMAC TRADING LIMITED,COMPANY,Highways - 90m Mtce,Highways - 90m Mtce,Construction - External Professional Fees
Cambridgeshire County Council,25-Apr-19,51300821827,"-1,782.43",Accomplish Group Support Limited,CARE ESTABLISHMENT,LD - Hunts Locality,LD - Huntigndonshire  - Special Needs,Residential Care
Cambridgeshire County Council,25-Apr-19,51300821720,"-1,782.43",Accomplish Group Support Limited,CARE ESTABLISHMENT,LD - Hunts Locality,LD - Huntigndonshire  - Special Needs,Residential Care
Cambridgeshire County Council,25-Apr-19,51300821802,"-1,782.43",Accomplish Group Support Limited,CARE ESTABLISHMENT,LD - Hunts Locality,LD - Huntigndonshire  - Special Needs,Residential Care
Cambridgeshire County Council,25-Apr-19,51300821803,"-1,782.43",Accomplish Group Support Limited,CARE ESTABLISHMENT,LD - Hunts Locality,LD - Huntigndonshire  - Special Needs,Residential Care
Cambridgeshire County Council,25-Apr-19,51300821731,"-1,782.43",Accomplish Group Support Limited,CARE ESTABLISHMENT,LD - Hunts Locality,LD - Huntigndonshire  - Special Needs,Residential Care
Cambridgeshire County Council,25-Apr-19,51300821776,"-1,782.43",Accomplish Group Support Limited,CARE ESTABLISHMENT,LD - Hunts Locality,LD - Huntigndonshire  - Special Needs,Residential Care
Cambridgeshire County Council,25-Apr-19,51300821742,"-1,782.43",Accomplish Group Support Limited,CARE ESTABLISHMENT,LD - Hunts Locality,LD - Huntigndonshire  - Special Needs,Residential Care
Cambridgeshire County Council,25-Apr-19,51300821736,"-1,782.43",Accomplish Group Support Limited,CARE ESTABLISHMENT,LD - Hunts Locality,LD - Huntigndonshire  - Special Needs,Residential Care
Cambridgeshire County Council,25-Apr-19,51300811955,"-1,778.47",Accomplish Group Support Limited,CARE ESTABLISHMENT,LD - Hunts Locality,LD - Huntigndonshire  - Special Needs,Residential Care
Cambridgeshire County Council,25-Apr-19,51300811971,"-1,778.47",Accomplish Group Support Limited,CARE ESTABLISHMENT,LD - Hunts Locality,LD - Huntigndonshire  - Special Needs,Residential Care
Cambridgeshire County Council,25-Apr-19,51300811954,"-1,778.47",Accomplish Group Support Limited,CARE ESTABLISHMENT,LD - Hunts Locality,LD - Huntigndonshire  - Special Needs,Residential Care
Cambridgeshire County Council,25-Apr-19,51300811956,"-1,778.47",Accomplish Group Support Limited,CARE ESTABLISHMENT,LD - Hunts Locality,LD - Huntigndonshire  - Special Needs,Residential Care
Cambridgeshire County Council,25-Apr-19,51300811945,"-1,778.47",Accomplish Group Support Limited,CARE ESTABLISHMENT,LD - Hunts Locality,LD - Huntigndonshire  - Special Needs,Residential Care
Cambridgeshire County Council,25-Apr-19,51300811946,"-1,778.47",Accomplish Group Support Limited,CARE ESTABLISHMENT,LD - Hunts Locality,LD - Huntigndonshire  - Special Needs,Residential Care
Cambridgeshire County Council,25-Apr-19,51300811951,"-1,778.47",Accomplish Group Support Limited,CARE ESTABLISHMENT,LD - Hunts Locality,LD - Huntigndonshire  - Special Needs,Residential Care
Cambridgeshire County Council,25-Apr-19,51300811944,"-1,778.47",Accomplish Group Support Limited,CARE ESTABLISHMENT,LD - Hunts Locality,LD - Huntigndonshire  - Special Needs,Residential Care
Cambridgeshire County Council,11-Apr-19,51300818113,"-1,773.74",CARETECH COMMUNITY SERVICES,CARE ESTABLISHMENT,LD - City Locality,LD - City - Special Needs,Residential Care
Cambridgeshire County Council,11-Apr-19,51300818117,"-1,773.74",CARETECH COMMUNITY SERVICES,CARE ESTABLISHMENT,LD - City Locality,LD - City - Special Needs,Residential Care
Cambridgeshire County Council,11-Apr-19,51300818120,"-1,773.74",CARETECH COMMUNITY SERVICES,CARE ESTABLISHMENT,LD - City Locality,LD - City - Special Needs,Residential Care
Cambridgeshire County Council,11-Apr-19,51300818116,"-1,773.74",CARETECH COMMUNITY SERVICES,CARE ESTABLISHMENT,LD - City Locality,LD - City - Special Needs,Residential Care
Cambridgeshire County Council,11-Apr-19,51300818126,"-1,773.74",CARETECH COMMUNITY SERVICES,CARE ESTABLISHMENT,LD - City Locality,LD - City - Special Needs,Residential Care
Cambridgeshire County Council,11-Apr-19,51300818124,"-1,773.74",CARETECH COMMUNITY SERVICES,CARE ESTABLISHMENT,LD - City Locality,LD - City - Special Needs,Residential Care
Cambridgeshire County Council,25-Apr-19,51300887751,"-1,759.50",THERA EAST ANGLIA,CARE ESTABLISHMENT,LD - South Locality,LD - South Cambs - Special Needs,Supported Living
Cambridgeshire County Council,25-Apr-19,51300887750,"-1,759.50",THERA EAST ANGLIA,CARE ESTABLISHMENT,LD - South Locality,LD - South Cambs - Special Needs,Supported Living
Cambridgeshire County Council,25-Apr-19,51300887752,"-1,759.50",THERA EAST ANGLIA,CARE ESTABLISHMENT,LD - South Locality,LD - South Cambs - Special Needs,Supported Living
Cambridgeshire County Council,25-Apr-19,51300887731,"-1,759.50",THERA EAST ANGLIA,CARE ESTABLISHMENT,LD - South Locality,LD - South Cambs - Special Needs,Supported Living
Cambridgeshire County Council,25-Apr-19,51300887753,"-1,759.50",THERA EAST ANGLIA,CARE ESTABLISHMENT,LD - South Locality,LD - South Cambs - Special Needs,Supported Living
Cambridgeshire County Council,25-Apr-19,51300887725,"-1,759.50",THERA EAST ANGLIA,CARE ESTABLISHMENT,LD - South Locality,LD - South Cambs - Special Needs,Supported Living
Cambridgeshire County Council,25-Apr-19,51300887722,"-1,759.50",THERA EAST ANGLIA,CARE ESTABLISHMENT,LD - South Locality,LD - South Cambs - Special Needs,Supported Living
Cambridgeshire County Council,25-Apr-19,51300887743,"-1,759.50",THERA EAST ANGLIA,CARE ESTABLISHMENT,LD - South Locality,LD - South Cambs - Special Needs,Supported Living
Cambridgeshire County Council,25-Apr-19,51300887747,"-1,759.50",THERA EAST ANGLIA,CARE ESTABLISHMENT,LD - South Locality,LD - South Cambs - Special Needs,Supported Living
Cambridgeshire County Council,25-Apr-19,51300887713,"-1,759.50",THERA EAST ANGLIA,CARE ESTABLISHMENT,LD - South Locality,LD - South Cambs - Special Needs,Supported Living
Cambridgeshire County Council,25-Apr-19,51300887735,"-1,759.50",THERA EAST ANGLIA,CARE ESTABLISHMENT,LD - South Locality,LD - South Cambs - Special Needs,Supported Living
Cambridgeshire County Council,25-Apr-19,51300887741,"-1,759.50",THERA EAST ANGLIA,CARE ESTABLISHMENT,LD - South Locality,LD - South Cambs - Special Needs,Supported Living
Cambridgeshire County Council,05-Apr-19,51300848436,"-1,711.36",AFFINITY TRUST,CARE ESTABLISHMENT,LD - Fenland Locality,LD - Fenland  - Care,Supported Living
Cambridgeshire County Council,05-Apr-19,51300848448,"-1,711.36",AFFINITY TRUST,CARE ESTABLISHMENT,LD - Fenland Locality,LD - Fenland  - Care,Supported Living
Cambridgeshire County Council,05-Apr-19,51300848440,"-1,711.36",AFFINITY TRUST,CARE ESTABLISHMENT,LD - Fenland Locality,LD - Fenland  - Care,Supported Living
Cambridgeshire County Council,05-Apr-19,51300848432,"-1,711.36",AFFINITY TRUST,CARE ESTABLISHMENT,LD - Fenland Locality,LD - Fenland  - Care,Supported Living
Cambridgeshire County Council,05-Apr-19,51300848443,"-1,711.36",AFFINITY TRUST,CARE ESTABLISHMENT,LD - Fenland Locality,LD - Fenland  - Care,Supported Living
Cambridgeshire County Council,05-Apr-19,51300848438,"-1,711.36",AFFINITY TRUST,CARE ESTABLISHMENT,LD - Fenland Locality,LD - Fenland  - Special Needs,Supported Living
Cambridgeshire County Council,05-Apr-19,51300848450,"-1,711.36",AFFINITY TRUST,CARE ESTABLISHMENT,LD - Fenland Locality,LD - Fenland  - Special Needs,Supported Living
Cambridgeshire County Council,05-Apr-19,51300848457,"-1,711.36",AFFINITY TRUST,CARE ESTABLISHMENT,LD - Fenland Locality,LD - Fenland  - Care,Supported Living
Cambridgeshire County Council,05-Apr-19,51300848434,"-1,711.36",AFFINITY TRUST,CARE ESTABLISHMENT,LD - Fenland Locality,LD - Fenland  - Special Needs,Supported Living
Cambridgeshire County Council,05-Apr-19,51300848444,"-1,711.36",AFFINITY TRUST,CARE ESTABLISHMENT,LD - Fenland Locality,LD - Fenland  - Special Needs,Supported Living
Cambridgeshire County Council,05-Apr-19,51300848447,"-1,711.36",AFFINITY TRUST,CARE ESTABLISHMENT,LD - Fenland Locality,LD - Fenland  - Special Needs,Supported Living
Cambridgeshire County Council,05-Apr-19,51300848442,"-1,711.36",AFFINITY TRUST,CARE ESTABLISHMENT,LD - Fenland Locality,LD - Fenland  - Special Needs,Supported Living
Cambridgeshire County Council,05-Apr-19,51300848463,"-1,711.36",AFFINITY TRUST,CARE ESTABLISHMENT,LD - Fenland Locality,LD - Fenland  - Special Needs,Supported Living
Cambridgeshire County Council,05-Apr-19,51300848461,"-1,711.36",AFFINITY TRUST,CARE ESTABLISHMENT,LD - Fenland Locality,LD - Fenland  - Special Needs,Supported Living
Cambridgeshire County Council,05-Apr-19,51300848430,"-1,711.36",AFFINITY TRUST,CARE ESTABLISHMENT,LD - Fenland Locality,LD - Fenland  - Special Needs,Supported Living
Cambridgeshire County Council,05-Apr-19,51300848452,"-1,711.36",AFFINITY TRUST,CARE ESTABLISHMENT,LD - Fenland Locality,LD - Fenland  - Special Needs,Supported Living
Cambridgeshire County Council,25-Apr-19,51300883919,"-1,711.36",AFFINITY TRUST,CARE ESTABLISHMENT,LD - Fenland Locality,LD - Fenland  - Care,Supported Living
Cambridgeshire County Council,25-Apr-19,51300866314,"-1,711.36",AFFINITY TRUST,CARE ESTABLISHMENT,LD - Fenland Locality,LD - Fenland  - Care,Supported Living
Cambridgeshire County Council,25-Apr-19,51300866299,"-1,711.36",AFFINITY TRUST,CARE ESTABLISHMENT,LD - Fenland Locality,LD - Fenland  - Care,Supported Living
Cambridgeshire County Council,25-Apr-19,51300866317,"-1,711.36",AFFINITY TRUST,CARE ESTABLISHMENT,LD - Fenland Locality,LD - Fenland  - Care,Supported Living
Cambridgeshire County Council,25-Apr-19,51300883945,"-1,711.36",AFFINITY TRUST,CARE ESTABLISHMENT,LD - Fenland Locality,LD - Fenland  - Care,Supported Living
Cambridgeshire County Council,25-Apr-19,51300857799,"-1,711.36",AFFINITY TRUST,CARE ESTABLISHMENT,LD - Fenland Locality,LD - Fenland  - Care,Supported Living
Cambridgeshire County Council,25-Apr-19,51300857813,"-1,711.36",AFFINITY TRUST,CARE ESTABLISHMENT,LD - Fenland Locality,LD - Fenland  - Care,Supported Living
Cambridgeshire County Council,25-Apr-19,51300883920,"-1,711.36",AFFINITY TRUST,CARE ESTABLISHMENT,LD - Fenland Locality,LD - Fenland  - Care,Supported Living
Cambridgeshire County Council,25-Apr-19,51300857790,"-1,711.36",AFFINITY TRUST,CARE ESTABLISHMENT,LD - Fenland Locality,LD - Fenland  - Care,Supported Living
Cambridgeshire County Council,25-Apr-19,51300866325,"-1,711.36",AFFINITY TRUST,CARE ESTABLISHMENT,LD - Fenland Locality,LD - Fenland  - Care,Supported Living
Cambridgeshire County Council,25-Apr-19,51300857792,"-1,711.36",AFFINITY TRUST,CARE ESTABLISHMENT,LD - Fenland Locality,LD - Fenland  - Care,Supported Living
Cambridgeshire County Council,25-Apr-19,51300866328,"-1,711.36",AFFINITY TRUST,CARE ESTABLISHMENT,LD - Fenland Locality,LD - Fenland  - Care,Supported Living
Cambridgeshire County Council,25-Apr-19,51300857803,"-1,711.36",AFFINITY TRUST,CARE ESTABLISHMENT,LD - Fenland Locality,LD - Fenland  - Care,Supported Living
Cambridgeshire County Council,25-Apr-19,51300883954,"-1,711.36",AFFINITY TRUST,CARE ESTABLISHMENT,LD - Fenland Locality,LD - Fenland  - Care,Supported Living
Cambridgeshire County Council,25-Apr-19,51300857805,"-1,711.36",AFFINITY TRUST,CARE ESTABLISHMENT,LD - Fenland Locality,LD - Fenland  - Special Needs,Supported Living
Cambridgeshire County Council,25-Apr-19,51300866322,"-1,711.36",AFFINITY TRUST,CARE ESTABLISHMENT,LD - Fenland Locality,LD - Fenland  - Special Needs,Supported Living
Cambridgeshire County Council,25-Apr-19,51300857807,"-1,711.36",AFFINITY TRUST,CARE ESTABLISHMENT,LD - Fenland Locality,LD - Fenland  - Special Needs,Supported Living
Cambridgeshire County Council,25-Apr-19,51300857821,"-1,711.36",AFFINITY TRUST,CARE ESTABLISHMENT,LD - Fenland Locality,LD - Fenland  - Care,Supported Living
Cambridgeshire County Council,25-Apr-19,51300866319,"-1,711.36",AFFINITY TRUST,CARE ESTABLISHMENT,LD - Fenland Locality,LD - Fenland  - Care,Supported Living
Cambridgeshire County Council,25-Apr-19,51300857814,"-1,711.36",AFFINITY TRUST,CARE ESTABLISHMENT,LD - Fenland Locality,LD - Fenland  - Care,Supported Living
Cambridgeshire County Council,25-Apr-19,51300883953,"-1,711.36",AFFINITY TRUST,CARE ESTABLISHMENT,LD - Fenland Locality,LD - Fenland  - Special Needs,Supported Living
Cambridgeshire County Council,25-Apr-19,51300883921,"-1,711.36",AFFINITY TRUST,CARE ESTABLISHMENT,LD - Fenland Locality,LD - Fenland  - Care,Supported Living
Cambridgeshire County Council,25-Apr-19,51300866298,"-1,711.36",AFFINITY TRUST,CARE ESTABLISHMENT,LD - Fenland Locality,LD - Fenland  - Care,Supported Living
Cambridgeshire County Council,25-Apr-19,51300883938,"-1,711.36",AFFINITY TRUST,CARE ESTABLISHMENT,LD - Fenland Locality,LD - Fenland  - Care,Supported Living
Cambridgeshire County Council,25-Apr-19,51300883942,"-1,711.36",AFFINITY TRUST,CARE ESTABLISHMENT,LD - Fenland Locality,LD - Fenland  - Care,Supported Living
Cambridgeshire County Council,25-Apr-19,51300866313,"-1,711.36",AFFINITY TRUST,CARE ESTABLISHMENT,LD - Fenland Locality,LD - Fenland  - Care,Supported Living
Cambridgeshire County Council,25-Apr-19,51300883959,"-1,711.36",AFFINITY TRUST,CARE ESTABLISHMENT,LD - Fenland Locality,LD - Fenland  - Care,Supported Living
Cambridgeshire County Council,25-Apr-19,51300857791,"-1,711.36",AFFINITY TRUST,CARE ESTABLISHMENT,LD - Fenland Locality,LD - Fenland  - Special Needs,Supported Living
Cambridgeshire County Council,25-Apr-19,51300883930,"-1,711.36",AFFINITY TRUST,CARE ESTABLISHMENT,LD - Fenland Locality,LD - Fenland  - Care,Supported Living
Cambridgeshire County Council,25-Apr-19,51300883927,"-1,711.36",AFFINITY TRUST,CARE ESTABLISHMENT,LD - Fenland Locality,LD - Fenland  - Care,Supported Living
Cambridgeshire County Council,25-Apr-19,51300857809,"-1,711.36",AFFINITY TRUST,CARE ESTABLISHMENT,LD - Fenland Locality,LD - Fenland  - Care,Supported Living
Cambridgeshire County Council,25-Apr-19,51300866296,"-1,711.36",AFFINITY TRUST,CARE ESTABLISHMENT,LD - Fenland Locality,LD - Fenland  - Special Needs,Supported Living
Cambridgeshire County Council,25-Apr-19,51300866307,"-1,711.36",AFFINITY TRUST,CARE ESTABLISHMENT,LD - Fenland Locality,LD - Fenland  - Special Needs,Supported Living
Cambridgeshire County Council,25-Apr-19,51300883952,"-1,711.36",AFFINITY TRUST,CARE ESTABLISHMENT,LD - Fenland Locality,LD - Fenland  - Special Needs,Supported Living
Cambridgeshire County Council,25-Apr-19,51300857817,"-1,711.36",AFFINITY TRUST,CARE ESTABLISHMENT,LD - Fenland Locality,LD - Fenland  - Special Needs,Supported Living
Cambridgeshire County Council,25-Apr-19,51300857802,"-1,711.36",AFFINITY TRUST,CARE ESTABLISHMENT,LD - Fenland Locality,LD - Fenland  - Special Needs,Supported Living
Cambridgeshire County Council,25-Apr-19,51300883950,"-1,711.36",AFFINITY TRUST,CARE ESTABLISHMENT,LD - Fenland Locality,LD - Fenland  - Special Needs,Supported Living
Cambridgeshire County Council,25-Apr-19,51300857796,"-1,711.36",AFFINITY TRUST,CARE ESTABLISHMENT,LD - Fenland Locality,LD - Fenland  - Special Needs,Supported Living
Cambridgeshire County Council,25-Apr-19,51300866305,"-1,711.36",AFFINITY TRUST,CARE ESTABLISHMENT,LD - Fenland Locality,LD - Fenland  - Special Needs,Supported Living
Cambridgeshire County Council,25-Apr-19,51300866300,"-1,711.36",AFFINITY TRUST,CARE ESTABLISHMENT,LD - Fenland Locality,LD - Fenland  - Special Needs,Supported Living
Cambridgeshire County Council,25-Apr-19,51300857788,"-1,711.36",AFFINITY TRUST,CARE ESTABLISHMENT,LD - Fenland Locality,LD - Fenland  - Special Needs,Supported Living
Cambridgeshire County Council,25-Apr-19,51300866327,"-1,711.36",AFFINITY TRUST,CARE ESTABLISHMENT,LD - Fenland Locality,LD - Fenland  - Special Needs,Supported Living
Cambridgeshire County Council,25-Apr-19,51300883925,"-1,711.36",AFFINITY TRUST,CARE ESTABLISHMENT,LD - Fenland Locality,LD - Fenland  - Special Needs,Supported Living
Cambridgeshire County Council,25-Apr-19,51300857816,"-1,711.36",AFFINITY TRUST,CARE ESTABLISHMENT,LD - Fenland Locality,LD - Fenland  - Special Needs,Supported Living
Cambridgeshire County Council,25-Apr-19,51300866304,"-1,711.36",AFFINITY TRUST,CARE ESTABLISHMENT,LD - Fenland Locality,LD - Fenland  - Special Needs,Supported Living
Cambridgeshire County Council,25-Apr-19,51300866324,"-1,711.36",AFFINITY TRUST,CARE ESTABLISHMENT,LD - Fenland Locality,LD - Fenland  - Special Needs,Supported Living
Cambridgeshire County Council,25-Apr-19,51300883936,"-1,711.36",AFFINITY TRUST,CARE ESTABLISHMENT,LD - Fenland Locality,LD - Fenland  - Special Needs,Supported Living
Cambridgeshire County Council,25-Apr-19,51300883918,"-1,711.36",AFFINITY TRUST,CARE ESTABLISHMENT,LD - Fenland Locality,LD - Fenland  - Special Needs,Supported Living
Cambridgeshire County Council,18-Apr-19,51300824219,"-1,704.24",CONIFER LODGE,CARE ESTABLISHMENT,LD - City Locality,LD - City - Special Needs,Residential Care
Cambridgeshire County Council,18-Apr-19,51300824236,"-1,704.24",CONIFER LODGE,CARE ESTABLISHMENT,LD - City Locality,LD - City - Special Needs,Residential Care
Cambridgeshire County Council,18-Apr-19,51300824230,"-1,704.24",CONIFER LODGE,CARE ESTABLISHMENT,LD - City Locality,LD - City - Special Needs,Residential Care
Cambridgeshire County Council,18-Apr-19,51300824206,"-1,704.24",CONIFER LODGE,CARE ESTABLISHMENT,LD - City Locality,LD - City - Special Needs,Residential Care
Cambridgeshire County Council,18-Apr-19,51300824249,"-1,704.24",CONIFER LODGE,CARE ESTABLISHMENT,LD - City Locality,LD - City - Special Needs,Residential Care
Cambridgeshire County Council,18-Apr-19,51300824231,"-1,704.24",CONIFER LODGE,CARE ESTABLISHMENT,LD - City Locality,LD - City - Special Needs,Residential Care
Cambridgeshire County Council,11-Apr-19,51300818194,"-1,686.37",CARETECH COMMUNITY SERVICES,CARE ESTABLISHMENT,LD - City Locality,LD - City - Care,Residential Care
Cambridgeshire County Council,25-Apr-19,51300869613,"-1,622.57",HATLEY COURT HAVEN LTD,CARE ESTABLISHMENT,OP - City & South Locality,Older People - City & South,Residential Care
Cambridgeshire County Council,25-Apr-19,51300825375,"-1,601.58",CARETECH COMMUNITY SERVICES LTD (161 WOOTTON RD),CARE ESTABLISHMENT,LD - Hunts Locality,LD - Huntigndonshire  - Special Needs,Residential Care
Cambridgeshire County Council,18-Apr-19,51300815934,"-1,599.68",CONIFER LODGE,CARE ESTABLISHMENT,LD - Fenland Locality,LD - Fenland  - Special Needs,Residential Care
Cambridgeshire County Council,18-Apr-19,51300815949,"-1,599.68",CONIFER LODGE,CARE ESTABLISHMENT,LD - Fenland Locality,LD - Fenland  - Special Needs,Residential Care
Cambridgeshire County Council,18-Apr-19,51300815948,"-1,599.68",CONIFER LODGE,CARE ESTABLISHMENT,LD - Fenland Locality,LD - Fenland  - Special Needs,Residential Care
Cambridgeshire County Council,18-Apr-19,51300815957,"-1,599.68",CONIFER LODGE,CARE ESTABLISHMENT,LD - Fenland Locality,LD - Fenland  - Special Needs,Residential Care
Cambridgeshire County Council,18-Apr-19,51300815956,"-1,599.68",CONIFER LODGE,CARE ESTABLISHMENT,LD - Fenland Locality,LD - Fenland  - Special Needs,Residential Care
Cambridgeshire County Council,18-Apr-19,51300815920,"-1,599.68",CONIFER LODGE,CARE ESTABLISHMENT,LD - Fenland Locality,LD - Fenland  - Special Needs,Residential Care
Cambridgeshire County Council,11-Apr-19,51300828048,"-1,596.65",CARETECH COMMUNITY SERVICES,CARE ESTABLISHMENT,LD - South Locality,LD - South Cambs - Special Needs,Residential Care
Cambridgeshire County Council,11-Apr-19,51300828053,"-1,596.65",CARETECH COMMUNITY SERVICES,CARE ESTABLISHMENT,LD - South Locality,LD - South Cambs - Special Needs,Residential Care
Cambridgeshire County Council,11-Apr-19,51300828058,"-1,596.65",CARETECH COMMUNITY SERVICES,CARE ESTABLISHMENT,LD - South Locality,LD - South Cambs - Special Needs,Residential Care
Cambridgeshire County Council,11-Apr-19,51300828056,"-1,596.65",CARETECH COMMUNITY SERVICES,CARE ESTABLISHMENT,LD - South Locality,LD - South Cambs - Special Needs,Residential Care
Cambridgeshire County Council,11-Apr-19,51300828052,"-1,596.65",CARETECH COMMUNITY SERVICES,CARE ESTABLISHMENT,LD - South Locality,LD - South Cambs - Special Needs,Residential Care
Cambridgeshire County Council,11-Apr-19,51300828046,"-1,596.65",CARETECH COMMUNITY SERVICES,CARE ESTABLISHMENT,LD - South Locality,LD - South Cambs - Special Needs,Residential Care
Cambridgeshire County Council,18-Apr-19,51300823558,"-1,591.00",OAKLANDS,CARE ESTABLISHMENT,LD - Hunts Locality,LD - Huntigndonshire  - Special Needs,Residential Care
Cambridgeshire County Council,18-Apr-19,51300823571,"-1,591.00",OAKLANDS,CARE ESTABLISHMENT,LD - Hunts Locality,LD - Huntigndonshire  - Special Needs,Residential Care
Cambridgeshire County Council,18-Apr-19,51300823557,"-1,591.00",OAKLANDS,CARE ESTABLISHMENT,LD - Hunts Locality,LD - Huntigndonshire  - Special Needs,Residential Care
Cambridgeshire County Council,18-Apr-19,51300823544,"-1,591.00",OAKLANDS,CARE ESTABLISHMENT,LD - Hunts Locality,LD - Huntigndonshire  - Special Needs,Residential Care
Cambridgeshire County Council,18-Apr-19,51300823573,"-1,591.00",OAKLANDS,CARE ESTABLISHMENT,LD - Hunts Locality,LD - Huntigndonshire  - Special Needs,Residential Care
Cambridgeshire County Council,18-Apr-19,51300823563,"-1,591.00",OAKLANDS,CARE ESTABLISHMENT,LD - Hunts Locality,LD - Huntigndonshire  - Special Needs,Residential Care
Cambridgeshire County Council,25-Apr-19,51300821715,"-1,527.80",Accomplish Group Support Limited,CARE ESTABLISHMENT,LD - Hunts Locality,LD - Huntigndonshire  - Special Needs,Residential Care
Cambridgeshire County Council,25-Apr-19,51300811961,"-1,524.40",Accomplish Group Support Limited,CARE ESTABLISHMENT,LD - Hunts Locality,LD - Huntigndonshire  - Special Needs,Residential Care
Cambridgeshire County Council,11-Apr-19,51300818130,"-1,520.35",CARETECH COMMUNITY SERVICES,CARE ESTABLISHMENT,LD - City Locality,LD - City - Special Needs,Residential Care
Cambridgeshire County Council,05-Apr-19,51300810431,"-1,514.60",TARMAC TRADING LIMITED,COMPANY,Highways - Carriageway Mtce,Highways - Carriageway Mtce,Construction - External Professional Fees
Cambridgeshire County Council,25-Apr-19,51300834688,"-1,503.11",CAMBRIDGE MANOR CARE HOME (TLC),CARE ESTABLISHMENT,OPMH - City & South,Older People Mental Health City & South,Nursing Care
Cambridgeshire County Council,25-Apr-19,51300834687,"-1,503.11",CAMBRIDGE MANOR CARE HOME (TLC),CARE ESTABLISHMENT,OPMH - City & South,Older People Mental Health City & South,Nursing Care
Cambridgeshire County Council,18-Apr-19,51300824208,"-1,460.78",CONIFER LODGE,CARE ESTABLISHMENT,LD - City Locality,LD - City - Special Needs,Residential Care
Cambridgeshire County Council,25-Apr-19,51300815660,"-1,425.00",THE MARBROOK CENTRE,CARE ESTABLISHMENT,Physical Disablity,Countywide PD Service - Care,Nursing Care
Cambridgeshire County Council,25-Apr-19,51300815667,"-1,425.00",THE MARBROOK CENTRE,CARE ESTABLISHMENT,Physical Disablity,Countywide PD Service - Care,Nursing Care
Cambridgeshire County Council,18-Apr-19,51300840537,"-1,416.58",SENSE NATIONAL DEAF & BLIND,CARE ESTABLISHMENT,LD - East Locality,LD - East Cambs - Care,Residential Care
Cambridgeshire County Council,18-Apr-19,51300840538,"-1,416.58",SENSE NATIONAL DEAF & BLIND,CARE ESTABLISHMENT,LD - East Locality,LD - East Cambs - Care,Residential Care
Cambridgeshire County Council,18-Apr-19,51300840544,"-1,416.58",SENSE NATIONAL DEAF & BLIND,CARE ESTABLISHMENT,LD - East Locality,LD - East Cambs - Care,Residential Care
Cambridgeshire County Council,18-Apr-19,51300840555,"-1,416.58",SENSE NATIONAL DEAF & BLIND,CARE ESTABLISHMENT,LD - East Locality,LD - East Cambs - Care,Residential Care
Cambridgeshire County Council,18-Apr-19,51300840549,"-1,416.58",SENSE NATIONAL DEAF & BLIND,CARE ESTABLISHMENT,LD - East Locality,LD - East Cambs - Care,Residential Care
Cambridgeshire County Council,18-Apr-19,51300840546,"-1,416.58",SENSE NATIONAL DEAF & BLIND,CARE ESTABLISHMENT,LD - East Locality,LD - East Cambs - Care,Residential Care
Cambridgeshire County Council,18-Apr-19,51300840548,"-1,416.58",SENSE NATIONAL DEAF & BLIND,CARE ESTABLISHMENT,LD - East Locality,LD - East Cambs - Care,Residential Care
Cambridgeshire County Council,18-Apr-19,51300840556,"-1,416.58",SENSE NATIONAL DEAF & BLIND,CARE ESTABLISHMENT,LD - East Locality,LD - East Cambs - Care,Residential Care
Cambridgeshire County Council,25-Apr-19,51300894294,"-1,411.33",SOCIAL CARE SOLUTIONS LTD,CARE ESTABLISHMENT,LD - Fenland Locality,LD - Fenland  - Special Needs,Supported Living
Cambridgeshire County Council,05-Apr-19,51300846019,"-1,400.00",COTTENHAM COURT NURSING HOME,CARE ESTABLISHMENT,OP - East Cambs Locality,East Cambs - O P Team,Nursing Care
Cambridgeshire County Council,05-Apr-19,51300846011,"-1,400.00",COTTENHAM COURT NURSING HOME,CARE ESTABLISHMENT,OP - East Cambs Locality,East Cambs - O P Team,Nursing Care
Cambridgeshire County Council,05-Apr-19,51300846016,"-1,400.00",COTTENHAM COURT NURSING HOME,CARE ESTABLISHMENT,OP - East Cambs Locality,East Cambs - O P Team,Nursing Care
Cambridgeshire County Council,05-Apr-19,51300846015,"-1,400.00",COTTENHAM COURT NURSING HOME,CARE ESTABLISHMENT,OP - East Cambs Locality,East Cambs - O P Team,Nursing Care
Cambridgeshire County Council,05-Apr-19,51300846018,"-1,400.00",COTTENHAM COURT NURSING HOME,CARE ESTABLISHMENT,OP - East Cambs Locality,East Cambs - O P Team,Nursing Care
Cambridgeshire County Council,05-Apr-19,51300846022,"-1,400.00",COTTENHAM COURT NURSING HOME,CARE ESTABLISHMENT,OP - East Cambs Locality,East Cambs - O P Team,Nursing Care
Cambridgeshire County Council,05-Apr-19,51300846024,"-1,400.00",COTTENHAM COURT NURSING HOME,CARE ESTABLISHMENT,OP - East Cambs Locality,East Cambs - O P Team,Nursing Care
Cambridgeshire County Council,05-Apr-19,51300846020,"-1,400.00",COTTENHAM COURT NURSING HOME,CARE ESTABLISHMENT,OP - East Cambs Locality,East Cambs - O P Team,Nursing Care
Cambridgeshire County Council,05-Apr-19,51300846013,"-1,400.00",COTTENHAM COURT NURSING HOME,CARE ESTABLISHMENT,OP - East Cambs Locality,East Cambs - O P Team,Nursing Care
Cambridgeshire County Council,05-Apr-19,51300846050,"-1,400.00",COTTENHAM COURT NURSING HOME,CARE ESTABLISHMENT,OP - East Cambs Locality,East Cambs - O P Team,Nursing Care
Cambridgeshire County Council,05-Apr-19,51300846037,"-1,400.00",COTTENHAM COURT NURSING HOME,CARE ESTABLISHMENT,OP - East Cambs Locality,East Cambs - O P Team,Nursing Care
Cambridgeshire County Council,05-Apr-19,51300846014,"-1,400.00",COTTENHAM COURT NURSING HOME,CARE ESTABLISHMENT,OP - East Cambs Locality,East Cambs - O P Team,Nursing Care
Cambridgeshire County Council,05-Apr-19,51300846031,"-1,400.00",COTTENHAM COURT NURSING HOME,CARE ESTABLISHMENT,OP - East Cambs Locality,East Cambs - O P Team,Nursing Care
Cambridgeshire County Council,05-Apr-19,51300846044,"-1,400.00",COTTENHAM COURT NURSING HOME,CARE ESTABLISHMENT,OP - East Cambs Locality,East Cambs - O P Team,Nursing Care
Cambridgeshire County Council,25-Apr-19,51300833048,"-1,395.00",THE MARBROOK CENTRE,CARE ESTABLISHMENT,OPMH - Hunts & Fens,Older People Mental Health Fenland,Nursing Care
Cambridgeshire County Council,25-Apr-19,51300833053,"-1,395.00",THE MARBROOK CENTRE,CARE ESTABLISHMENT,OPMH - Hunts & Fens,Older People Mental Health Fenland,Nursing Care
Cambridgeshire County Council,11-Apr-19,51300838963,"-1,388.54",CARETECH COMMUNITY SERVICES,CARE ESTABLISHMENT,LD - Hunts Locality,LD - Huntigndonshire  - Special Needs,Residential Care
Cambridgeshire County Council,11-Apr-19,51300838970,"-1,388.54",CARETECH COMMUNITY SERVICES,CARE ESTABLISHMENT,LD - Hunts Locality,LD - Huntigndonshire  - Special Needs,Residential Care
Cambridgeshire County Council,11-Apr-19,51300838952,"-1,388.54",CARETECH COMMUNITY SERVICES,CARE ESTABLISHMENT,LD - Hunts Locality,LD - Huntigndonshire  - Special Needs,Residential Care
Cambridgeshire County Council,11-Apr-19,51300838954,"-1,388.54",CARETECH COMMUNITY SERVICES,CARE ESTABLISHMENT,LD - Hunts Locality,LD - Huntigndonshire  - Special Needs,Residential Care
Cambridgeshire County Council,11-Apr-19,51300838961,"-1,388.54",CARETECH COMMUNITY SERVICES,CARE ESTABLISHMENT,LD - Hunts Locality,LD - Huntigndonshire  - Special Needs,Residential Care
Cambridgeshire County Council,11-Apr-19,51300838960,"-1,388.54",CARETECH COMMUNITY SERVICES,CARE ESTABLISHMENT,LD - Hunts Locality,LD - Huntigndonshire  - Special Needs,Residential Care
Cambridgeshire County Council,11-Apr-19,51300838967,"-1,388.54",CARETECH COMMUNITY SERVICES,CARE ESTABLISHMENT,LD - Hunts Locality,LD - Huntigndonshire  - Special Needs,Residential Care
Cambridgeshire County Council,11-Apr-19,51300838951,"-1,388.54",CARETECH COMMUNITY SERVICES,CARE ESTABLISHMENT,LD - Hunts Locality,LD - Huntigndonshire  - Special Needs,Residential Care
Cambridgeshire County Council,18-Apr-19,51300865713,"-1,386.53",VOYAGE,CARE ESTABLISHMENT,LD - South Locality,LD - South Cambs - Special Needs,Residential Care
Cambridgeshire County Council,18-Apr-19,51300865721,"-1,386.53",VOYAGE,CARE ESTABLISHMENT,LD - South Locality,LD - South Cambs - Special Needs,Residential Care
Cambridgeshire County Council,18-Apr-19,51300865718,"-1,386.53",VOYAGE,CARE ESTABLISHMENT,LD - South Locality,LD - South Cambs - Special Needs,Residential Care
Cambridgeshire County Council,18-Apr-19,51300865722,"-1,386.53",VOYAGE,CARE ESTABLISHMENT,LD - South Locality,LD - South Cambs - Special Needs,Residential Care
Cambridgeshire County Council,18-Apr-19,51300865725,"-1,386.53",VOYAGE,CARE ESTABLISHMENT,LD - South Locality,LD - South Cambs - Special Needs,Residential Care
Cambridgeshire County Council,18-Apr-19,51300865716,"-1,386.53",VOYAGE,CARE ESTABLISHMENT,LD - South Locality,LD - South Cambs - Special Needs,Residential Care
Cambridgeshire County Council,18-Apr-19,51300865729,"-1,386.53",VOYAGE,CARE ESTABLISHMENT,LD - South Locality,LD - South Cambs - Special Needs,Residential Care
Cambridgeshire County Council,18-Apr-19,51300865710,"-1,386.53",VOYAGE,CARE ESTABLISHMENT,LD - South Locality,LD - South Cambs - Special Needs,Residential Care
Cambridgeshire County Council,18-Apr-19,51300865735,"-1,386.53",VOYAGE,CARE ESTABLISHMENT,LD - South Locality,LD - South Cambs - Special Needs,Residential Care
Cambridgeshire County Council,18-Apr-19,51300865723,"-1,386.53",VOYAGE,CARE ESTABLISHMENT,LD - South Locality,LD - South Cambs - Special Needs,Residential Care
Cambridgeshire County Council,18-Apr-19,51300865720,"-1,386.53",VOYAGE,CARE ESTABLISHMENT,LD - South Locality,LD - South Cambs - Special Needs,Residential Care
Cambridgeshire County Council,25-Apr-19,51300869310,"-1,381.71",BUCHAN HEALTHCARE LTD,CARE ESTABLISHMENT,OP - City & South Blocks,City and South - Long term blocks,Nursing Care
Cambridgeshire County Council,18-Apr-19,51300815896,"-1,371.15",CONIFER LODGE,CARE ESTABLISHMENT,LD - Fenland Locality,LD - Fenland  - Special Needs,Residential Care
Cambridgeshire County Council,11-Apr-19,51300828061,"-1,368.56",CARETECH COMMUNITY SERVICES,CARE ESTABLISHMENT,LD - South Locality,LD - South Cambs - Special Needs,Residential Care
Cambridgeshire County Council,18-Apr-19,51300823577,"-1,363.71",OAKLANDS,CARE ESTABLISHMENT,LD - Hunts Locality,LD - Huntigndonshire  - Special Needs,Residential Care
Cambridgeshire County Council,25-Apr-19,51300819859,"-1,349.70",THE MARBROOK CENTRE,CARE ESTABLISHMENT,OPMH - City & South,Older People Mental Health City & South,Nursing Care
Cambridgeshire County Council,25-Apr-19,51300819858,"-1,349.70",THE MARBROOK CENTRE,CARE ESTABLISHMENT,OPMH - City & South,Older People Mental Health City & South,Nursing Care
Cambridgeshire County Council,25-Apr-19,51300815032,"-1,333.46",EAGLE WOOD NEUROLOGICAL CARE,CARE ESTABLISHMENT,OPMH - City & South,Older People Mental Health City & South,Nursing Care
Cambridgeshire County Council,25-Apr-19,51300815033,"-1,333.46",EAGLE WOOD NEUROLOGICAL CARE,CARE ESTABLISHMENT,OPMH - City & South,Older People Mental Health City & South,Nursing Care
Cambridgeshire County Council,17-Apr-19,51300846561,"-1,317.11",ALDERTON HOUSE,CARE ESTABLISHMENT,LD - East Locality,LD - East Cambs - Special Needs,Residential Care
Cambridgeshire County Council,17-Apr-19,51300846629,"-1,317.11",ALDERTON HOUSE,CARE ESTABLISHMENT,LD - East Locality,LD - East Cambs - Special Needs,Residential Care
Cambridgeshire County Council,17-Apr-19,51300855350,"-1,317.11",ALDERTON HOUSE,CARE ESTABLISHMENT,LD - East Locality,LD - East Cambs - Special Needs,Residential Care
Cambridgeshire County Council,17-Apr-19,51300846535,"-1,317.11",ALDERTON HOUSE,CARE ESTABLISHMENT,LD - East Locality,LD - East Cambs - Special Needs,Residential Care
Cambridgeshire County Council,17-Apr-19,51300846556,"-1,317.11",ALDERTON HOUSE,CARE ESTABLISHMENT,LD - East Locality,LD - East Cambs - Special Needs,Residential Care
Cambridgeshire County Council,17-Apr-19,51300855378,"-1,317.11",ALDERTON HOUSE,CARE ESTABLISHMENT,LD - East Locality,LD - East Cambs - Special Needs,Residential Care
Cambridgeshire County Council,17-Apr-19,51300855450,"-1,317.11",ALDERTON HOUSE,CARE ESTABLISHMENT,LD - East Locality,LD - East Cambs - Special Needs,Residential Care
Cambridgeshire County Council,17-Apr-19,51300855440,"-1,317.11",ALDERTON HOUSE,CARE ESTABLISHMENT,LD - East Locality,LD - East Cambs - Special Needs,Residential Care
Cambridgeshire County Council,17-Apr-19,51300846620,"-1,317.11",ALDERTON HOUSE,CARE ESTABLISHMENT,LD - East Locality,LD - East Cambs - Special Needs,Residential Care
Cambridgeshire County Council,17-Apr-19,51300855395,"-1,317.11",ALDERTON HOUSE,CARE ESTABLISHMENT,LD - East Locality,LD - East Cambs - Special Needs,Residential Care
Cambridgeshire County Council,17-Apr-19,51300846623,"-1,317.11",ALDERTON HOUSE,CARE ESTABLISHMENT,LD - East Locality,LD - East Cambs - Special Needs,Residential Care
Cambridgeshire County Council,17-Apr-19,51300846630,"-1,317.11",ALDERTON HOUSE,CARE ESTABLISHMENT,LD - East Locality,LD - East Cambs - Special Needs,Residential Care
Cambridgeshire County Council,17-Apr-19,51300855367,"-1,317.11",ALDERTON HOUSE,CARE ESTABLISHMENT,LD - East Locality,LD - East Cambs - Special Needs,Residential Care
Cambridgeshire County Council,17-Apr-19,51300855388,"-1,317.11",ALDERTON HOUSE,CARE ESTABLISHMENT,LD - East Locality,LD - East Cambs - Special Needs,Residential Care
Cambridgeshire County Council,17-Apr-19,51300846508,"-1,317.11",ALDERTON HOUSE,CARE ESTABLISHMENT,LD - East Locality,LD - East Cambs - Special Needs,Residential Care
Cambridgeshire County Council,17-Apr-19,51300846572,"-1,317.11",ALDERTON HOUSE,CARE ESTABLISHMENT,LD - East Locality,LD - East Cambs - Special Needs,Residential Care
Cambridgeshire County Council,17-Apr-19,51300846596,"-1,317.11",ALDERTON HOUSE,CARE ESTABLISHMENT,LD - East Locality,LD - East Cambs - Special Needs,Residential Care
Cambridgeshire County Council,17-Apr-19,51300846607,"-1,317.11",ALDERTON HOUSE,CARE ESTABLISHMENT,LD - East Locality,LD - East Cambs - Special Needs,Residential Care
Cambridgeshire County Council,17-Apr-19,51300855383,"-1,317.11",ALDERTON HOUSE,CARE ESTABLISHMENT,LD - East Locality,LD - East Cambs - Special Needs,Residential Care
Cambridgeshire County Council,17-Apr-19,51300855397,"-1,317.11",ALDERTON HOUSE,CARE ESTABLISHMENT,LD - East Locality,LD - East Cambs - Special Needs,Residential Care
Cambridgeshire County Council,17-Apr-19,51300855410,"-1,317.11",ALDERTON HOUSE,CARE ESTABLISHMENT,LD - East Locality,LD - East Cambs - Special Needs,Residential Care
Cambridgeshire County Council,17-Apr-19,51300855439,"-1,317.11",ALDERTON HOUSE,CARE ESTABLISHMENT,LD - East Locality,LD - East Cambs - Special Needs,Residential Care
Cambridgeshire County Council,17-Apr-19,51300855448,"-1,317.11",ALDERTON HOUSE,CARE ESTABLISHMENT,LD - East Locality,LD - East Cambs - Special Needs,Residential Care
Cambridgeshire County Council,17-Apr-19,51300855453,"-1,317.11",ALDERTON HOUSE,CARE ESTABLISHMENT,LD - East Locality,LD - East Cambs - Special Needs,Residential Care
Cambridgeshire County Council,17-Apr-19,51300846520,"-1,317.11",ALDERTON HOUSE,CARE ESTABLISHMENT,LD - East Locality,LD - East Cambs - Special Needs,Residential Care
Cambridgeshire County Council,17-Apr-19,51300855407,"-1,317.11",ALDERTON HOUSE,CARE ESTABLISHMENT,LD - East Locality,LD - East Cambs - Special Needs,Residential Care
Cambridgeshire County Council,17-Apr-19,51300855461,"-1,317.11",ALDERTON HOUSE,CARE ESTABLISHMENT,LD - East Locality,LD - East Cambs - Special Needs,Residential Care
Cambridgeshire County Council,17-Apr-19,51300846507,"-1,317.11",ALDERTON HOUSE,CARE ESTABLISHMENT,LD - East Locality,LD - East Cambs - Special Needs,Residential Care
Cambridgeshire County Council,17-Apr-19,51300855357,"-1,317.11",ALDERTON HOUSE,CARE ESTABLISHMENT,LD - East Locality,LD - East Cambs - Special Needs,Residential Care
Cambridgeshire County Council,17-Apr-19,51300855416,"-1,317.11",ALDERTON HOUSE,CARE ESTABLISHMENT,LD - East Locality,LD - East Cambs - Special Needs,Residential Care
Cambridgeshire County Council,17-Apr-19,51300846491,"-1,317.11",ALDERTON HOUSE,CARE ESTABLISHMENT,LD - East Locality,LD - East Cambs - Special Needs,Residential Care
Cambridgeshire County Council,17-Apr-19,51300846544,"-1,317.11",ALDERTON HOUSE,CARE ESTABLISHMENT,LD - East Locality,LD - East Cambs - Special Needs,Residential Care
Cambridgeshire County Council,17-Apr-19,51300846566,"-1,317.11",ALDERTON HOUSE,CARE ESTABLISHMENT,LD - East Locality,LD - East Cambs - Special Needs,Residential Care
Cambridgeshire County Council,17-Apr-19,51300846545,"-1,317.11",ALDERTON HOUSE,CARE ESTABLISHMENT,LD - East Locality,LD - East Cambs - Care,Residential Care
Cambridgeshire County Council,17-Apr-19,51300846628,"-1,317.11",ALDERTON HOUSE,CARE ESTABLISHMENT,LD - East Locality,LD - East Cambs - Care,Residential Care
Cambridgeshire County Council,17-Apr-19,51300846640,"-1,317.11",ALDERTON HOUSE,CARE ESTABLISHMENT,LD - East Locality,LD - East Cambs - Care,Residential Care
Cambridgeshire County Council,17-Apr-19,51300855389,"-1,317.11",ALDERTON HOUSE,CARE ESTABLISHMENT,LD - East Locality,LD - East Cambs - Care,Residential Care
Cambridgeshire County Council,17-Apr-19,51300855390,"-1,317.11",ALDERTON HOUSE,CARE ESTABLISHMENT,LD - East Locality,LD - East Cambs - Care,Residential Care
Cambridgeshire County Council,17-Apr-19,51300855400,"-1,317.11",ALDERTON HOUSE,CARE ESTABLISHMENT,LD - East Locality,LD - East Cambs - Care,Residential Care
Cambridgeshire County Council,17-Apr-19,51300855402,"-1,317.11",ALDERTON HOUSE,CARE ESTABLISHMENT,LD - East Locality,LD - East Cambs - Care,Residential Care
Cambridgeshire County Council,17-Apr-19,51300855441,"-1,317.11",ALDERTON HOUSE,CARE ESTABLISHMENT,LD - East Locality,LD - East Cambs - Care,Residential Care
Cambridgeshire County Council,17-Apr-19,51300855446,"-1,317.11",ALDERTON HOUSE,CARE ESTABLISHMENT,LD - East Locality,LD - East Cambs - Care,Residential Care
Cambridgeshire County Council,17-Apr-19,51300855464,"-1,317.11",ALDERTON HOUSE,CARE ESTABLISHMENT,LD - East Locality,LD - East Cambs - Care,Residential Care
Cambridgeshire County Council,17-Apr-19,51300846492,"-1,317.11",ALDERTON HOUSE,CARE ESTABLISHMENT,LD - East Locality,LD - East Cambs - Care,Residential Care
Cambridgeshire County Council,17-Apr-19,51300846502,"-1,317.11",ALDERTON HOUSE,CARE ESTABLISHMENT,LD - East Locality,LD - East Cambs - Care,Residential Care
Cambridgeshire County Council,17-Apr-19,51300846588,"-1,317.11",ALDERTON HOUSE,CARE ESTABLISHMENT,LD - East Locality,LD - East Cambs - Care,Residential Care
Cambridgeshire County Council,17-Apr-19,51300846594,"-1,317.11",ALDERTON HOUSE,CARE ESTABLISHMENT,LD - East Locality,LD - East Cambs - Care,Residential Care
Cambridgeshire County Council,17-Apr-19,51300846651,"-1,317.11",ALDERTON HOUSE,CARE ESTABLISHMENT,LD - East Locality,LD - East Cambs - Care,Residential Care
Cambridgeshire County Council,17-Apr-19,51300855356,"-1,317.11",ALDERTON HOUSE,CARE ESTABLISHMENT,LD - East Locality,LD - East Cambs - Care,Residential Care
Cambridgeshire County Council,17-Apr-19,51300855379,"-1,317.11",ALDERTON HOUSE,CARE ESTABLISHMENT,LD - East Locality,LD - East Cambs - Care,Residential Care
Cambridgeshire County Council,17-Apr-19,51300855380,"-1,317.11",ALDERTON HOUSE,CARE ESTABLISHMENT,LD - East Locality,LD - East Cambs - Care,Residential Care
Cambridgeshire County Council,17-Apr-19,51300846536,"-1,317.11",ALDERTON HOUSE,CARE ESTABLISHMENT,LD - East Locality,LD - East Cambs - Care,Residential Care
Cambridgeshire County Council,17-Apr-19,51300855452,"-1,317.11",ALDERTON HOUSE,CARE ESTABLISHMENT,LD - East Locality,LD - East Cambs - Care,Residential Care
Cambridgeshire County Council,17-Apr-19,51300855456,"-1,317.11",ALDERTON HOUSE,CARE ESTABLISHMENT,LD - East Locality,LD - East Cambs - Care,Residential Care
Cambridgeshire County Council,17-Apr-19,51300846519,"-1,317.11",ALDERTON HOUSE,CARE ESTABLISHMENT,LD - East Locality,LD - East Cambs - Care,Residential Care
Cambridgeshire County Council,17-Apr-19,51300846529,"-1,317.11",ALDERTON HOUSE,CARE ESTABLISHMENT,LD - East Locality,LD - East Cambs - Care,Residential Care
Cambridgeshire County Council,17-Apr-19,51300846539,"-1,317.11",ALDERTON HOUSE,CARE ESTABLISHMENT,LD - East Locality,LD - East Cambs - Care,Residential Care
Cambridgeshire County Council,17-Apr-19,51300846604,"-1,317.11",ALDERTON HOUSE,CARE ESTABLISHMENT,LD - East Locality,LD - East Cambs - Care,Residential Care
Cambridgeshire County Council,17-Apr-19,51300846615,"-1,317.11",ALDERTON HOUSE,CARE ESTABLISHMENT,LD - East Locality,LD - East Cambs - Care,Residential Care
Cambridgeshire County Council,17-Apr-19,51300855346,"-1,317.11",ALDERTON HOUSE,CARE ESTABLISHMENT,LD - East Locality,LD - East Cambs - Care,Residential Care
Cambridgeshire County Council,17-Apr-19,51300855353,"-1,317.11",ALDERTON HOUSE,CARE ESTABLISHMENT,LD - East Locality,LD - East Cambs - Care,Residential Care
Cambridgeshire County Council,17-Apr-19,51300855427,"-1,317.11",ALDERTON HOUSE,CARE ESTABLISHMENT,LD - East Locality,LD - East Cambs - Care,Residential Care
Cambridgeshire County Council,17-Apr-19,51300855429,"-1,317.11",ALDERTON HOUSE,CARE ESTABLISHMENT,LD - East Locality,LD - East Cambs - Care,Residential Care
Cambridgeshire County Council,17-Apr-19,51300855465,"-1,317.11",ALDERTON HOUSE,CARE ESTABLISHMENT,LD - East Locality,LD - East Cambs - Care,Residential Care
Cambridgeshire County Council,17-Apr-19,51300846619,"-1,317.11",ALDERTON HOUSE,CARE ESTABLISHMENT,LD - East Locality,LD - East Cambs - Special Needs,Residential Care
Cambridgeshire County Council,17-Apr-19,51300855369,"-1,317.11",ALDERTON HOUSE,CARE ESTABLISHMENT,LD - East Locality,LD - East Cambs - Special Needs,Residential Care
Cambridgeshire County Council,17-Apr-19,51300855368,"-1,317.11",ALDERTON HOUSE,CARE ESTABLISHMENT,LD - East Locality,LD - East Cambs - Special Needs,Residential Care
Cambridgeshire County Council,17-Apr-19,51300855376,"-1,317.11",ALDERTON HOUSE,CARE ESTABLISHMENT,LD - East Locality,LD - East Cambs - Special Needs,Residential Care
Cambridgeshire County Council,17-Apr-19,51300855392,"-1,317.11",ALDERTON HOUSE,CARE ESTABLISHMENT,LD - East Locality,LD - East Cambs - Special Needs,Residential Care
Cambridgeshire County Council,17-Apr-19,51300855399,"-1,317.11",ALDERTON HOUSE,CARE ESTABLISHMENT,LD - East Locality,LD - East Cambs - Special Needs,Residential Care
Cambridgeshire County Council,17-Apr-19,51300855412,"-1,317.11",ALDERTON HOUSE,CARE ESTABLISHMENT,LD - East Locality,LD - East Cambs - Special Needs,Residential Care
Cambridgeshire County Council,17-Apr-19,51300855425,"-1,317.11",ALDERTON HOUSE,CARE ESTABLISHMENT,LD - East Locality,LD - East Cambs - Special Needs,Residential Care
Cambridgeshire County Council,17-Apr-19,51300855438,"-1,317.11",ALDERTON HOUSE,CARE ESTABLISHMENT,LD - East Locality,LD - East Cambs - Special Needs,Residential Care
Cambridgeshire County Council,17-Apr-19,51300855445,"-1,317.11",ALDERTON HOUSE,CARE ESTABLISHMENT,LD - East Locality,LD - East Cambs - Special Needs,Residential Care
Cambridgeshire County Council,17-Apr-19,51300855466,"-1,317.11",ALDERTON HOUSE,CARE ESTABLISHMENT,LD - East Locality,LD - East Cambs - Special Needs,Residential Care
Cambridgeshire County Council,17-Apr-19,51300846622,"-1,317.11",ALDERTON HOUSE,CARE ESTABLISHMENT,LD - East Locality,LD - East Cambs - Care,Residential Care
Cambridgeshire County Council,17-Apr-19,51300855365,"-1,317.11",ALDERTON HOUSE,CARE ESTABLISHMENT,LD - East Locality,LD - East Cambs - Care,Residential Care
Cambridgeshire County Council,17-Apr-19,51300855411,"-1,317.11",ALDERTON HOUSE,CARE ESTABLISHMENT,LD - East Locality,LD - East Cambs - Care,Residential Care
Cambridgeshire County Council,17-Apr-19,51300846518,"-1,317.11",ALDERTON HOUSE,CARE ESTABLISHMENT,LD - East Locality,LD - East Cambs - Care,Residential Care
Cambridgeshire County Council,17-Apr-19,51300846534,"-1,317.11",ALDERTON HOUSE,CARE ESTABLISHMENT,LD - East Locality,LD - East Cambs - Care,Residential Care
Cambridgeshire County Council,17-Apr-19,51300846549,"-1,317.11",ALDERTON HOUSE,CARE ESTABLISHMENT,LD - East Locality,LD - East Cambs - Care,Residential Care
Cambridgeshire County Council,17-Apr-19,51300846571,"-1,317.11",ALDERTON HOUSE,CARE ESTABLISHMENT,LD - East Locality,LD - East Cambs - Care,Residential Care
Cambridgeshire County Council,17-Apr-19,51300846601,"-1,317.11",ALDERTON HOUSE,CARE ESTABLISHMENT,LD - East Locality,LD - East Cambs - Care,Residential Care
Cambridgeshire County Council,17-Apr-19,51300846602,"-1,317.11",ALDERTON HOUSE,CARE ESTABLISHMENT,LD - East Locality,LD - East Cambs - Care,Residential Care
Cambridgeshire County Council,17-Apr-19,51300846636,"-1,317.11",ALDERTON HOUSE,CARE ESTABLISHMENT,LD - East Locality,LD - East Cambs - Care,Residential Care
Cambridgeshire County Council,17-Apr-19,51300846523,"-1,317.11",ALDERTON HOUSE,CARE ESTABLISHMENT,LD - East Locality,LD - East Cambs - Care,Residential Care
Cambridgeshire County Council,17-Apr-19,51300846591,"-1,317.11",ALDERTON HOUSE,CARE ESTABLISHMENT,LD - East Locality,LD - East Cambs - Care,Residential Care
Cambridgeshire County Council,17-Apr-19,51300855391,"-1,317.11",ALDERTON HOUSE,CARE ESTABLISHMENT,LD - East Locality,LD - East Cambs - Care,Residential Care
Cambridgeshire County Council,17-Apr-19,51300846540,"-1,317.11",ALDERTON HOUSE,CARE ESTABLISHMENT,LD - East Locality,LD - East Cambs - Care,Residential Care
Cambridgeshire County Council,17-Apr-19,51300846614,"-1,317.11",ALDERTON HOUSE,CARE ESTABLISHMENT,LD - East Locality,LD - East Cambs - Care,Residential Care
Cambridgeshire County Council,17-Apr-19,51300855435,"-1,317.11",ALDERTON HOUSE,CARE ESTABLISHMENT,LD - East Locality,LD - East Cambs - Care,Residential Care
Cambridgeshire County Council,17-Apr-19,51300846583,"-1,317.11",ALDERTON HOUSE,CARE ESTABLISHMENT,LD - East Locality,LD - East Cambs - Care,Residential Care
Cambridgeshire County Council,17-Apr-19,51300846494,"-1,317.11",ALDERTON HOUSE,CARE ESTABLISHMENT,LD - East Locality,LD - East Cambs - Care,Residential Care
Cambridgeshire County Council,17-Apr-19,51300855417,"-1,317.11",ALDERTON HOUSE,CARE ESTABLISHMENT,LD - East Locality,LD - East Cambs - Care,Residential Care
Cambridgeshire County Council,17-Apr-19,51300846590,"-1,317.11",ALDERTON HOUSE,CARE ESTABLISHMENT,LD - East Locality,LD - East Cambs - Care,Residential Care
Cambridgeshire County Council,17-Apr-19,51300855363,"-1,317.11",ALDERTON HOUSE,CARE ESTABLISHMENT,LD - East Locality,LD - East Cambs - Care,Residential Care
Cambridgeshire County Council,17-Apr-19,51300846528,"-1,317.11",ALDERTON HOUSE,CARE ESTABLISHMENT,LD - East Locality,LD - East Cambs - Care,Residential Care
Cambridgeshire County Council,17-Apr-19,51300846493,"-1,317.11",ALDERTON HOUSE,CARE ESTABLISHMENT,LD - East Locality,LD - East Cambs - Special Needs,Residential Care
Cambridgeshire County Council,17-Apr-19,51300846515,"-1,317.11",ALDERTON HOUSE,CARE ESTABLISHMENT,LD - East Locality,LD - East Cambs - Special Needs,Residential Care
Cambridgeshire County Council,17-Apr-19,51300846538,"-1,317.11",ALDERTON HOUSE,CARE ESTABLISHMENT,LD - East Locality,LD - East Cambs - Special Needs,Residential Care
Cambridgeshire County Council,17-Apr-19,51300846592,"-1,317.11",ALDERTON HOUSE,CARE ESTABLISHMENT,LD - East Locality,LD - East Cambs - Special Needs,Residential Care
Cambridgeshire County Council,17-Apr-19,51300846603,"-1,317.11",ALDERTON HOUSE,CARE ESTABLISHMENT,LD - East Locality,LD - East Cambs - Special Needs,Residential Care
Cambridgeshire County Council,17-Apr-19,51300846626,"-1,317.11",ALDERTON HOUSE,CARE ESTABLISHMENT,LD - East Locality,LD - East Cambs - Special Needs,Residential Care
Cambridgeshire County Council,17-Apr-19,51300855348,"-1,317.11",ALDERTON HOUSE,CARE ESTABLISHMENT,LD - East Locality,LD - East Cambs - Special Needs,Residential Care
Cambridgeshire County Council,17-Apr-19,51300855354,"-1,317.11",ALDERTON HOUSE,CARE ESTABLISHMENT,LD - East Locality,LD - East Cambs - Special Needs,Residential Care
Cambridgeshire County Council,17-Apr-19,51300855434,"-1,317.11",ALDERTON HOUSE,CARE ESTABLISHMENT,LD - East Locality,LD - East Cambs - Special Needs,Residential Care
Cambridgeshire County Council,25-Apr-19,51300865295,"-1,317.11",ALDERTON HOUSE,CARE ESTABLISHMENT,LD - East Locality,LD - East Cambs - Special Needs,Residential Care
Cambridgeshire County Council,25-Apr-19,51300876790,"-1,317.11",ALDERTON HOUSE,CARE ESTABLISHMENT,LD - East Locality,LD - East Cambs - Special Needs,Residential Care
Cambridgeshire County Council,25-Apr-19,51300865248,"-1,317.11",ALDERTON HOUSE,CARE ESTABLISHMENT,LD - East Locality,LD - East Cambs - Special Needs,Residential Care
Cambridgeshire County Council,25-Apr-19,51300876772,"-1,317.11",ALDERTON HOUSE,CARE ESTABLISHMENT,LD - East Locality,LD - East Cambs - Special Needs,Residential Care
Cambridgeshire County Council,25-Apr-19,51300876747,"-1,317.11",ALDERTON HOUSE,CARE ESTABLISHMENT,LD - East Locality,LD - East Cambs - Special Needs,Residential Care
Cambridgeshire County Council,25-Apr-19,51300876759,"-1,317.11",ALDERTON HOUSE,CARE ESTABLISHMENT,LD - East Locality,LD - East Cambs - Special Needs,Residential Care
Cambridgeshire County Council,25-Apr-19,51300865251,"-1,317.11",ALDERTON HOUSE,CARE ESTABLISHMENT,LD - East Locality,LD - East Cambs - Special Needs,Residential Care
Cambridgeshire County Council,25-Apr-19,51300876749,"-1,317.11",ALDERTON HOUSE,CARE ESTABLISHMENT,LD - East Locality,LD - East Cambs - Special Needs,Residential Care
Cambridgeshire County Council,25-Apr-19,51300876823,"-1,317.11",ALDERTON HOUSE,CARE ESTABLISHMENT,LD - East Locality,LD - East Cambs - Special Needs,Residential Care
Cambridgeshire County Council,25-Apr-19,51300865315,"-1,317.11",ALDERTON HOUSE,CARE ESTABLISHMENT,LD - East Locality,LD - East Cambs - Special Needs,Residential Care
Cambridgeshire County Council,25-Apr-19,51300865285,"-1,317.11",ALDERTON HOUSE,CARE ESTABLISHMENT,LD - East Locality,LD - East Cambs - Special Needs,Residential Care
Cambridgeshire County Council,25-Apr-19,51300865245,"-1,317.11",ALDERTON HOUSE,CARE ESTABLISHMENT,LD - East Locality,LD - East Cambs - Special Needs,Residential Care
Cambridgeshire County Council,25-Apr-19,51300865308,"-1,317.11",ALDERTON HOUSE,CARE ESTABLISHMENT,LD - East Locality,LD - East Cambs - Special Needs,Residential Care
Cambridgeshire County Council,25-Apr-19,51300865332,"-1,317.11",ALDERTON HOUSE,CARE ESTABLISHMENT,LD - East Locality,LD - East Cambs - Special Needs,Residential Care
Cambridgeshire County Council,25-Apr-19,51300865336,"-1,317.11",ALDERTON HOUSE,CARE ESTABLISHMENT,LD - East Locality,LD - East Cambs - Special Needs,Residential Care
Cambridgeshire County Council,25-Apr-19,51300865346,"-1,317.11",ALDERTON HOUSE,CARE ESTABLISHMENT,LD - East Locality,LD - East Cambs - Special Needs,Residential Care
Cambridgeshire County Council,25-Apr-19,51300876663,"-1,317.11",ALDERTON HOUSE,CARE ESTABLISHMENT,LD - East Locality,LD - East Cambs - Special Needs,Residential Care
Cambridgeshire County Council,25-Apr-19,51300865351,"-1,317.11",ALDERTON HOUSE,CARE ESTABLISHMENT,LD - East Locality,LD - East Cambs - Special Needs,Residential Care
Cambridgeshire County Council,25-Apr-19,51300876761,"-1,317.11",ALDERTON HOUSE,CARE ESTABLISHMENT,LD - East Locality,LD - East Cambs - Special Needs,Residential Care
Cambridgeshire County Council,25-Apr-19,51300865322,"-1,317.11",ALDERTON HOUSE,CARE ESTABLISHMENT,LD - East Locality,LD - East Cambs - Special Needs,Residential Care
Cambridgeshire County Council,25-Apr-19,51300865249,"-1,317.11",ALDERTON HOUSE,CARE ESTABLISHMENT,LD - East Locality,LD - East Cambs - Special Needs,Residential Care
Cambridgeshire County Council,25-Apr-19,51300865302,"-1,317.11",ALDERTON HOUSE,CARE ESTABLISHMENT,LD - East Locality,LD - East Cambs - Special Needs,Residential Care
Cambridgeshire County Council,25-Apr-19,51300865350,"-1,317.11",ALDERTON HOUSE,CARE ESTABLISHMENT,LD - East Locality,LD - East Cambs - Special Needs,Residential Care
Cambridgeshire County Council,25-Apr-19,51300876795,"-1,317.11",ALDERTON HOUSE,CARE ESTABLISHMENT,LD - East Locality,LD - East Cambs - Special Needs,Residential Care
Cambridgeshire County Council,25-Apr-19,51300876832,"-1,317.11",ALDERTON HOUSE,CARE ESTABLISHMENT,LD - East Locality,LD - East Cambs - Special Needs,Residential Care
Cambridgeshire County Council,25-Apr-19,51300865358,"-1,317.11",ALDERTON HOUSE,CARE ESTABLISHMENT,LD - East Locality,LD - East Cambs - Special Needs,Residential Care
Cambridgeshire County Council,25-Apr-19,51300865265,"-1,317.11",ALDERTON HOUSE,CARE ESTABLISHMENT,LD - East Locality,LD - East Cambs - Special Needs,Residential Care
Cambridgeshire County Council,25-Apr-19,51300876662,"-1,317.11",ALDERTON HOUSE,CARE ESTABLISHMENT,LD - East Locality,LD - East Cambs - Special Needs,Residential Care
Cambridgeshire County Council,25-Apr-19,51300876704,"-1,317.11",ALDERTON HOUSE,CARE ESTABLISHMENT,LD - East Locality,LD - East Cambs - Special Needs,Residential Care
Cambridgeshire County Council,25-Apr-19,51300865341,"-1,317.11",ALDERTON HOUSE,CARE ESTABLISHMENT,LD - East Locality,LD - East Cambs - Special Needs,Residential Care
Cambridgeshire County Council,25-Apr-19,51300865306,"-1,317.11",ALDERTON HOUSE,CARE ESTABLISHMENT,LD - East Locality,LD - East Cambs - Special Needs,Residential Care
Cambridgeshire County Council,25-Apr-19,51300865280,"-1,317.11",ALDERTON HOUSE,CARE ESTABLISHMENT,LD - East Locality,LD - East Cambs - Special Needs,Residential Care
Cambridgeshire County Council,25-Apr-19,51300865324,"-1,317.11",ALDERTON HOUSE,CARE ESTABLISHMENT,LD - East Locality,LD - East Cambs - Special Needs,Residential Care
Cambridgeshire County Council,25-Apr-19,51300876797,"-1,317.11",ALDERTON HOUSE,CARE ESTABLISHMENT,LD - East Locality,LD - East Cambs - Special Needs,Residential Care
Cambridgeshire County Council,25-Apr-19,51300876750,"-1,317.11",ALDERTON HOUSE,CARE ESTABLISHMENT,LD - East Locality,LD - East Cambs - Special Needs,Residential Care
Cambridgeshire County Council,25-Apr-19,51300876839,"-1,317.11",ALDERTON HOUSE,CARE ESTABLISHMENT,LD - East Locality,LD - East Cambs - Special Needs,Residential Care
Cambridgeshire County Council,25-Apr-19,51300876830,"-1,317.11",ALDERTON HOUSE,CARE ESTABLISHMENT,LD - East Locality,LD - East Cambs - Special Needs,Residential Care
Cambridgeshire County Council,25-Apr-19,51300865260,"-1,317.11",ALDERTON HOUSE,CARE ESTABLISHMENT,LD - East Locality,LD - East Cambs - Special Needs,Residential Care
Cambridgeshire County Council,25-Apr-19,51300876817,"-1,317.11",ALDERTON HOUSE,CARE ESTABLISHMENT,LD - East Locality,LD - East Cambs - Special Needs,Residential Care
Cambridgeshire County Council,25-Apr-19,51300876680,"-1,317.11",ALDERTON HOUSE,CARE ESTABLISHMENT,LD - East Locality,LD - East Cambs - Special Needs,Residential Care
Cambridgeshire County Council,25-Apr-19,51300876792,"-1,317.11",ALDERTON HOUSE,CARE ESTABLISHMENT,LD - East Locality,LD - East Cambs - Special Needs,Residential Care
Cambridgeshire County Council,25-Apr-19,51300865273,"-1,317.11",ALDERTON HOUSE,CARE ESTABLISHMENT,LD - East Locality,LD - East Cambs - Special Needs,Residential Care
Cambridgeshire County Council,25-Apr-19,51300865303,"-1,317.11",ALDERTON HOUSE,CARE ESTABLISHMENT,LD - East Locality,LD - East Cambs - Special Needs,Residential Care
Cambridgeshire County Council,25-Apr-19,51300876798,"-1,317.11",ALDERTON HOUSE,CARE ESTABLISHMENT,LD - East Locality,LD - East Cambs - Special Needs,Residential Care
Cambridgeshire County Council,25-Apr-19,51300865365,"-1,317.11",ALDERTON HOUSE,CARE ESTABLISHMENT,LD - East Locality,LD - East Cambs - Special Needs,Residential Care
Cambridgeshire County Council,25-Apr-19,51300865264,"-1,317.11",ALDERTON HOUSE,CARE ESTABLISHMENT,LD - East Locality,LD - East Cambs - Special Needs,Residential Care
Cambridgeshire County Council,25-Apr-19,51300865299,"-1,317.11",ALDERTON HOUSE,CARE ESTABLISHMENT,LD - East Locality,LD - East Cambs - Special Needs,Residential Care
Cambridgeshire County Council,25-Apr-19,51300876660,"-1,317.11",ALDERTON HOUSE,CARE ESTABLISHMENT,LD - East Locality,LD - East Cambs - Special Needs,Residential Care
Cambridgeshire County Council,25-Apr-19,51300876752,"-1,317.11",ALDERTON HOUSE,CARE ESTABLISHMENT,LD - East Locality,LD - East Cambs - Care,Residential Care
Cambridgeshire County Council,25-Apr-19,51300865269,"-1,317.11",ALDERTON HOUSE,CARE ESTABLISHMENT,LD - East Locality,LD - East Cambs - Care,Residential Care
Cambridgeshire County Council,25-Apr-19,51300876806,"-1,317.11",ALDERTON HOUSE,CARE ESTABLISHMENT,LD - East Locality,LD - East Cambs - Care,Residential Care
Cambridgeshire County Council,25-Apr-19,51300876816,"-1,317.11",ALDERTON HOUSE,CARE ESTABLISHMENT,LD - East Locality,LD - East Cambs - Care,Residential Care
Cambridgeshire County Council,25-Apr-19,51300865281,"-1,317.11",ALDERTON HOUSE,CARE ESTABLISHMENT,LD - East Locality,LD - East Cambs - Care,Residential Care
Cambridgeshire County Council,25-Apr-19,51300865290,"-1,317.11",ALDERTON HOUSE,CARE ESTABLISHMENT,LD - East Locality,LD - East Cambs - Care,Residential Care
Cambridgeshire County Council,25-Apr-19,51300876838,"-1,317.11",ALDERTON HOUSE,CARE ESTABLISHMENT,LD - East Locality,LD - East Cambs - Special Needs,Residential Care
Cambridgeshire County Council,25-Apr-19,51300865246,"-1,317.11",ALDERTON HOUSE,CARE ESTABLISHMENT,LD - East Locality,LD - East Cambs - Special Needs,Residential Care
Cambridgeshire County Council,25-Apr-19,51300876831,"-1,317.11",ALDERTON HOUSE,CARE ESTABLISHMENT,LD - East Locality,LD - East Cambs - Care,Residential Care
Cambridgeshire County Council,25-Apr-19,51300876709,"-1,317.11",ALDERTON HOUSE,CARE ESTABLISHMENT,LD - East Locality,LD - East Cambs - Care,Residential Care
Cambridgeshire County Council,25-Apr-19,51300876673,"-1,317.11",ALDERTON HOUSE,CARE ESTABLISHMENT,LD - East Locality,LD - East Cambs - Care,Residential Care
Cambridgeshire County Council,25-Apr-19,51300865284,"-1,317.11",ALDERTON HOUSE,CARE ESTABLISHMENT,LD - East Locality,LD - East Cambs - Care,Residential Care
Cambridgeshire County Council,25-Apr-19,51300865339,"-1,317.11",ALDERTON HOUSE,CARE ESTABLISHMENT,LD - East Locality,LD - East Cambs - Care,Residential Care
Cambridgeshire County Council,25-Apr-19,51300876678,"-1,317.11",ALDERTON HOUSE,CARE ESTABLISHMENT,LD - East Locality,LD - East Cambs - Care,Residential Care
Cambridgeshire County Council,25-Apr-19,51300876765,"-1,317.11",ALDERTON HOUSE,CARE ESTABLISHMENT,LD - East Locality,LD - East Cambs - Care,Residential Care
Cambridgeshire County Council,25-Apr-19,51300876737,"-1,317.11",ALDERTON HOUSE,CARE ESTABLISHMENT,LD - East Locality,LD - East Cambs - Care,Residential Care
Cambridgeshire County Council,25-Apr-19,51300865262,"-1,317.11",ALDERTON HOUSE,CARE ESTABLISHMENT,LD - East Locality,LD - East Cambs - Care,Residential Care
Cambridgeshire County Council,25-Apr-19,51300865279,"-1,317.11",ALDERTON HOUSE,CARE ESTABLISHMENT,LD - East Locality,LD - East Cambs - Care,Residential Care
Cambridgeshire County Council,25-Apr-19,51300865343,"-1,317.11",ALDERTON HOUSE,CARE ESTABLISHMENT,LD - East Locality,LD - East Cambs - Care,Residential Care
Cambridgeshire County Council,25-Apr-19,51300865243,"-1,317.11",ALDERTON HOUSE,CARE ESTABLISHMENT,LD - East Locality,LD - East Cambs - Care,Residential Care
Cambridgeshire County Council,25-Apr-19,51300865296,"-1,317.11",ALDERTON HOUSE,CARE ESTABLISHMENT,LD - East Locality,LD - East Cambs - Care,Residential Care
Cambridgeshire County Council,25-Apr-19,51300865344,"-1,317.11",ALDERTON HOUSE,CARE ESTABLISHMENT,LD - East Locality,LD - East Cambs - Care,Residential Care
Cambridgeshire County Council,25-Apr-19,51300876720,"-1,317.11",ALDERTON HOUSE,CARE ESTABLISHMENT,LD - East Locality,LD - East Cambs - Care,Residential Care
Cambridgeshire County Council,25-Apr-19,51300876758,"-1,317.11",ALDERTON HOUSE,CARE ESTABLISHMENT,LD - East Locality,LD - East Cambs - Care,Residential Care
Cambridgeshire County Council,25-Apr-19,51300865292,"-1,317.11",ALDERTON HOUSE,CARE ESTABLISHMENT,LD - East Locality,LD - East Cambs - Care,Residential Care
Cambridgeshire County Council,25-Apr-19,51300865271,"-1,317.11",ALDERTON HOUSE,CARE ESTABLISHMENT,LD - East Locality,LD - East Cambs - Special Needs,Residential Care
Cambridgeshire County Council,25-Apr-19,51300865270,"-1,317.11",ALDERTON HOUSE,CARE ESTABLISHMENT,LD - East Locality,LD - East Cambs - Care,Residential Care
Cambridgeshire County Council,25-Apr-19,51300865293,"-1,317.11",ALDERTON HOUSE,CARE ESTABLISHMENT,LD - East Locality,LD - East Cambs - Care,Residential Care
Cambridgeshire County Council,25-Apr-19,51300865314,"-1,317.11",ALDERTON HOUSE,CARE ESTABLISHMENT,LD - East Locality,LD - East Cambs - Care,Residential Care
Cambridgeshire County Council,25-Apr-19,51300876712,"-1,317.11",ALDERTON HOUSE,CARE ESTABLISHMENT,LD - East Locality,LD - East Cambs - Care,Residential Care
Cambridgeshire County Council,25-Apr-19,51300876685,"-1,317.11",ALDERTON HOUSE,CARE ESTABLISHMENT,LD - East Locality,LD - East Cambs - Care,Residential Care
Cambridgeshire County Council,25-Apr-19,51300876690,"-1,317.11",ALDERTON HOUSE,CARE ESTABLISHMENT,LD - East Locality,LD - East Cambs - Care,Residential Care
Cambridgeshire County Council,25-Apr-19,51300876825,"-1,317.11",ALDERTON HOUSE,CARE ESTABLISHMENT,LD - East Locality,LD - East Cambs - Care,Residential Care
Cambridgeshire County Council,25-Apr-19,51300865274,"-1,317.11",ALDERTON HOUSE,CARE ESTABLISHMENT,LD - East Locality,LD - East Cambs - Care,Residential Care
Cambridgeshire County Council,25-Apr-19,51300876718,"-1,317.11",ALDERTON HOUSE,CARE ESTABLISHMENT,LD - East Locality,LD - East Cambs - Care,Residential Care
Cambridgeshire County Council,25-Apr-19,51300865250,"-1,317.11",ALDERTON HOUSE,CARE ESTABLISHMENT,LD - East Locality,LD - East Cambs - Care,Residential Care
Cambridgeshire County Council,25-Apr-19,51300876769,"-1,317.11",ALDERTON HOUSE,CARE ESTABLISHMENT,LD - East Locality,LD - East Cambs - Care,Residential Care
Cambridgeshire County Council,25-Apr-19,51300865329,"-1,317.11",ALDERTON HOUSE,CARE ESTABLISHMENT,LD - East Locality,LD - East Cambs - Care,Residential Care
Cambridgeshire County Council,25-Apr-19,51300865256,"-1,317.11",ALDERTON HOUSE,CARE ESTABLISHMENT,LD - East Locality,LD - East Cambs - Care,Residential Care
Cambridgeshire County Council,25-Apr-19,51300876738,"-1,317.11",ALDERTON HOUSE,CARE ESTABLISHMENT,LD - East Locality,LD - East Cambs - Care,Residential Care
Cambridgeshire County Council,25-Apr-19,51300876799,"-1,317.11",ALDERTON HOUSE,CARE ESTABLISHMENT,LD - East Locality,LD - East Cambs - Care,Residential Care
Cambridgeshire County Council,25-Apr-19,51300865288,"-1,317.11",ALDERTON HOUSE,CARE ESTABLISHMENT,LD - East Locality,LD - East Cambs - Care,Residential Care
Cambridgeshire County Council,25-Apr-19,51300876776,"-1,317.11",ALDERTON HOUSE,CARE ESTABLISHMENT,LD - East Locality,LD - East Cambs - Care,Residential Care
Cambridgeshire County Council,25-Apr-19,51300876707,"-1,317.11",ALDERTON HOUSE,CARE ESTABLISHMENT,LD - East Locality,LD - East Cambs - Care,Residential Care
Cambridgeshire County Council,25-Apr-19,51300876818,"-1,317.11",ALDERTON HOUSE,CARE ESTABLISHMENT,LD - East Locality,LD - East Cambs - Care,Residential Care
Cambridgeshire County Council,25-Apr-19,51300876728,"-1,317.11",ALDERTON HOUSE,CARE ESTABLISHMENT,LD - East Locality,LD - East Cambs - Care,Residential Care
Cambridgeshire County Council,25-Apr-19,51300876757,"-1,317.11",ALDERTON HOUSE,CARE ESTABLISHMENT,LD - East Locality,LD - East Cambs - Care,Residential Care
Cambridgeshire County Council,25-Apr-19,51300876756,"-1,317.11",ALDERTON HOUSE,CARE ESTABLISHMENT,LD - East Locality,LD - East Cambs - Care,Residential Care
Cambridgeshire County Council,25-Apr-19,51300876801,"-1,317.11",ALDERTON HOUSE,CARE ESTABLISHMENT,LD - East Locality,LD - East Cambs - Care,Residential Care
Cambridgeshire County Council,25-Apr-19,51300865258,"-1,317.11",ALDERTON HOUSE,CARE ESTABLISHMENT,LD - East Locality,LD - East Cambs - Care,Residential Care
Cambridgeshire County Council,25-Apr-19,51300865300,"-1,317.11",ALDERTON HOUSE,CARE ESTABLISHMENT,LD - East Locality,LD - East Cambs - Care,Residential Care
Cambridgeshire County Council,25-Apr-19,51300865326,"-1,317.11",ALDERTON HOUSE,CARE ESTABLISHMENT,LD - East Locality,LD - East Cambs - Care,Residential Care
Cambridgeshire County Council,25-Apr-19,51300876789,"-1,317.11",ALDERTON HOUSE,CARE ESTABLISHMENT,LD - East Locality,LD - East Cambs - Special Needs,Residential Care
Cambridgeshire County Council,25-Apr-19,51300876677,"-1,317.11",ALDERTON HOUSE,CARE ESTABLISHMENT,LD - East Locality,LD - East Cambs - Special Needs,Residential Care
Cambridgeshire County Council,25-Apr-19,51300876775,"-1,317.11",ALDERTON HOUSE,CARE ESTABLISHMENT,LD - East Locality,LD - East Cambs - Special Needs,Residential Care
Cambridgeshire County Council,25-Apr-19,51300876762,"-1,317.11",ALDERTON HOUSE,CARE ESTABLISHMENT,LD - East Locality,LD - East Cambs - Special Needs,Residential Care
Cambridgeshire County Council,25-Apr-19,51300876691,"-1,317.11",ALDERTON HOUSE,CARE ESTABLISHMENT,LD - East Locality,LD - East Cambs - Special Needs,Residential Care
Cambridgeshire County Council,25-Apr-19,51300865266,"-1,317.11",ALDERTON HOUSE,CARE ESTABLISHMENT,LD - East Locality,LD - East Cambs - Special Needs,Residential Care
Cambridgeshire County Council,11-Apr-19,51300829570,"-1,312.95",CARETECH COMMUNITY SERVICES,CARE ESTABLISHMENT,LD - Hunts Locality,LD - Huntigndonshire  - Special Needs,Residential Care
Cambridgeshire County Council,11-Apr-19,51300829571,"-1,312.95",CARETECH COMMUNITY SERVICES,CARE ESTABLISHMENT,LD - Hunts Locality,LD - Huntigndonshire  - Special Needs,Residential Care
Cambridgeshire County Council,11-Apr-19,51300829567,"-1,312.95",CARETECH COMMUNITY SERVICES,CARE ESTABLISHMENT,LD - Hunts Locality,LD - Huntigndonshire  - Special Needs,Residential Care
Cambridgeshire County Council,11-Apr-19,51300829558,"-1,312.95",CARETECH COMMUNITY SERVICES,CARE ESTABLISHMENT,LD - Hunts Locality,LD - Huntigndonshire  - Special Needs,Residential Care
Cambridgeshire County Council,11-Apr-19,51300826911,"-1,312.95",CARETECH COMMUNITY SERVICES,CARE ESTABLISHMENT,LD - Hunts Locality,LD - Huntigndonshire  - Special Needs,Residential Care
Cambridgeshire County Council,11-Apr-19,51300826914,"-1,312.95",CARETECH COMMUNITY SERVICES,CARE ESTABLISHMENT,LD - Hunts Locality,LD - Huntigndonshire  - Special Needs,Residential Care
Cambridgeshire County Council,11-Apr-19,51300826917,"-1,312.95",CARETECH COMMUNITY SERVICES,CARE ESTABLISHMENT,LD - Hunts Locality,LD - Huntigndonshire  - Special Needs,Residential Care
Cambridgeshire County Council,11-Apr-19,51300826924,"-1,312.95",CARETECH COMMUNITY SERVICES,CARE ESTABLISHMENT,LD - Hunts Locality,LD - Huntigndonshire  - Special Needs,Residential Care
Cambridgeshire County Council,11-Apr-19,51300829565,"-1,312.95",CARETECH COMMUNITY SERVICES,CARE ESTABLISHMENT,LD - Hunts Locality,LD - Huntigndonshire  - Special Needs,Residential Care
Cambridgeshire County Council,11-Apr-19,51300829568,"-1,312.95",CARETECH COMMUNITY SERVICES,CARE ESTABLISHMENT,LD - Hunts Locality,LD - Huntigndonshire  - Special Needs,Residential Care
Cambridgeshire County Council,11-Apr-19,51300826922,"-1,312.95",CARETECH COMMUNITY SERVICES,CARE ESTABLISHMENT,LD - Hunts Locality,LD - Huntigndonshire  - Special Needs,Residential Care
Cambridgeshire County Council,11-Apr-19,51300826913,"-1,312.95",CARETECH COMMUNITY SERVICES,CARE ESTABLISHMENT,LD - Hunts Locality,LD - Huntigndonshire  - Special Needs,Residential Care
Cambridgeshire County Council,25-Apr-19,51300828815,"-1,306.21",DRUMMONDS,CARE ESTABLISHMENT,Physical Disablity,Countywide PD Service - Care,Residential Care
Cambridgeshire County Council,25-Apr-19,51300828820,"-1,306.21",DRUMMONDS,CARE ESTABLISHMENT,Physical Disablity,Countywide PD Service - Care,Residential Care
Cambridgeshire County Council,11-Apr-19,51300838780,"-1,296.31",CARETECH COMMUNITY SERVICES,CARE ESTABLISHMENT,LD - Hunts Locality,LD - Huntigndonshire  - Special Needs,Residential Care
Cambridgeshire County Council,11-Apr-19,51300838765,"-1,296.31",CARETECH COMMUNITY SERVICES,CARE ESTABLISHMENT,LD - Hunts Locality,LD - Huntigndonshire  - Special Needs,Residential Care
Cambridgeshire County Council,11-Apr-19,51300838770,"-1,296.31",CARETECH COMMUNITY SERVICES,CARE ESTABLISHMENT,LD - Hunts Locality,LD - Huntigndonshire  - Special Needs,Residential Care
Cambridgeshire County Council,11-Apr-19,51300838783,"-1,296.31",CARETECH COMMUNITY SERVICES,CARE ESTABLISHMENT,LD - Hunts Locality,LD - Huntigndonshire  - Special Needs,Residential Care
Cambridgeshire County Council,11-Apr-19,51300838771,"-1,296.31",CARETECH COMMUNITY SERVICES,CARE ESTABLISHMENT,LD - Hunts Locality,LD - Huntigndonshire  - Special Needs,Residential Care
Cambridgeshire County Council,11-Apr-19,51300838777,"-1,296.31",CARETECH COMMUNITY SERVICES,CARE ESTABLISHMENT,LD - Hunts Locality,LD - Huntigndonshire  - Special Needs,Residential Care
Cambridgeshire County Council,11-Apr-19,51300838779,"-1,296.31",CARETECH COMMUNITY SERVICES,CARE ESTABLISHMENT,LD - Hunts Locality,LD - Huntigndonshire  - Special Needs,Residential Care
Cambridgeshire County Council,11-Apr-19,51300838776,"-1,296.31",CARETECH COMMUNITY SERVICES,CARE ESTABLISHMENT,LD - Hunts Locality,LD - Huntigndonshire  - Special Needs,Residential Care
Cambridgeshire County Council,05-Apr-19,51300843330,"-1,273.00",THE MARY HARE PRIMARY SCHOOL,EDUCATION,SEN Placements,Placements - Education,Other Recharged Income
Cambridgeshire County Council,25-Apr-19,51300819414,"-1,270.26",RNID LEOPOLD MULLER CARE HOME,CARE ESTABLISHMENT,OP - City & South Locality,Older People - City & South,Nursing Care
Cambridgeshire County Council,25-Apr-19,51300819413,"-1,270.26",RNID LEOPOLD MULLER CARE HOME,CARE ESTABLISHMENT,OP - City & South Locality,Older People - City & South,Nursing Care
Cambridgeshire County Council,25-Apr-19,51300855947,"-1,266.59",2 CHEVERIL LANE (VOYAGE),CARE ESTABLISHMENT,LD - Hunts Locality,LD - Huntigndonshire  - Care,Supported Living
Cambridgeshire County Council,25-Apr-19,51300847077,"-1,266.59",2 CHEVERIL LANE (VOYAGE),CARE ESTABLISHMENT,LD - Hunts Locality,LD - Huntigndonshire  - Care,Supported Living
Cambridgeshire County Council,25-Apr-19,51300847073,"-1,266.59",2 CHEVERIL LANE (VOYAGE),CARE ESTABLISHMENT,LD - Hunts Locality,LD - Huntigndonshire  - Care,Supported Living
Cambridgeshire County Council,25-Apr-19,51300855943,"-1,266.59",2 CHEVERIL LANE (VOYAGE),CARE ESTABLISHMENT,LD - Hunts Locality,LD - Huntigndonshire  - Care,Supported Living
Cambridgeshire County Council,25-Apr-19,51300855952,"-1,266.59",2 CHEVERIL LANE (VOYAGE),CARE ESTABLISHMENT,LD - Hunts Locality,LD - Huntigndonshire  - Care,Supported Living
Cambridgeshire County Council,25-Apr-19,51300855941,"-1,266.59",2 CHEVERIL LANE (VOYAGE),CARE ESTABLISHMENT,LD - Hunts Locality,LD - Huntigndonshire  - Care,Supported Living
Cambridgeshire County Council,25-Apr-19,51300878287,"-1,266.59",2 CHEVERIL LANE (VOYAGE),CARE ESTABLISHMENT,LD - Hunts Locality,LD - Huntigndonshire  - Care,Supported Living
Cambridgeshire County Council,25-Apr-19,51300865636,"-1,266.59",2 CHEVERIL LANE (VOYAGE),CARE ESTABLISHMENT,LD - Hunts Locality,LD - Huntigndonshire  - Care,Supported Living
Cambridgeshire County Council,25-Apr-19,51300878299,"-1,266.59",2 CHEVERIL LANE (VOYAGE),CARE ESTABLISHMENT,LD - Hunts Locality,LD - Huntigndonshire  - Care,Supported Living
Cambridgeshire County Council,25-Apr-19,51300847062,"-1,266.59",2 CHEVERIL LANE (VOYAGE),CARE ESTABLISHMENT,LD - Hunts Locality,LD - Huntigndonshire  - Care,Supported Living
Cambridgeshire County Council,25-Apr-19,51300855945,"-1,266.59",2 CHEVERIL LANE (VOYAGE),CARE ESTABLISHMENT,LD - Hunts Locality,LD - Huntigndonshire  - Care,Supported Living
Cambridgeshire County Council,25-Apr-19,51300878288,"-1,266.59",2 CHEVERIL LANE (VOYAGE),CARE ESTABLISHMENT,LD - Hunts Locality,LD - Huntigndonshire  - Care,Supported Living
Cambridgeshire County Council,25-Apr-19,51300878282,"-1,266.59",2 CHEVERIL LANE (VOYAGE),CARE ESTABLISHMENT,LD - Hunts Locality,LD - Huntigndonshire  - Care,Supported Living
Cambridgeshire County Council,25-Apr-19,51300865618,"-1,266.59",2 CHEVERIL LANE (VOYAGE),CARE ESTABLISHMENT,LD - Hunts Locality,LD - Huntigndonshire  - Care,Supported Living
Cambridgeshire County Council,25-Apr-19,51300855950,"-1,266.59",2 CHEVERIL LANE (VOYAGE),CARE ESTABLISHMENT,LD - Hunts Locality,LD - Huntigndonshire  - Special Needs,Supported Living
Cambridgeshire County Council,25-Apr-19,51300847065,"-1,266.59",2 CHEVERIL LANE (VOYAGE),CARE ESTABLISHMENT,LD - Hunts Locality,LD - Huntigndonshire  - Care,Supported Living
Cambridgeshire County Council,25-Apr-19,51300878286,"-1,266.59",2 CHEVERIL LANE (VOYAGE),CARE ESTABLISHMENT,LD - Hunts Locality,LD - Huntigndonshire  - Care,Supported Living
Cambridgeshire County Council,25-Apr-19,51300855954,"-1,266.59",2 CHEVERIL LANE (VOYAGE),CARE ESTABLISHMENT,LD - Hunts Locality,LD - Huntigndonshire  - Care,Supported Living
Cambridgeshire County Council,25-Apr-19,51300847059,"-1,266.59",2 CHEVERIL LANE (VOYAGE),CARE ESTABLISHMENT,LD - Hunts Locality,LD - Huntigndonshire  - Care,Supported Living
Cambridgeshire County Council,25-Apr-19,51300847067,"-1,266.59",2 CHEVERIL LANE (VOYAGE),CARE ESTABLISHMENT,LD - Hunts Locality,LD - Huntigndonshire  - Care,Supported Living
Cambridgeshire County Council,25-Apr-19,51300878285,"-1,266.59",2 CHEVERIL LANE (VOYAGE),CARE ESTABLISHMENT,LD - Hunts Locality,LD - Huntigndonshire  - Care,Supported Living
Cambridgeshire County Council,25-Apr-19,51300847075,"-1,266.59",2 CHEVERIL LANE (VOYAGE),CARE ESTABLISHMENT,LD - Hunts Locality,LD - Huntigndonshire  - Care,Supported Living
Cambridgeshire County Council,25-Apr-19,51300878293,"-1,266.59",2 CHEVERIL LANE (VOYAGE),CARE ESTABLISHMENT,LD - Hunts Locality,LD - Huntigndonshire  - Care,Supported Living
Cambridgeshire County Council,25-Apr-19,51300847064,"-1,266.59",2 CHEVERIL LANE (VOYAGE),CARE ESTABLISHMENT,LD - Hunts Locality,LD - Huntigndonshire  - Special Needs,Supported Living
Cambridgeshire County Council,25-Apr-19,51300878291,"-1,266.59",2 CHEVERIL LANE (VOYAGE),CARE ESTABLISHMENT,LD - Hunts Locality,LD - Huntigndonshire  - Special Needs,Supported Living
Cambridgeshire County Council,25-Apr-19,51300855938,"-1,266.59",2 CHEVERIL LANE (VOYAGE),CARE ESTABLISHMENT,LD - Hunts Locality,LD - Huntigndonshire  - Special Needs,Supported Living
Cambridgeshire County Council,25-Apr-19,51300865633,"-1,266.59",2 CHEVERIL LANE (VOYAGE),CARE ESTABLISHMENT,LD - Hunts Locality,LD - Huntigndonshire  - Special Needs,Supported Living
Cambridgeshire County Council,25-Apr-19,51300865635,"-1,266.59",2 CHEVERIL LANE (VOYAGE),CARE ESTABLISHMENT,LD - Hunts Locality,LD - Huntigndonshire  - Special Needs,Supported Living
Cambridgeshire County Council,25-Apr-19,51300865624,"-1,266.59",2 CHEVERIL LANE (VOYAGE),CARE ESTABLISHMENT,LD - Hunts Locality,LD - Huntigndonshire  - Special Needs,Supported Living
Cambridgeshire County Council,25-Apr-19,51300865622,"-1,266.59",2 CHEVERIL LANE (VOYAGE),CARE ESTABLISHMENT,LD - Hunts Locality,LD - Huntigndonshire  - Special Needs,Supported Living
Cambridgeshire County Council,25-Apr-19,51300855948,"-1,266.59",2 CHEVERIL LANE (VOYAGE),CARE ESTABLISHMENT,LD - Hunts Locality,LD - Huntigndonshire  - Special Needs,Supported Living
Cambridgeshire County Council,25-Apr-19,51300865634,"-1,266.59",2 CHEVERIL LANE (VOYAGE),CARE ESTABLISHMENT,LD - Hunts Locality,LD - Huntigndonshire  - Special Needs,Supported Living
Cambridgeshire County Council,25-Apr-19,51300865629,"-1,266.59",2 CHEVERIL LANE (VOYAGE),CARE ESTABLISHMENT,LD - Hunts Locality,LD - Huntigndonshire  - Special Needs,Supported Living
Cambridgeshire County Council,25-Apr-19,51300878290,"-1,266.59",2 CHEVERIL LANE (VOYAGE),CARE ESTABLISHMENT,LD - Hunts Locality,LD - Huntigndonshire  - Special Needs,Supported Living
Cambridgeshire County Council,25-Apr-19,51300865619,"-1,266.59",2 CHEVERIL LANE (VOYAGE),CARE ESTABLISHMENT,LD - Hunts Locality,LD - Huntigndonshire  - Special Needs,Supported Living
Cambridgeshire County Council,25-Apr-19,51300847069,"-1,266.59",2 CHEVERIL LANE (VOYAGE),CARE ESTABLISHMENT,LD - Hunts Locality,LD - Huntigndonshire  - Special Needs,Supported Living
Cambridgeshire County Council,05-Apr-19,51300846042,"-1,241.84",COTTENHAM COURT NURSING HOME,CARE ESTABLISHMENT,OP - East Cambs Locality,East Cambs - O P Team,Nursing Care
Cambridgeshire County Council,05-Apr-19,51300846048,"-1,241.84",COTTENHAM COURT NURSING HOME,CARE ESTABLISHMENT,OP - East Cambs Locality,East Cambs - O P Team,Nursing Care
Cambridgeshire County Council,05-Apr-19,51300846040,"-1,241.84",COTTENHAM COURT NURSING HOME,CARE ESTABLISHMENT,OP - East Cambs Locality,East Cambs - O P Team,Nursing Care
Cambridgeshire County Council,05-Apr-19,51300846051,"-1,241.84",COTTENHAM COURT NURSING HOME,CARE ESTABLISHMENT,OP - East Cambs Locality,East Cambs - O P Team,Nursing Care
Cambridgeshire County Council,05-Apr-19,51300846025,"-1,241.84",COTTENHAM COURT NURSING HOME,CARE ESTABLISHMENT,OP - East Cambs Locality,East Cambs - O P Team,Nursing Care
Cambridgeshire County Council,05-Apr-19,51300846010,"-1,241.84",COTTENHAM COURT NURSING HOME,CARE ESTABLISHMENT,OP - East Cambs Locality,East Cambs - O P Team,Nursing Care
Cambridgeshire County Council,25-Apr-19,51300869458,"-1,241.84",COTTENHAM COURT NURSING HOME,CARE ESTABLISHMENT,OP - East Cambs Locality,East Cambs - O P Team,Nursing Care
Cambridgeshire County Council,25-Apr-19,51300869458,"-1,241.84",COTTENHAM COURT NURSING HOME,CARE ESTABLISHMENT,OP - East Cambs Locality,East Cambs - O P Team,Nursing Care
Cambridgeshire County Council,25-Apr-19,51300869458,"-1,241.84",COTTENHAM COURT NURSING HOME,CARE ESTABLISHMENT,OP - East Cambs Locality,East Cambs - O P Team,Nursing Care
Cambridgeshire County Council,25-Apr-19,51300869458,"-1,241.84",COTTENHAM COURT NURSING HOME,CARE ESTABLISHMENT,OP - East Cambs Locality,East Cambs - O P Team,Nursing Care
Cambridgeshire County Council,25-Apr-19,51300869458,"-1,241.84",COTTENHAM COURT NURSING HOME,CARE ESTABLISHMENT,OP - East Cambs Locality,East Cambs - O P Team,Nursing Care
Cambridgeshire County Council,25-Apr-19,51300869458,"-1,241.84",COTTENHAM COURT NURSING HOME,CARE ESTABLISHMENT,OP - East Cambs Locality,East Cambs - O P Team,Nursing Care
Cambridgeshire County Council,25-Apr-19,51300839521,"-1,241.58",THE MARBROOK CENTRE,CARE ESTABLISHMENT,OPMH - Hunts & Fens,Older People Mental Health Hunts,Nursing Care
Cambridgeshire County Council,25-Apr-19,51300839520,"-1,241.58",THE MARBROOK CENTRE,CARE ESTABLISHMENT,OPMH - Hunts & Fens,Older People Mental Health Hunts,Nursing Care
Cambridgeshire County Council,18-Apr-19,51300840540,"-1,214.21",SENSE NATIONAL DEAF & BLIND,CARE ESTABLISHMENT,LD - East Locality,LD - East Cambs - Care,Residential Care
Cambridgeshire County Council,25-Apr-19,51300894293,"-1,209.71",SOCIAL CARE SOLUTIONS LTD,CARE ESTABLISHMENT,LD - Fenland Locality,LD - Fenland  - Special Needs,Supported Living
Cambridgeshire County Council,25-Apr-19,51300833850,"-1,200.00",ASKHAM PLACE PD,CARE ESTABLISHMENT,Physical Disablity,Countywide PD Service - Care,Residential Care
Cambridgeshire County Council,25-Apr-19,51300833851,"-1,200.00",ASKHAM PLACE PD,CARE ESTABLISHMENT,Physical Disablity,Countywide PD Service - Care,Residential Care
Cambridgeshire County Council,11-Apr-19,51300816434,"-1,198.40",CARETECH COMMUNITY SERVICES,CARE ESTABLISHMENT,LD - South Locality,LD - South Cambs - Special Needs,Residential Care
Cambridgeshire County Council,11-Apr-19,51300836645,"-1,198.40",CARETECH COMMUNITY SERVICES,CARE ESTABLISHMENT,LD - South Locality,LD - South Cambs - Special Needs,Residential Care
Cambridgeshire County Council,11-Apr-19,51300816446,"-1,198.40",CARETECH COMMUNITY SERVICES,CARE ESTABLISHMENT,LD - South Locality,LD - South Cambs - Special Needs,Residential Care
Cambridgeshire County Council,11-Apr-19,51300836635,"-1,198.40",CARETECH COMMUNITY SERVICES,CARE ESTABLISHMENT,LD - South Locality,LD - South Cambs - Special Needs,Residential Care
Cambridgeshire County Council,11-Apr-19,51300836629,"-1,198.40",CARETECH COMMUNITY SERVICES,CARE ESTABLISHMENT,LD - South Locality,LD - South Cambs - Special Needs,Residential Care
Cambridgeshire County Council,11-Apr-19,51300816441,"-1,198.40",CARETECH COMMUNITY SERVICES,CARE ESTABLISHMENT,LD - South Locality,LD - South Cambs - Special Needs,Residential Care
Cambridgeshire County Council,11-Apr-19,51300836641,"-1,198.40",CARETECH COMMUNITY SERVICES,CARE ESTABLISHMENT,LD - South Locality,LD - South Cambs - Special Needs,Residential Care
Cambridgeshire County Council,11-Apr-19,51300816442,"-1,198.40",CARETECH COMMUNITY SERVICES,CARE ESTABLISHMENT,LD - South Locality,LD - South Cambs - Special Needs,Residential Care
Cambridgeshire County Council,11-Apr-19,51300816457,"-1,198.40",CARETECH COMMUNITY SERVICES,CARE ESTABLISHMENT,LD - South Locality,LD - South Cambs - Special Needs,Residential Care
Cambridgeshire County Council,11-Apr-19,51300836621,"-1,198.40",CARETECH COMMUNITY SERVICES,CARE ESTABLISHMENT,LD - South Locality,LD - South Cambs - Special Needs,Residential Care
Cambridgeshire County Council,11-Apr-19,51300836650,"-1,198.40",CARETECH COMMUNITY SERVICES,CARE ESTABLISHMENT,LD - South Locality,LD - South Cambs - Special Needs,Residential Care
Cambridgeshire County Council,11-Apr-19,51300836618,"-1,198.40",CARETECH COMMUNITY SERVICES,CARE ESTABLISHMENT,LD - South Locality,LD - South Cambs - Special Needs,Residential Care
Cambridgeshire County Council,11-Apr-19,51300836631,"-1,198.40",CARETECH COMMUNITY SERVICES,CARE ESTABLISHMENT,LD - South Locality,LD - South Cambs - Special Needs,Residential Care
Cambridgeshire County Council,11-Apr-19,51300816459,"-1,198.40",CARETECH COMMUNITY SERVICES,CARE ESTABLISHMENT,LD - South Locality,LD - South Cambs - Special Needs,Residential Care
Cambridgeshire County Council,11-Apr-19,51300821996,"-1,198.04",CARETECH COMMUNITY SERVICES,CARE ESTABLISHMENT,LD - South Locality,LD - South Cambs - Special Needs,Residential Care
Cambridgeshire County Council,11-Apr-19,51300860141,"-1,198.04",CARETECH COMMUNITY SERVICES,CARE ESTABLISHMENT,LD - South Locality,LD - South Cambs - Special Needs,Residential Care
Cambridgeshire County Council,11-Apr-19,51300851983,"-1,198.04",CARETECH COMMUNITY SERVICES,CARE ESTABLISHMENT,LD - South Locality,LD - South Cambs - Special Needs,Residential Care
Cambridgeshire County Council,11-Apr-19,51300821948,"-1,198.04",CARETECH COMMUNITY SERVICES,CARE ESTABLISHMENT,LD - South Locality,LD - South Cambs - Special Needs,Residential Care
Cambridgeshire County Council,11-Apr-19,51300822000,"-1,198.04",CARETECH COMMUNITY SERVICES,CARE ESTABLISHMENT,LD - South Locality,LD - South Cambs - Special Needs,Residential Care
Cambridgeshire County Council,11-Apr-19,51300860152,"-1,198.04",CARETECH COMMUNITY SERVICES,CARE ESTABLISHMENT,LD - South Locality,LD - South Cambs - Special Needs,Residential Care
Cambridgeshire County Council,11-Apr-19,51300821950,"-1,198.04",CARETECH COMMUNITY SERVICES,CARE ESTABLISHMENT,LD - South Locality,LD - South Cambs - Special Needs,Residential Care
Cambridgeshire County Council,11-Apr-19,51300852005,"-1,198.04",CARETECH COMMUNITY SERVICES,CARE ESTABLISHMENT,LD - South Locality,LD - South Cambs - Special Needs,Residential Care
Cambridgeshire County Council,11-Apr-19,51300821966,"-1,198.04",CARETECH COMMUNITY SERVICES,CARE ESTABLISHMENT,LD - South Locality,LD - South Cambs - Special Needs,Residential Care
Cambridgeshire County Council,11-Apr-19,51300851984,"-1,198.04",CARETECH COMMUNITY SERVICES,CARE ESTABLISHMENT,LD - South Locality,LD - South Cambs - Special Needs,Residential Care
Cambridgeshire County Council,11-Apr-19,51300851973,"-1,198.04",CARETECH COMMUNITY SERVICES,CARE ESTABLISHMENT,LD - South Locality,LD - South Cambs - Special Needs,Residential Care
Cambridgeshire County Council,11-Apr-19,51300821986,"-1,198.04",CARETECH COMMUNITY SERVICES,CARE ESTABLISHMENT,LD - South Locality,LD - South Cambs - Special Needs,Residential Care
Cambridgeshire County Council,11-Apr-19,51300851980,"-1,198.04",CARETECH COMMUNITY SERVICES,CARE ESTABLISHMENT,LD - South Locality,LD - South Cambs - Special Needs,Residential Care
Cambridgeshire County Council,11-Apr-19,51300821990,"-1,198.04",CARETECH COMMUNITY SERVICES,CARE ESTABLISHMENT,LD - South Locality,LD - South Cambs - Special Needs,Residential Care
Cambridgeshire County Council,11-Apr-19,51300821983,"-1,198.04",CARETECH COMMUNITY SERVICES,CARE ESTABLISHMENT,LD - South Locality,LD - South Cambs - Special Needs,Residential Care
Cambridgeshire County Council,11-Apr-19,51300860180,"-1,198.04",CARETECH COMMUNITY SERVICES,CARE ESTABLISHMENT,LD - South Locality,LD - South Cambs - Special Needs,Residential Care
Cambridgeshire County Council,11-Apr-19,51300852009,"-1,198.04",CARETECH COMMUNITY SERVICES,CARE ESTABLISHMENT,LD - South Locality,LD - South Cambs - Special Needs,Residential Care
Cambridgeshire County Council,11-Apr-19,51300821997,"-1,198.04",CARETECH COMMUNITY SERVICES,CARE ESTABLISHMENT,LD - South Locality,LD - South Cambs - Special Needs,Residential Care
Cambridgeshire County Council,11-Apr-19,51300851985,"-1,198.04",CARETECH COMMUNITY SERVICES,CARE ESTABLISHMENT,LD - South Locality,LD - South Cambs - Special Needs,Residential Care
Cambridgeshire County Council,11-Apr-19,51300821941,"-1,198.04",CARETECH COMMUNITY SERVICES,CARE ESTABLISHMENT,LD - South Locality,LD - South Cambs - Special Needs,Residential Care
Cambridgeshire County Council,11-Apr-19,51300852003,"-1,198.04",CARETECH COMMUNITY SERVICES,CARE ESTABLISHMENT,LD - South Locality,LD - South Cambs - Special Needs,Residential Care
Cambridgeshire County Council,11-Apr-19,51300860172,"-1,198.04",CARETECH COMMUNITY SERVICES,CARE ESTABLISHMENT,LD - South Locality,LD - South Cambs - Special Needs,Residential Care
Cambridgeshire County Council,11-Apr-19,51300821963,"-1,198.04",CARETECH COMMUNITY SERVICES,CARE ESTABLISHMENT,LD - South Locality,LD - South Cambs - Special Needs,Residential Care
Cambridgeshire County Council,11-Apr-19,51300821995,"-1,198.04",CARETECH COMMUNITY SERVICES,CARE ESTABLISHMENT,LD - South Locality,LD - South Cambs - Special Needs,Residential Care
Cambridgeshire County Council,11-Apr-19,51300821978,"-1,198.04",CARETECH COMMUNITY SERVICES,CARE ESTABLISHMENT,LD - South Locality,LD - South Cambs - Special Needs,Residential Care
Cambridgeshire County Council,11-Apr-19,51300860168,"-1,198.04",CARETECH COMMUNITY SERVICES,CARE ESTABLISHMENT,LD - South Locality,LD - South Cambs - Special Needs,Residential Care
Cambridgeshire County Council,11-Apr-19,51300851990,"-1,198.04",CARETECH COMMUNITY SERVICES,CARE ESTABLISHMENT,LD - South Locality,LD - South Cambs - Special Needs,Residential Care
Cambridgeshire County Council,11-Apr-19,51300860147,"-1,198.04",CARETECH COMMUNITY SERVICES,CARE ESTABLISHMENT,LD - South Locality,LD - South Cambs - Special Needs,Residential Care
Cambridgeshire County Council,11-Apr-19,51300821964,"-1,198.04",CARETECH COMMUNITY SERVICES,CARE ESTABLISHMENT,LD - South Locality,LD - South Cambs - Special Needs,Residential Care
Cambridgeshire County Council,11-Apr-19,51300851975,"-1,198.04",CARETECH COMMUNITY SERVICES,CARE ESTABLISHMENT,LD - South Locality,LD - South Cambs - Special Needs,Residential Care
Cambridgeshire County Council,11-Apr-19,51300821965,"-1,198.04",CARETECH COMMUNITY SERVICES,CARE ESTABLISHMENT,LD - South Locality,LD - South Cambs - Care,Residential Care
Cambridgeshire County Council,11-Apr-19,51300851993,"-1,198.04",CARETECH COMMUNITY SERVICES,CARE ESTABLISHMENT,LD - South Locality,LD - South Cambs - Care,Residential Care
Cambridgeshire County Council,11-Apr-19,51300851996,"-1,198.04",CARETECH COMMUNITY SERVICES,CARE ESTABLISHMENT,LD - South Locality,LD - South Cambs - Care,Residential Care
Cambridgeshire County Council,11-Apr-19,51300860136,"-1,198.04",CARETECH COMMUNITY SERVICES,CARE ESTABLISHMENT,LD - South Locality,LD - South Cambs - Special Needs,Residential Care
Cambridgeshire County Council,11-Apr-19,51300821956,"-1,198.04",CARETECH COMMUNITY SERVICES,CARE ESTABLISHMENT,LD - South Locality,LD - South Cambs - Special Needs,Residential Care
Cambridgeshire County Council,11-Apr-19,51300851986,"-1,198.04",CARETECH COMMUNITY SERVICES,CARE ESTABLISHMENT,LD - South Locality,LD - South Cambs - Special Needs,Residential Care
Cambridgeshire County Council,11-Apr-19,51300860157,"-1,198.04",CARETECH COMMUNITY SERVICES,CARE ESTABLISHMENT,LD - South Locality,LD - South Cambs - Care,Residential Care
Cambridgeshire County Council,11-Apr-19,51300852019,"-1,198.04",CARETECH COMMUNITY SERVICES,CARE ESTABLISHMENT,LD - South Locality,LD - South Cambs - Care,Residential Care
Cambridgeshire County Council,11-Apr-19,51300852017,"-1,198.04",CARETECH COMMUNITY SERVICES,CARE ESTABLISHMENT,LD - South Locality,LD - South Cambs - Care,Residential Care
Cambridgeshire County Council,11-Apr-19,51300821944,"-1,198.04",CARETECH COMMUNITY SERVICES,CARE ESTABLISHMENT,LD - South Locality,LD - South Cambs - Care,Residential Care
Cambridgeshire County Council,11-Apr-19,51300860163,"-1,198.04",CARETECH COMMUNITY SERVICES,CARE ESTABLISHMENT,LD - South Locality,LD - South Cambs - Care,Residential Care
Cambridgeshire County Council,11-Apr-19,51300860159,"-1,198.04",CARETECH COMMUNITY SERVICES,CARE ESTABLISHMENT,LD - South Locality,LD - South Cambs - Care,Residential Care
Cambridgeshire County Council,11-Apr-19,51300821936,"-1,198.04",CARETECH COMMUNITY SERVICES,CARE ESTABLISHMENT,LD - South Locality,LD - South Cambs - Special Needs,Residential Care
Cambridgeshire County Council,11-Apr-19,51300821971,"-1,198.04",CARETECH COMMUNITY SERVICES,CARE ESTABLISHMENT,LD - South Locality,LD - South Cambs - Special Needs,Residential Care
Cambridgeshire County Council,11-Apr-19,51300852001,"-1,198.04",CARETECH COMMUNITY SERVICES,CARE ESTABLISHMENT,LD - South Locality,LD - South Cambs - Special Needs,Residential Care
Cambridgeshire County Council,11-Apr-19,51300821942,"-1,198.04",CARETECH COMMUNITY SERVICES,CARE ESTABLISHMENT,LD - South Locality,LD - South Cambs - Special Needs,Residential Care
Cambridgeshire County Council,11-Apr-19,51300851979,"-1,198.04",CARETECH COMMUNITY SERVICES,CARE ESTABLISHMENT,LD - South Locality,LD - South Cambs - Care,Residential Care
Cambridgeshire County Council,11-Apr-19,51300821960,"-1,198.04",CARETECH COMMUNITY SERVICES,CARE ESTABLISHMENT,LD - South Locality,LD - South Cambs - Care,Residential Care
Cambridgeshire County Council,11-Apr-19,51300821939,"-1,198.04",CARETECH COMMUNITY SERVICES,CARE ESTABLISHMENT,LD - South Locality,LD - South Cambs - Special Needs,Residential Care
Cambridgeshire County Council,11-Apr-19,51300860174,"-1,198.04",CARETECH COMMUNITY SERVICES,CARE ESTABLISHMENT,LD - South Locality,LD - South Cambs - Special Needs,Residential Care
Cambridgeshire County Council,11-Apr-19,51300860138,"-1,198.04",CARETECH COMMUNITY SERVICES,CARE ESTABLISHMENT,LD - South Locality,LD - South Cambs - Special Needs,Residential Care
Cambridgeshire County Council,11-Apr-19,51300821991,"-1,198.04",CARETECH COMMUNITY SERVICES,CARE ESTABLISHMENT,LD - South Locality,LD - South Cambs - Care,Residential Care
Cambridgeshire County Council,11-Apr-19,51300860166,"-1,198.04",CARETECH COMMUNITY SERVICES,CARE ESTABLISHMENT,LD - South Locality,LD - South Cambs - Care,Residential Care
Cambridgeshire County Council,11-Apr-19,51300860144,"-1,198.04",CARETECH COMMUNITY SERVICES,CARE ESTABLISHMENT,LD - South Locality,LD - South Cambs - Care,Residential Care
Cambridgeshire County Council,11-Apr-19,51300851972,"-1,198.04",CARETECH COMMUNITY SERVICES,CARE ESTABLISHMENT,LD - South Locality,LD - South Cambs - Care,Residential Care
Cambridgeshire County Council,11-Apr-19,51300860139,"-1,198.04",CARETECH COMMUNITY SERVICES,CARE ESTABLISHMENT,LD - South Locality,LD - South Cambs - Care,Residential Care
Cambridgeshire County Council,11-Apr-19,51300821934,"-1,198.04",CARETECH COMMUNITY SERVICES,CARE ESTABLISHMENT,LD - South Locality,LD - South Cambs - Care,Residential Care
Cambridgeshire County Council,11-Apr-19,51300821985,"-1,198.04",CARETECH COMMUNITY SERVICES,CARE ESTABLISHMENT,LD - South Locality,LD - South Cambs - Care,Residential Care
Cambridgeshire County Council,11-Apr-19,51300851997,"-1,198.04",CARETECH COMMUNITY SERVICES,CARE ESTABLISHMENT,LD - South Locality,LD - South Cambs - Care,Residential Care
Cambridgeshire County Council,11-Apr-19,51300851995,"-1,198.04",CARETECH COMMUNITY SERVICES,CARE ESTABLISHMENT,LD - South Locality,LD - South Cambs - Care,Residential Care
Cambridgeshire County Council,11-Apr-19,51300860154,"-1,198.04",CARETECH COMMUNITY SERVICES,CARE ESTABLISHMENT,LD - South Locality,LD - South Cambs - Care,Residential Care
Cambridgeshire County Council,11-Apr-19,51300860165,"-1,198.04",CARETECH COMMUNITY SERVICES,CARE ESTABLISHMENT,LD - South Locality,LD - South Cambs - Care,Residential Care
Cambridgeshire County Council,11-Apr-19,51300860134,"-1,198.04",CARETECH COMMUNITY SERVICES,CARE ESTABLISHMENT,LD - South Locality,LD - South Cambs - Care,Residential Care
Cambridgeshire County Council,11-Apr-19,51300851974,"-1,198.04",CARETECH COMMUNITY SERVICES,CARE ESTABLISHMENT,LD - South Locality,LD - South Cambs - Care,Residential Care
Cambridgeshire County Council,11-Apr-19,51300852021,"-1,198.04",CARETECH COMMUNITY SERVICES,CARE ESTABLISHMENT,LD - South Locality,LD - South Cambs - Care,Residential Care
Cambridgeshire County Council,11-Apr-19,51300860176,"-1,198.04",CARETECH COMMUNITY SERVICES,CARE ESTABLISHMENT,LD - South Locality,LD - South Cambs - Care,Residential Care
Cambridgeshire County Council,11-Apr-19,51300821959,"-1,198.04",CARETECH COMMUNITY SERVICES,CARE ESTABLISHMENT,LD - South Locality,LD - South Cambs - Care,Residential Care
Cambridgeshire County Council,11-Apr-19,51300860182,"-1,198.04",CARETECH COMMUNITY SERVICES,CARE ESTABLISHMENT,LD - South Locality,LD - South Cambs - Care,Residential Care
Cambridgeshire County Council,11-Apr-19,51300860151,"-1,198.04",CARETECH COMMUNITY SERVICES,CARE ESTABLISHMENT,LD - South Locality,LD - South Cambs - Care,Residential Care
Cambridgeshire County Council,11-Apr-19,51300860186,"-1,198.04",CARETECH COMMUNITY SERVICES,CARE ESTABLISHMENT,LD - South Locality,LD - South Cambs - Care,Residential Care
Cambridgeshire County Council,11-Apr-19,51300821938,"-1,198.04",CARETECH COMMUNITY SERVICES,CARE ESTABLISHMENT,LD - South Locality,LD - South Cambs - Care,Residential Care
Cambridgeshire County Council,11-Apr-19,51300852018,"-1,198.04",CARETECH COMMUNITY SERVICES,CARE ESTABLISHMENT,LD - South Locality,LD - South Cambs - Care,Residential Care
Cambridgeshire County Council,11-Apr-19,51300860143,"-1,198.04",CARETECH COMMUNITY SERVICES,CARE ESTABLISHMENT,LD - South Locality,LD - South Cambs - Care,Residential Care
Cambridgeshire County Council,11-Apr-19,51300860164,"-1,198.04",CARETECH COMMUNITY SERVICES,CARE ESTABLISHMENT,LD - South Locality,LD - South Cambs - Care,Residential Care
Cambridgeshire County Council,11-Apr-19,51300852022,"-1,198.04",CARETECH COMMUNITY SERVICES,CARE ESTABLISHMENT,LD - South Locality,LD - South Cambs - Care,Residential Care
Cambridgeshire County Council,11-Apr-19,51300860173,"-1,198.04",CARETECH COMMUNITY SERVICES,CARE ESTABLISHMENT,LD - South Locality,LD - South Cambs - Care,Residential Care
Cambridgeshire County Council,11-Apr-19,51300852024,"-1,198.04",CARETECH COMMUNITY SERVICES,CARE ESTABLISHMENT,LD - South Locality,LD - South Cambs - Care,Residential Care
Cambridgeshire County Council,11-Apr-19,51300852007,"-1,198.04",CARETECH COMMUNITY SERVICES,CARE ESTABLISHMENT,LD - South Locality,LD - South Cambs - Care,Residential Care
Cambridgeshire County Council,11-Apr-19,51300851988,"-1,198.04",CARETECH COMMUNITY SERVICES,CARE ESTABLISHMENT,LD - South Locality,LD - South Cambs - Care,Residential Care
Cambridgeshire County Council,11-Apr-19,51300860155,"-1,198.04",CARETECH COMMUNITY SERVICES,CARE ESTABLISHMENT,LD - South Locality,LD - South Cambs - Care,Residential Care
Cambridgeshire County Council,11-Apr-19,51300860142,"-1,198.04",CARETECH COMMUNITY SERVICES,CARE ESTABLISHMENT,LD - South Locality,LD - South Cambs - Care,Residential Care
Cambridgeshire County Council,18-Apr-19,51300868308,"-1,198.04",CARETECH COMMUNITY SERVICES,CARE ESTABLISHMENT,LD - South Locality,LD - South Cambs - Special Needs,Residential Care
Cambridgeshire County Council,18-Apr-19,51300868341,"-1,198.04",CARETECH COMMUNITY SERVICES,CARE ESTABLISHMENT,LD - South Locality,LD - South Cambs - Special Needs,Residential Care
Cambridgeshire County Council,18-Apr-19,51300868345,"-1,198.04",CARETECH COMMUNITY SERVICES,CARE ESTABLISHMENT,LD - South Locality,LD - South Cambs - Special Needs,Residential Care
Cambridgeshire County Council,18-Apr-19,51300868338,"-1,198.04",CARETECH COMMUNITY SERVICES,CARE ESTABLISHMENT,LD - South Locality,LD - South Cambs - Special Needs,Residential Care
Cambridgeshire County Council,18-Apr-19,51300868312,"-1,198.04",CARETECH COMMUNITY SERVICES,CARE ESTABLISHMENT,LD - South Locality,LD - South Cambs - Special Needs,Residential Care
Cambridgeshire County Council,18-Apr-19,51300868336,"-1,198.04",CARETECH COMMUNITY SERVICES,CARE ESTABLISHMENT,LD - South Locality,LD - South Cambs - Special Needs,Residential Care
Cambridgeshire County Council,18-Apr-19,51300868337,"-1,198.04",CARETECH COMMUNITY SERVICES,CARE ESTABLISHMENT,LD - South Locality,LD - South Cambs - Special Needs,Residential Care
Cambridgeshire County Council,18-Apr-19,51300868304,"-1,198.04",CARETECH COMMUNITY SERVICES,CARE ESTABLISHMENT,LD - South Locality,LD - South Cambs - Special Needs,Residential Care
Cambridgeshire County Council,18-Apr-19,51300868311,"-1,198.04",CARETECH COMMUNITY SERVICES,CARE ESTABLISHMENT,LD - South Locality,LD - South Cambs - Special Needs,Residential Care
Cambridgeshire County Council,18-Apr-19,51300868323,"-1,198.04",CARETECH COMMUNITY SERVICES,CARE ESTABLISHMENT,LD - South Locality,LD - South Cambs - Special Needs,Residential Care
Cambridgeshire County Council,18-Apr-19,51300868325,"-1,198.04",CARETECH COMMUNITY SERVICES,CARE ESTABLISHMENT,LD - South Locality,LD - South Cambs - Special Needs,Residential Care
Cambridgeshire County Council,18-Apr-19,51300868321,"-1,198.04",CARETECH COMMUNITY SERVICES,CARE ESTABLISHMENT,LD - South Locality,LD - South Cambs - Care,Residential Care
Cambridgeshire County Council,18-Apr-19,51300868335,"-1,198.04",CARETECH COMMUNITY SERVICES,CARE ESTABLISHMENT,LD - South Locality,LD - South Cambs - Care,Residential Care
Cambridgeshire County Council,18-Apr-19,51300868331,"-1,198.04",CARETECH COMMUNITY SERVICES,CARE ESTABLISHMENT,LD - South Locality,LD - South Cambs - Care,Residential Care
Cambridgeshire County Council,18-Apr-19,51300868342,"-1,198.04",CARETECH COMMUNITY SERVICES,CARE ESTABLISHMENT,LD - South Locality,LD - South Cambs - Care,Residential Care
Cambridgeshire County Council,18-Apr-19,51300868343,"-1,198.04",CARETECH COMMUNITY SERVICES,CARE ESTABLISHMENT,LD - South Locality,LD - South Cambs - Care,Residential Care
Cambridgeshire County Council,18-Apr-19,51300868298,"-1,198.04",CARETECH COMMUNITY SERVICES,CARE ESTABLISHMENT,LD - South Locality,LD - South Cambs - Care,Residential Care
Cambridgeshire County Council,18-Apr-19,51300868297,"-1,198.04",CARETECH COMMUNITY SERVICES,CARE ESTABLISHMENT,LD - South Locality,LD - South Cambs - Care,Residential Care
Cambridgeshire County Council,18-Apr-19,51300868334,"-1,198.04",CARETECH COMMUNITY SERVICES,CARE ESTABLISHMENT,LD - South Locality,LD - South Cambs - Special Needs,Residential Care
Cambridgeshire County Council,18-Apr-19,51300868294,"-1,198.04",CARETECH COMMUNITY SERVICES,CARE ESTABLISHMENT,LD - South Locality,LD - South Cambs - Special Needs,Residential Care
Cambridgeshire County Council,18-Apr-19,51300868314,"-1,198.04",CARETECH COMMUNITY SERVICES,CARE ESTABLISHMENT,LD - South Locality,LD - South Cambs - Special Needs,Residential Care
Cambridgeshire County Council,18-Apr-19,51300868326,"-1,198.04",CARETECH COMMUNITY SERVICES,CARE ESTABLISHMENT,LD - South Locality,LD - South Cambs - Care,Residential Care
Cambridgeshire County Council,18-Apr-19,51300868291,"-1,198.04",CARETECH COMMUNITY SERVICES,CARE ESTABLISHMENT,LD - South Locality,LD - South Cambs - Care,Residential Care
Cambridgeshire County Council,18-Apr-19,51300868296,"-1,198.04",CARETECH COMMUNITY SERVICES,CARE ESTABLISHMENT,LD - South Locality,LD - South Cambs - Care,Residential Care
Cambridgeshire County Council,18-Apr-19,51300868299,"-1,198.04",CARETECH COMMUNITY SERVICES,CARE ESTABLISHMENT,LD - South Locality,LD - South Cambs - Care,Residential Care
Cambridgeshire County Council,18-Apr-19,51300868306,"-1,198.04",CARETECH COMMUNITY SERVICES,CARE ESTABLISHMENT,LD - South Locality,LD - South Cambs - Care,Residential Care
Cambridgeshire County Council,18-Apr-19,51300868307,"-1,198.04",CARETECH COMMUNITY SERVICES,CARE ESTABLISHMENT,LD - South Locality,LD - South Cambs - Care,Residential Care
Cambridgeshire County Council,25-Apr-19,51300894368,"-1,198.04",CARETECH COMMUNITY SERVICES,CARE ESTABLISHMENT,LD - South Locality,LD - South Cambs - Special Needs,Residential Care
Cambridgeshire County Council,25-Apr-19,51300894354,"-1,198.04",CARETECH COMMUNITY SERVICES,CARE ESTABLISHMENT,LD - South Locality,LD - South Cambs - Special Needs,Residential Care
Cambridgeshire County Council,25-Apr-19,51300894380,"-1,198.04",CARETECH COMMUNITY SERVICES,CARE ESTABLISHMENT,LD - South Locality,LD - South Cambs - Special Needs,Residential Care
Cambridgeshire County Council,25-Apr-19,51300894349,"-1,198.04",CARETECH COMMUNITY SERVICES,CARE ESTABLISHMENT,LD - South Locality,LD - South Cambs - Special Needs,Residential Care
Cambridgeshire County Council,25-Apr-19,51300894374,"-1,198.04",CARETECH COMMUNITY SERVICES,CARE ESTABLISHMENT,LD - South Locality,LD - South Cambs - Special Needs,Residential Care
Cambridgeshire County Council,25-Apr-19,51300894359,"-1,198.04",CARETECH COMMUNITY SERVICES,CARE ESTABLISHMENT,LD - South Locality,LD - South Cambs - Special Needs,Residential Care
Cambridgeshire County Council,25-Apr-19,51300894344,"-1,198.04",CARETECH COMMUNITY SERVICES,CARE ESTABLISHMENT,LD - South Locality,LD - South Cambs - Special Needs,Residential Care
Cambridgeshire County Council,25-Apr-19,51300894396,"-1,198.04",CARETECH COMMUNITY SERVICES,CARE ESTABLISHMENT,LD - South Locality,LD - South Cambs - Special Needs,Residential Care
Cambridgeshire County Council,25-Apr-19,51300894370,"-1,198.04",CARETECH COMMUNITY SERVICES,CARE ESTABLISHMENT,LD - South Locality,LD - South Cambs - Special Needs,Residential Care
Cambridgeshire County Council,25-Apr-19,51300894348,"-1,198.04",CARETECH COMMUNITY SERVICES,CARE ESTABLISHMENT,LD - South Locality,LD - South Cambs - Special Needs,Residential Care
Cambridgeshire County Council,25-Apr-19,51300894365,"-1,198.04",CARETECH COMMUNITY SERVICES,CARE ESTABLISHMENT,LD - South Locality,LD - South Cambs - Special Needs,Residential Care
Cambridgeshire County Council,25-Apr-19,51300894389,"-1,198.04",CARETECH COMMUNITY SERVICES,CARE ESTABLISHMENT,LD - South Locality,LD - South Cambs - Special Needs,Residential Care
Cambridgeshire County Council,25-Apr-19,51300894377,"-1,198.04",CARETECH COMMUNITY SERVICES,CARE ESTABLISHMENT,LD - South Locality,LD - South Cambs - Care,Residential Care
Cambridgeshire County Council,25-Apr-19,51300894392,"-1,198.04",CARETECH COMMUNITY SERVICES,CARE ESTABLISHMENT,LD - South Locality,LD - South Cambs - Special Needs,Residential Care
Cambridgeshire County Council,25-Apr-19,51300894404,"-1,198.04",CARETECH COMMUNITY SERVICES,CARE ESTABLISHMENT,LD - South Locality,LD - South Cambs - Care,Residential Care
Cambridgeshire County Council,25-Apr-19,51300894343,"-1,198.04",CARETECH COMMUNITY SERVICES,CARE ESTABLISHMENT,LD - South Locality,LD - South Cambs - Care,Residential Care
Cambridgeshire County Council,25-Apr-19,51300894341,"-1,198.04",CARETECH COMMUNITY SERVICES,CARE ESTABLISHMENT,LD - South Locality,LD - South Cambs - Care,Residential Care
Cambridgeshire County Council,25-Apr-19,51300894338,"-1,198.04",CARETECH COMMUNITY SERVICES,CARE ESTABLISHMENT,LD - South Locality,LD - South Cambs - Care,Residential Care
Cambridgeshire County Council,25-Apr-19,51300894375,"-1,198.04",CARETECH COMMUNITY SERVICES,CARE ESTABLISHMENT,LD - South Locality,LD - South Cambs - Care,Residential Care
Cambridgeshire County Council,25-Apr-19,51300894340,"-1,198.04",CARETECH COMMUNITY SERVICES,CARE ESTABLISHMENT,LD - South Locality,LD - South Cambs - Care,Residential Care
Cambridgeshire County Council,25-Apr-19,51300894385,"-1,198.04",CARETECH COMMUNITY SERVICES,CARE ESTABLISHMENT,LD - South Locality,LD - South Cambs - Care,Residential Care
Cambridgeshire County Council,25-Apr-19,51300894399,"-1,198.04",CARETECH COMMUNITY SERVICES,CARE ESTABLISHMENT,LD - South Locality,LD - South Cambs - Care,Residential Care
Cambridgeshire County Council,25-Apr-19,51300894350,"-1,198.04",CARETECH COMMUNITY SERVICES,CARE ESTABLISHMENT,LD - South Locality,LD - South Cambs - Care,Residential Care
Cambridgeshire County Council,25-Apr-19,51300894387,"-1,198.04",CARETECH COMMUNITY SERVICES,CARE ESTABLISHMENT,LD - South Locality,LD - South Cambs - Care,Residential Care
Cambridgeshire County Council,25-Apr-19,51300894382,"-1,198.04",CARETECH COMMUNITY SERVICES,CARE ESTABLISHMENT,LD - South Locality,LD - South Cambs - Care,Residential Care
Cambridgeshire County Council,25-Apr-19,51300894394,"-1,198.04",CARETECH COMMUNITY SERVICES,CARE ESTABLISHMENT,LD - South Locality,LD - South Cambs - Care,Residential Care
Cambridgeshire County Council,25-Apr-19,51300894345,"-1,198.04",CARETECH COMMUNITY SERVICES,CARE ESTABLISHMENT,LD - South Locality,LD - South Cambs - Care,Residential Care
Cambridgeshire County Council,25-Apr-19,51300830148,"-1,194.95",OAKLANDS CARE HOME,CARE ESTABLISHMENT,OPMH - City & South,Older People Mental Health E Cambs,Nursing Care
Cambridgeshire County Council,25-Apr-19,51300830149,"-1,194.95",OAKLANDS CARE HOME,CARE ESTABLISHMENT,OPMH - City & South,Older People Mental Health E Cambs,Nursing Care
Cambridgeshire County Council,11-Apr-19,51300838965,"-1,190.18",CARETECH COMMUNITY SERVICES,CARE ESTABLISHMENT,LD - Hunts Locality,LD - Huntigndonshire  - Special Needs,Residential Care
Cambridgeshire County Council,18-Apr-19,51300865726,"-1,188.45",VOYAGE,CARE ESTABLISHMENT,LD - South Locality,LD - South Cambs - Special Needs,Residential Care
Cambridgeshire County Council,25-Apr-19,51300838000,"-1,175.00",ST GEORGES NURSING HOME (WITHAM),CARE ESTABLISHMENT,Physical Disablity,Countywide PD Service - Care,Nursing Care
Cambridgeshire County Council,25-Apr-19,51300838001,"-1,175.00",ST GEORGES NURSING HOME (WITHAM),CARE ESTABLISHMENT,Physical Disablity,Countywide PD Service - Care,Nursing Care
Cambridgeshire County Council,17-Apr-19,51300846567,"-1,128.95",ALDERTON HOUSE,CARE ESTABLISHMENT,LD - East Locality,LD - East Cambs - Special Needs,Residential Care
Cambridgeshire County Council,17-Apr-19,51300855419,"-1,128.95",ALDERTON HOUSE,CARE ESTABLISHMENT,LD - East Locality,LD - East Cambs - Care,Residential Care
Cambridgeshire County Council,25-Apr-19,51300876698,"-1,128.95",ALDERTON HOUSE,CARE ESTABLISHMENT,LD - East Locality,LD - East Cambs - Care,Residential Care
Cambridgeshire County Council,25-Apr-19,51300865318,"-1,128.95",ALDERTON HOUSE,CARE ESTABLISHMENT,LD - East Locality,LD - East Cambs - Special Needs,Residential Care
Cambridgeshire County Council,25-Apr-19,51300825398,"-1,128.60",THE MARBROOK CENTRE,CARE ESTABLISHMENT,OPMH - Hunts & Fens,Older People Mental Health Hunts,Nursing Care
Cambridgeshire County Council,25-Apr-19,51300825397,"-1,128.60",THE MARBROOK CENTRE,CARE ESTABLISHMENT,OPMH - Hunts & Fens,Older People Mental Health Hunts,Nursing Care
Cambridgeshire County Council,25-Apr-19,51300810435,"-1,128.57",Keys Group,CARE ESTABLISHMENT,LAC Placements,Placements - residential homes,Agency Placements - Out of  County
Cambridgeshire County Council,11-Apr-19,51300829560,"-1,125.39",CARETECH COMMUNITY SERVICES,CARE ESTABLISHMENT,LD - Hunts Locality,LD - Huntigndonshire  - Special Needs,Residential Care
Cambridgeshire County Council,11-Apr-19,51300826919,"-1,125.39",CARETECH COMMUNITY SERVICES,CARE ESTABLISHMENT,LD - Hunts Locality,LD - Huntigndonshire  - Special Needs,Residential Care
Cambridgeshire County Council,11-Apr-19,51300838767,"-1,111.12",CARETECH COMMUNITY SERVICES,CARE ESTABLISHMENT,LD - Hunts Locality,LD - Huntigndonshire  - Special Needs,Residential Care
Cambridgeshire County Council,25-Apr-19,51300817494,"-1,103.11",GLENNFIELD CARE CENTRE (OP),CARE ESTABLISHMENT,LD - Fenland Locality,LD - Fenland  - Special Needs,Nursing Care
Cambridgeshire County Council,25-Apr-19,51300817493,"-1,103.11",GLENNFIELD CARE CENTRE (OP),CARE ESTABLISHMENT,LD - Fenland Locality,LD - Fenland  - Special Needs,Nursing Care
Cambridgeshire County Council,25-Apr-19,51300828032,"-1,100.00",ASKHAM VILLAGE COMMUNITY LTD,CARE ESTABLISHMENT,Physical Disablity,Countywide PD Service - Care,Residential Care
Cambridgeshire County Council,25-Apr-19,51300828033,"-1,100.00",ASKHAM VILLAGE COMMUNITY LTD,CARE ESTABLISHMENT,Physical Disablity,Countywide PD Service - Care,Residential Care
Cambridgeshire County Council,25-Apr-19,51300818323,"-1,091.84",CAMBRIDGE MANOR CARE HOME (TLC),CARE ESTABLISHMENT,OP - City & South Locality,Older People - City & South,Nursing Care
Cambridgeshire County Council,25-Apr-19,51300818324,"-1,091.84",CAMBRIDGE MANOR CARE HOME (TLC),CARE ESTABLISHMENT,OP - City & South Locality,Older People - City & South,Nursing Care
Cambridgeshire County Council,25-Apr-19,51300824133,"-1,091.84",SOHAM LODGE,CARE ESTABLISHMENT,Physical Disablity,Countywide PD Service - Care,Nursing Care
Cambridgeshire County Council,25-Apr-19,51300824134,"-1,091.84",SOHAM LODGE,CARE ESTABLISHMENT,Physical Disablity,Countywide PD Service - Care,Nursing Care
Cambridgeshire County Council,25-Apr-19,51300868173,"-1,091.65",GUYATT HOUSE CARE LTD,CARE ESTABLISHMENT,LD - East Locality,LD - East Cambs - Care,Domiciliary Care
Cambridgeshire County Council,25-Apr-19,51300851681,"-1,091.65",GUYATT HOUSE CARE LTD,CARE ESTABLISHMENT,LD - East Locality,LD - East Cambs - Care,Domiciliary Care
Cambridgeshire County Council,25-Apr-19,51300893105,"-1,091.65",GUYATT HOUSE CARE LTD,CARE ESTABLISHMENT,LD - East Locality,LD - East Cambs - Care,Domiciliary Care
Cambridgeshire County Council,25-Apr-19,51300859847,"-1,091.65",GUYATT HOUSE CARE LTD,CARE ESTABLISHMENT,LD - East Locality,LD - East Cambs - Special Needs,Domiciliary Care
Cambridgeshire County Council,25-Apr-19,51300817872,"-1,088.00",OAKLANDS CARE HOME,CARE ESTABLISHMENT,Physical Disablity,Countywide PD Service - Care,Nursing Care
Cambridgeshire County Council,25-Apr-19,51300817892,"-1,088.00",OAKLANDS CARE HOME,CARE ESTABLISHMENT,Physical Disablity,Countywide PD Service - Care,Nursing Care
Cambridgeshire County Council,25-Apr-19,51300840779,"-1,068.74",SOUTHWOOD HOUSE,CARE ESTABLISHMENT,Physical Disablity,Countywide PD Service - Care,Residential Care
Cambridgeshire County Council,25-Apr-19,51300840744,"-1,068.74",SOUTHWOOD HOUSE,CARE ESTABLISHMENT,Physical Disablity,Countywide PD Service - Care,Residential Care
Cambridgeshire County Council,11-Apr-19,51300845988,"-1,056.37",Redacted Personal Data,SERVICE USER,LD - City Locality,LD - City - Care,Direct Payments
Cambridgeshire County Council,11-Apr-19,51300845962,"-1,056.37",Redacted Personal Data,SERVICE USER,LD - City Locality,LD - City - Care,Direct Payments
Cambridgeshire County Council,11-Apr-19,51300845989,"-1,056.37",Redacted Personal Data,SERVICE USER,LD - City Locality,LD - City - Care,Direct Payments
Cambridgeshire County Council,11-Apr-19,51300845992,"-1,056.37",Redacted Personal Data,SERVICE USER,LD - City Locality,LD - City - Care,Direct Payments
Cambridgeshire County Council,11-Apr-19,51300845964,"-1,056.37",Redacted Personal Data,SERVICE USER,LD - City Locality,LD - City - Care,Direct Payments
Cambridgeshire County Council,11-Apr-19,51300845966,"-1,056.37",Redacted Personal Data,SERVICE USER,LD - City Locality,LD - City - Care,Direct Payments
Cambridgeshire County Council,11-Apr-19,51300845977,"-1,056.37",Redacted Personal Data,SERVICE USER,LD - City Locality,LD - City - Care,Direct Payments
Cambridgeshire County Council,11-Apr-19,51300845981,"-1,056.37",Redacted Personal Data,SERVICE USER,LD - City Locality,LD - City - Care,Direct Payments
Cambridgeshire County Council,11-Apr-19,51300845971,"-1,056.37",Redacted Personal Data,SERVICE USER,LD - City Locality,LD - City - Care,Direct Payments
Cambridgeshire County Council,11-Apr-19,51300845975,"-1,056.37",Redacted Personal Data,SERVICE USER,LD - City Locality,LD - City - Care,Direct Payments
Cambridgeshire County Council,11-Apr-19,51300845976,"-1,056.37",Redacted Personal Data,SERVICE USER,LD - City Locality,LD - City - Care,Direct Payments
Cambridgeshire County Council,11-Apr-19,51300845960,"-1,056.37",Redacted Personal Data,SERVICE USER,LD - City Locality,LD - City - Care,Direct Payments
Cambridgeshire County Council,05-Apr-19,51300833818,"-1,045.11",BUCHAN HEALTHCARE LTD,CARE ESTABLISHMENT,OP - City & South Locality,Older People - City & South,Nursing Care
Cambridgeshire County Council,05-Apr-19,51300833819,"-1,045.11",BUCHAN HEALTHCARE LTD,CARE ESTABLISHMENT,OP - City & South Locality,Older People - City & South,Nursing Care
Cambridgeshire County Council,25-Apr-19,51300819691,"-1,044.95",SOHAM LODGE,CARE ESTABLISHMENT,OP - East Cambs Locality,East Cambs - O P Team,Nursing Care
Cambridgeshire County Council,25-Apr-19,51300819610,"-1,044.95",SOHAM LODGE,CARE ESTABLISHMENT,OP - East Cambs Locality,East Cambs - O P Team,Nursing Care
Cambridgeshire County Council,25-Apr-19,51300828486,"-1,044.95",CAMBRIDGE MANOR CARE HOME (TLC),CARE ESTABLISHMENT,Physical Disablity,Countywide PD Service - Care,Nursing Care
Cambridgeshire County Council,25-Apr-19,51300828491,"-1,044.95",CAMBRIDGE MANOR CARE HOME (TLC),CARE ESTABLISHMENT,Physical Disablity,Countywide PD Service - Care,Nursing Care
Cambridgeshire County Council,25-Apr-19,51300870389,"-1,041.84",HOME CLOSE LTD,CARE ESTABLISHMENT,OP - City & South Locality,Older People - City & South,Nursing Care
Cambridgeshire County Council,25-Apr-19,51300870388,"-1,041.84",HOME CLOSE LTD,CARE ESTABLISHMENT,OP - City & South Locality,Older People - City & South,Nursing Care
Cambridgeshire County Council,25-Apr-19,51300870390,"-1,041.84",HOME CLOSE LTD,CARE ESTABLISHMENT,OP - City & South Locality,Older People - City & South,Nursing Care
Cambridgeshire County Council,25-Apr-19,51300870386,"-1,041.84",HOME CLOSE LTD,CARE ESTABLISHMENT,OP - City & South Locality,Older People - City & South,Nursing Care
Cambridgeshire County Council,25-Apr-19,51300840764,"-1,030.00",HUNTERS HEALTHCARE (HUNTERS DOWN),CARE ESTABLISHMENT,OP - Hunts Locality,Hunts O P  Team,Residential Care
Cambridgeshire County Council,25-Apr-19,51300840692,"-1,030.00",HUNTERS HEALTHCARE (HUNTERS DOWN),CARE ESTABLISHMENT,OP - Hunts Locality,Hunts O P  Team,Residential Care
Cambridgeshire County Council,11-Apr-19,51300836622,"-1,027.20",CARETECH COMMUNITY SERVICES,CARE ESTABLISHMENT,LD - South Locality,LD - South Cambs - Special Needs,Residential Care
Cambridgeshire County Council,11-Apr-19,51300816424,"-1,027.20",CARETECH COMMUNITY SERVICES,CARE ESTABLISHMENT,LD - South Locality,LD - South Cambs - Special Needs,Residential Care
Cambridgeshire County Council,11-Apr-19,51300852023,"-1,026.89",CARETECH COMMUNITY SERVICES,CARE ESTABLISHMENT,LD - South Locality,LD - South Cambs - Special Needs,Residential Care
Cambridgeshire County Council,11-Apr-19,51300821993,"-1,026.89",CARETECH COMMUNITY SERVICES,CARE ESTABLISHMENT,LD - South Locality,LD - South Cambs - Special Needs,Residential Care
Cambridgeshire County Council,11-Apr-19,51300860171,"-1,026.89",CARETECH COMMUNITY SERVICES,CARE ESTABLISHMENT,LD - South Locality,LD - South Cambs - Care,Residential Care
Cambridgeshire County Council,18-Apr-19,51300868316,"-1,026.89",CARETECH COMMUNITY SERVICES,CARE ESTABLISHMENT,LD - South Locality,LD - South Cambs - Care,Residential Care
Cambridgeshire County Council,25-Apr-19,51300894386,"-1,026.89",CARETECH COMMUNITY SERVICES,CARE ESTABLISHMENT,LD - South Locality,LD - South Cambs - Special Needs,Residential Care
Cambridgeshire County Council,25-Apr-19,51300830477,"-1,024.84",CARE UK LIMITED,CARE ESTABLISHMENT,OP - Hunts Locality,Hunts O P  Team,Nursing Care
Cambridgeshire County Council,25-Apr-19,51300830476,"-1,024.84",CARE UK LIMITED,CARE ESTABLISHMENT,OP - Hunts Locality,Hunts O P  Team,Nursing Care
Cambridgeshire County Council,25-Apr-19,51300829073,"-1,009.46",ASKHAM VILLAGE COMMUNITY LTD,CARE ESTABLISHMENT,OP - City & South Locality,Older People - City & South,Nursing Care
Cambridgeshire County Council,25-Apr-19,51300829074,"-1,009.46",ASKHAM VILLAGE COMMUNITY LTD,CARE ESTABLISHMENT,OP - City & South Locality,Older People - City & South,Nursing Care
Cambridgeshire County Council,25-Apr-19,51300826436,"-1,003.11",Wyndham Hall Care Home (Maria Mallaband Care Group Ltd),CARE ESTABLISHMENT,OP - City & South Locality,Older People - City & South,Nursing Care
Cambridgeshire County Council,25-Apr-19,51300826434,"-1,003.11",Wyndham Hall Care Home (Maria Mallaband Care Group Ltd),CARE ESTABLISHMENT,OP - City & South Locality,Older People - City & South,Nursing Care
Cambridgeshire County Council,05-Apr-19,51300844627,"-1,002.02",ATLAS HOME SUPPORT,CARE ESTABLISHMENT,LD - Hunts Locality,LD - Huntigndonshire  - Care,Supported Living
Cambridgeshire County Council,05-Apr-19,51300844652,"-1,002.02",ATLAS HOME SUPPORT,CARE ESTABLISHMENT,LD - Hunts Locality,LD - Huntigndonshire  - Care,Supported Living
Cambridgeshire County Council,05-Apr-19,51300844632,"-1,002.02",ATLAS HOME SUPPORT,CARE ESTABLISHMENT,LD - Hunts Locality,LD - Huntigndonshire  - Care,Supported Living
Cambridgeshire County Council,05-Apr-19,51300844661,"-1,002.02",ATLAS HOME SUPPORT,CARE ESTABLISHMENT,LD - Hunts Locality,LD - Huntigndonshire  - Care,Supported Living
Cambridgeshire County Council,25-Apr-19,51300825685,"-1,000.00",ASKHAM VILLAGE COMMUNITY LTD,CARE ESTABLISHMENT,OP - Fenland Locality,Older People - Fenland,Residential Care
Cambridgeshire County Council,25-Apr-19,51300825684,"-1,000.00",ASKHAM VILLAGE COMMUNITY LTD,CARE ESTABLISHMENT,OP - Fenland Locality,Older People - Fenland,Residential Care
Cambridgeshire County Council,25-Apr-19,51300818359,-991.84,HOME CLOSE LTD,CARE ESTABLISHMENT,OP - East Cambs Locality,East Cambs - O P Team,Nursing Care
Cambridgeshire County Council,25-Apr-19,51300818358,-991.84,HOME CLOSE LTD,CARE ESTABLISHMENT,OP - East Cambs Locality,East Cambs - O P Team,Nursing Care
Cambridgeshire County Council,25-Apr-19,51300841512,-991.84,SOHAM LODGE,CARE ESTABLISHMENT,OP - East Cambs Locality,East Cambs - O P Team,Nursing Care
Cambridgeshire County Council,25-Apr-19,51300841524,-991.84,SOHAM LODGE,CARE ESTABLISHMENT,OP - East Cambs Locality,East Cambs - O P Team,Nursing Care
Cambridgeshire County Council,25-Apr-19,51300826710,-990.91,THE MORETON CENTRE,CARE ESTABLISHMENT,OP - Fenland Locality,Older People - Fenland,Nursing Care
Cambridgeshire County Council,25-Apr-19,51300826697,-990.91,THE MORETON CENTRE,CARE ESTABLISHMENT,OP - Fenland Locality,Older People - Fenland,Nursing Care
Cambridgeshire County Council,25-Apr-19,51300839272,-984.38,THE MARBROOK CENTRE,CARE ESTABLISHMENT,OPMH - Hunts & Fens,Older People Mental Health Hunts,Nursing Care
Cambridgeshire County Council,25-Apr-19,51300839267,-984.38,THE MARBROOK CENTRE,CARE ESTABLISHMENT,OPMH - Hunts & Fens,Older People Mental Health Hunts,Nursing Care
Cambridgeshire County Council,25-Apr-19,51300830553,-982.88,ST DAVIDS APL,CARE ESTABLISHMENT,LD - City Locality,LD - City - Special Needs,Residential Care
Cambridgeshire County Council,25-Apr-19,51300830568,-982.88,ST DAVIDS APL,CARE ESTABLISHMENT,LD - City Locality,LD - City - Special Needs,Residential Care
Cambridgeshire County Council,25-Apr-19,51300825399,-980.00,HIGHFIELD NURS & RES HOME,CARE ESTABLISHMENT,Physical Disablity,Countywide PD Service - Care,Nursing Care
Cambridgeshire County Council,25-Apr-19,51300825400,-980.00,HIGHFIELD NURS & RES HOME,CARE ESTABLISHMENT,Physical Disablity,Countywide PD Service - Care,Nursing Care
Cambridgeshire County Council,11-Apr-19,51300833461,-957.87,CARETECH COMMUNITY SERVICES,CARE ESTABLISHMENT,LD - South Locality,LD - South Cambs - Care,Residential Care
Cambridgeshire County Council,11-Apr-19,51300833446,-957.87,CARETECH COMMUNITY SERVICES,CARE ESTABLISHMENT,LD - South Locality,LD - South Cambs - Care,Residential Care
Cambridgeshire County Council,11-Apr-19,51300833460,-957.87,CARETECH COMMUNITY SERVICES,CARE ESTABLISHMENT,LD - South Locality,LD - South Cambs - Care,Residential Care
Cambridgeshire County Council,11-Apr-19,51300833451,-957.87,CARETECH COMMUNITY SERVICES,CARE ESTABLISHMENT,LD - South Locality,LD - South Cambs - Care,Residential Care
Cambridgeshire County Council,11-Apr-19,51300833454,-957.87,CARETECH COMMUNITY SERVICES,CARE ESTABLISHMENT,LD - South Locality,LD - South Cambs - Care,Residential Care
Cambridgeshire County Council,11-Apr-19,51300833444,-957.87,CARETECH COMMUNITY SERVICES,CARE ESTABLISHMENT,LD - South Locality,LD - South Cambs - Care,Residential Care
Cambridgeshire County Council,11-Apr-19,51300833445,-957.87,CARETECH COMMUNITY SERVICES,CARE ESTABLISHMENT,LD - South Locality,LD - South Cambs - Care,Residential Care
Cambridgeshire County Council,11-Apr-19,51300833455,-957.87,CARETECH COMMUNITY SERVICES,CARE ESTABLISHMENT,LD - South Locality,LD - South Cambs - Care,Residential Care
Cambridgeshire County Council,25-Apr-19,51300828822,-950.00,ASKHAM VILLAGE COMMUNITY LTD,CARE ESTABLISHMENT,OP - Fenland Locality,Older People - Fenland,Nursing Care
Cambridgeshire County Council,25-Apr-19,51300828821,-950.00,ASKHAM VILLAGE COMMUNITY LTD,CARE ESTABLISHMENT,OP - Fenland Locality,Older People - Fenland,Nursing Care
Cambridgeshire County Council,25-Apr-19,51300822085,-950.00,HOME MEADOW LTD,CARE ESTABLISHMENT,OP - City & South Locality,Older People - City & South,Residential Care
Cambridgeshire County Council,25-Apr-19,51300822095,-950.00,HOME MEADOW LTD,CARE ESTABLISHMENT,OP - City & South Locality,Older People - City & South,Residential Care
Cambridgeshire County Council,25-Apr-19,51300816419,-950.00,ANAHITA RECOVERY CENTRE,CARE ESTABLISHMENT,AMH - City South,Cambridge South Mental Health,Residential Care
Cambridgeshire County Council,25-Apr-19,51300816420,-950.00,ANAHITA RECOVERY CENTRE,CARE ESTABLISHMENT,AMH - City South,Cambridge South Mental Health,Residential Care
Cambridgeshire County Council,25-Apr-19,51300878509,-950.00,ASKHAM HALL,CARE ESTABLISHMENT,OP - Fenland Locality,Older People - Fenland,Nursing Care
Cambridgeshire County Council,25-Apr-19,51300855987,-950.00,ASKHAM HALL,CARE ESTABLISHMENT,OP - Fenland Locality,Older People - Fenland,Nursing Care
Cambridgeshire County Council,25-Apr-19,51300855974,-950.00,ASKHAM HALL,CARE ESTABLISHMENT,OP - City & South Locality,Older People - City & South,Nursing Care
Cambridgeshire County Council,25-Apr-19,51300855982,-950.00,ASKHAM HALL,CARE ESTABLISHMENT,OP - City & South Locality,Older People - City & South,Nursing Care
Cambridgeshire County Council,25-Apr-19,51300878504,-950.00,ASKHAM HALL,CARE ESTABLISHMENT,OP - City & South Locality,Older People - City & South,Nursing Care
Cambridgeshire County Council,25-Apr-19,51300855979,-950.00,ASKHAM HALL,CARE ESTABLISHMENT,OP - City & South Locality,Older People - City & South,Nursing Care
Cambridgeshire County Council,25-Apr-19,51300847135,-950.00,ASKHAM HALL,CARE ESTABLISHMENT,OP - City & South Locality,Older People - City & South,Nursing Care
Cambridgeshire County Council,25-Apr-19,51300855977,-950.00,ASKHAM HALL,CARE ESTABLISHMENT,OP - City & South Locality,Older People - City & South,Nursing Care
Cambridgeshire County Council,25-Apr-19,51300865654,-950.00,ASKHAM HALL,CARE ESTABLISHMENT,OP - City & South Locality,Older People - City & South,Nursing Care
Cambridgeshire County Council,25-Apr-19,51300878508,-950.00,ASKHAM HALL,CARE ESTABLISHMENT,OP - City & South Locality,Older People - City & South,Nursing Care
Cambridgeshire County Council,25-Apr-19,51300865665,-950.00,ASKHAM HALL,CARE ESTABLISHMENT,OP - City & South Locality,Older People - City & South,Nursing Care
Cambridgeshire County Council,25-Apr-19,51300865666,-950.00,ASKHAM HALL,CARE ESTABLISHMENT,OP - City & South Locality,Older People - City & South,Nursing Care
Cambridgeshire County Council,25-Apr-19,51300865669,-950.00,ASKHAM HALL,CARE ESTABLISHMENT,OP - City & South Locality,Older People - City & South,Nursing Care
Cambridgeshire County Council,25-Apr-19,51300878503,-950.00,ASKHAM HALL,CARE ESTABLISHMENT,OP - City & South Locality,Older People - City & South,Nursing Care
Cambridgeshire County Council,25-Apr-19,51300847123,-950.00,ASKHAM HALL,CARE ESTABLISHMENT,OP - City & South Locality,Older People - City & South,Nursing Care
Cambridgeshire County Council,25-Apr-19,51300856106,-950.00,ASKHAM HALL,CARE ESTABLISHMENT,Physical Disablity,Countywide PD Service - Care,Nursing Care
Cambridgeshire County Council,25-Apr-19,51300856103,-950.00,ASKHAM HALL,CARE ESTABLISHMENT,Physical Disablity,Countywide PD Service - Care,Nursing Care
Cambridgeshire County Council,25-Apr-19,51300856102,-950.00,ASKHAM HALL,CARE ESTABLISHMENT,Physical Disablity,Countywide PD Service - Care,Nursing Care
Cambridgeshire County Council,25-Apr-19,51300856105,-950.00,ASKHAM HALL,CARE ESTABLISHMENT,Physical Disablity,Countywide PD Service - Care,Nursing Care
Cambridgeshire County Council,25-Apr-19,51300856104,-950.00,ASKHAM HALL,CARE ESTABLISHMENT,Physical Disablity,Countywide PD Service - Care,Nursing Care
Cambridgeshire County Council,25-Apr-19,51300856107,-950.00,ASKHAM HALL,CARE ESTABLISHMENT,Physical Disablity,Countywide PD Service - Care,Nursing Care
Cambridgeshire County Council,25-Apr-19,51300865657,-950.00,ASKHAM HALL,CARE ESTABLISHMENT,OP - Fenland Locality,Older People - Fenland,Nursing Care
Cambridgeshire County Council,25-Apr-19,51300847128,-950.00,ASKHAM HALL,CARE ESTABLISHMENT,OP - Fenland Locality,Older People - Fenland,Nursing Care
Cambridgeshire County Council,25-Apr-19,51300878506,-950.00,ASKHAM HALL,CARE ESTABLISHMENT,OP - Fenland Locality,Older People - Fenland,Nursing Care
Cambridgeshire County Council,25-Apr-19,51300865662,-950.00,ASKHAM HALL,CARE ESTABLISHMENT,OP - Fenland Locality,Older People - Fenland,Nursing Care
Cambridgeshire County Council,25-Apr-19,51300847131,-950.00,ASKHAM HALL,CARE ESTABLISHMENT,OP - Fenland Locality,Older People - Fenland,Nursing Care
Cambridgeshire County Council,25-Apr-19,51300855971,-950.00,ASKHAM HALL,CARE ESTABLISHMENT,OP - Fenland Locality,Older People - Fenland,Nursing Care
Cambridgeshire County Council,25-Apr-19,51300847125,-950.00,ASKHAM HALL,CARE ESTABLISHMENT,OP - Fenland Locality,Older People - Fenland,Nursing Care
Cambridgeshire County Council,25-Apr-19,51300847129,-950.00,ASKHAM HALL,CARE ESTABLISHMENT,OP - Fenland Locality,Older People - Fenland,Nursing Care
Cambridgeshire County Council,25-Apr-19,51300878502,-950.00,ASKHAM HALL,CARE ESTABLISHMENT,OP - Fenland Locality,Older People - Fenland,Nursing Care
Cambridgeshire County Council,25-Apr-19,51300833686,-944.95,OAKLANDS CARE HOME,CARE ESTABLISHMENT,OP - East Cambs Locality,East Cambs - O P Team,Nursing Care
Cambridgeshire County Council,25-Apr-19,51300833691,-944.95,OAKLANDS CARE HOME,CARE ESTABLISHMENT,OP - East Cambs Locality,East Cambs - O P Team,Nursing Care
Cambridgeshire County Council,25-Apr-19,51300815330,-941.84,OAKLANDS CARE HOME,CARE ESTABLISHMENT,OP - City & South Locality,Older People - City & South,Nursing Care
Cambridgeshire County Council,25-Apr-19,51300815331,-941.84,OAKLANDS CARE HOME,CARE ESTABLISHMENT,OP - City & South Locality,Older People - City & South,Nursing Care
Cambridgeshire County Council,25-Apr-19,51300820881,-941.84,SOHAM LODGE,CARE ESTABLISHMENT,OP - East Cambs Locality,East Cambs - O P Team,Nursing Care
Cambridgeshire County Council,25-Apr-19,51300820888,-941.84,SOHAM LODGE,CARE ESTABLISHMENT,OP - East Cambs Locality,East Cambs - O P Team,Nursing Care
Cambridgeshire County Council,03-Apr-19,51300843342,-940.10,LGSS LAW LTD,TRADE SUPPLIER,Financial Assessments,Client Funds Team Cambs,Other Cost Recovery
Cambridgeshire County Council,25-Apr-19,51300835548,-939.20,THE CAMBRIDGE NURSING CENTRE,CARE ESTABLISHMENT,OPMH - City & South,Older People Mental Health City & South,Nursing Care
Cambridgeshire County Council,25-Apr-19,51300835547,-939.20,THE CAMBRIDGE NURSING CENTRE,CARE ESTABLISHMENT,OPMH - City & South,Older People Mental Health City & South,Nursing Care
Cambridgeshire County Council,25-Apr-19,51300835545,-939.20,THE CAMBRIDGE NURSING CENTRE,CARE ESTABLISHMENT,OPMH - City & South,Older People Mental Health City & South,Nursing Care
Cambridgeshire County Council,25-Apr-19,51300835546,-939.20,THE CAMBRIDGE NURSING CENTRE,CARE ESTABLISHMENT,OPMH - City & South,Older People Mental Health City & South,Nursing Care
Cambridgeshire County Council,25-Apr-19,51300835541,-939.20,THE CAMBRIDGE NURSING CENTRE,CARE ESTABLISHMENT,OPMH - City & South,Older People Mental Health City & South,Nursing Care
Cambridgeshire County Council,25-Apr-19,51300835543,-939.20,THE CAMBRIDGE NURSING CENTRE,CARE ESTABLISHMENT,OPMH - City & South,Older People Mental Health City & South,Nursing Care
Cambridgeshire County Council,25-Apr-19,51300834505,-914.54,PRIORY GROUP RE REDLANDS CARE HOME,CARE ESTABLISHMENT,AMH - Hunts & Fens,E Cambs & Fenland Mental Health Team,Residential Care
Cambridgeshire County Council,25-Apr-19,51300834504,-914.54,PRIORY GROUP RE REDLANDS CARE HOME,CARE ESTABLISHMENT,AMH - Hunts & Fens,E Cambs & Fenland Mental Health Team,Residential Care
Cambridgeshire County Council,25-Apr-19,51300850864,-911.17,THE GROVE CHESHIRE HOME,CARE ESTABLISHMENT,LD - East Locality,LD - East Cambs - Special Needs,Residential Care
Cambridgeshire County Council,25-Apr-19,51300867756,-911.17,THE GROVE CHESHIRE HOME,CARE ESTABLISHMENT,LD - East Locality,LD - East Cambs - Special Needs,Residential Care
Cambridgeshire County Council,25-Apr-19,51300889891,-911.17,THE GROVE CHESHIRE HOME,CARE ESTABLISHMENT,LD - East Locality,LD - East Cambs - Special Needs,Residential Care
Cambridgeshire County Council,25-Apr-19,51300889892,-911.17,THE GROVE CHESHIRE HOME,CARE ESTABLISHMENT,LD - East Locality,LD - East Cambs - Special Needs,Residential Care
Cambridgeshire County Council,25-Apr-19,51300867748,-911.17,THE GROVE CHESHIRE HOME,CARE ESTABLISHMENT,LD - East Locality,LD - East Cambs - Special Needs,Residential Care
Cambridgeshire County Council,25-Apr-19,51300859315,-911.17,THE GROVE CHESHIRE HOME,CARE ESTABLISHMENT,LD - Fenland Locality,LD - Fenland  - Special Needs,Residential Care
Cambridgeshire County Council,25-Apr-19,51300850872,-911.17,THE GROVE CHESHIRE HOME,CARE ESTABLISHMENT,LD - Fenland Locality,LD - Fenland  - Special Needs,Residential Care
Cambridgeshire County Council,25-Apr-19,51300859320,-911.17,THE GROVE CHESHIRE HOME,CARE ESTABLISHMENT,LD - East Locality,LD - East Cambs - Special Needs,Residential Care
Cambridgeshire County Council,25-Apr-19,51300889887,-911.17,THE GROVE CHESHIRE HOME,CARE ESTABLISHMENT,LD - East Locality,LD - East Cambs - Special Needs,Residential Care
Cambridgeshire County Council,25-Apr-19,51300850875,-911.17,THE GROVE CHESHIRE HOME,CARE ESTABLISHMENT,LD - Fenland Locality,LD - Fenland  - Special Needs,Residential Care
Cambridgeshire County Council,25-Apr-19,51300867749,-911.17,THE GROVE CHESHIRE HOME,CARE ESTABLISHMENT,LD - Fenland Locality,LD - Fenland  - Special Needs,Residential Care
Cambridgeshire County Council,25-Apr-19,51300859306,-911.17,THE GROVE CHESHIRE HOME,CARE ESTABLISHMENT,LD - Fenland Locality,LD - Fenland  - Special Needs,Residential Care
Cambridgeshire County Council,25-Apr-19,51300859309,-911.17,THE GROVE CHESHIRE HOME,CARE ESTABLISHMENT,LD - Fenland Locality,LD - Fenland  - Special Needs,Residential Care
Cambridgeshire County Council,25-Apr-19,51300889890,-911.17,THE GROVE CHESHIRE HOME,CARE ESTABLISHMENT,LD - East Locality,LD - East Cambs - Special Needs,Residential Care
Cambridgeshire County Council,25-Apr-19,51300859313,-911.17,THE GROVE CHESHIRE HOME,CARE ESTABLISHMENT,LD - East Locality,LD - East Cambs - Special Needs,Residential Care
Cambridgeshire County Council,25-Apr-19,51300889895,-911.17,THE GROVE CHESHIRE HOME,CARE ESTABLISHMENT,LD - East Locality,LD - East Cambs - Special Needs,Residential Care
Cambridgeshire County Council,25-Apr-19,51300867744,-911.17,THE GROVE CHESHIRE HOME,CARE ESTABLISHMENT,LD - East Locality,LD - East Cambs - Special Needs,Residential Care
Cambridgeshire County Council,25-Apr-19,51300850861,-911.17,THE GROVE CHESHIRE HOME,CARE ESTABLISHMENT,LD - East Locality,LD - East Cambs - Special Needs,Residential Care
Cambridgeshire County Council,25-Apr-19,51300859314,-911.17,THE GROVE CHESHIRE HOME,CARE ESTABLISHMENT,LD - East Locality,LD - East Cambs - Special Needs,Residential Care
Cambridgeshire County Council,25-Apr-19,51300850865,-911.17,THE GROVE CHESHIRE HOME,CARE ESTABLISHMENT,LD - East Locality,LD - East Cambs - Special Needs,Residential Care
Cambridgeshire County Council,25-Apr-19,51300889885,-911.17,THE GROVE CHESHIRE HOME,CARE ESTABLISHMENT,LD - East Locality,LD - East Cambs - Special Needs,Residential Care
Cambridgeshire County Council,25-Apr-19,51300859311,-911.17,THE GROVE CHESHIRE HOME,CARE ESTABLISHMENT,LD - East Locality,LD - East Cambs - Special Needs,Residential Care
Cambridgeshire County Council,25-Apr-19,51300867746,-911.17,THE GROVE CHESHIRE HOME,CARE ESTABLISHMENT,LD - East Locality,LD - East Cambs - Special Needs,Residential Care
Cambridgeshire County Council,25-Apr-19,51300889903,-911.17,THE GROVE CHESHIRE HOME,CARE ESTABLISHMENT,LD - Fenland Locality,LD - Fenland  - Special Needs,Residential Care
Cambridgeshire County Council,25-Apr-19,51300850874,-911.17,THE GROVE CHESHIRE HOME,CARE ESTABLISHMENT,LD - Fenland Locality,LD - Fenland  - Special Needs,Residential Care
Cambridgeshire County Council,25-Apr-19,51300867745,-911.17,THE GROVE CHESHIRE HOME,CARE ESTABLISHMENT,LD - Fenland Locality,LD - Fenland  - Special Needs,Residential Care
Cambridgeshire County Council,25-Apr-19,51300859318,-911.17,THE GROVE CHESHIRE HOME,CARE ESTABLISHMENT,LD - Fenland Locality,LD - Fenland  - Special Needs,Residential Care
Cambridgeshire County Council,25-Apr-19,51300867755,-911.17,THE GROVE CHESHIRE HOME,CARE ESTABLISHMENT,LD - Fenland Locality,LD - Fenland  - Special Needs,Residential Care
Cambridgeshire County Council,25-Apr-19,51300850873,-911.17,THE GROVE CHESHIRE HOME,CARE ESTABLISHMENT,LD - East Locality,LD - East Cambs - Special Needs,Residential Care
Cambridgeshire County Council,25-Apr-19,51300850863,-911.17,THE GROVE CHESHIRE HOME,CARE ESTABLISHMENT,LD - East Locality,LD - East Cambs - Special Needs,Residential Care
Cambridgeshire County Council,25-Apr-19,51300867743,-911.17,THE GROVE CHESHIRE HOME,CARE ESTABLISHMENT,LD - Fenland Locality,LD - Fenland  - Special Needs,Residential Care
Cambridgeshire County Council,25-Apr-19,51300889900,-911.17,THE GROVE CHESHIRE HOME,CARE ESTABLISHMENT,LD - East Locality,LD - East Cambs - Special Needs,Residential Care
Cambridgeshire County Council,11-Apr-19,51300845965,-905.46,Redacted Personal Data,SERVICE USER,LD - City Locality,LD - City - Care,Direct Payments
Cambridgeshire County Council,11-Apr-19,51300846001,-905.46,Redacted Personal Data,SERVICE USER,LD - City Locality,LD - City - Care,Direct Payments
Cambridgeshire County Council,23-Apr-19,51300810046,-902.40,RANDSTAD PUBLIC SERVICES (EDU),EDUCATION,SEND Specialist Services - Head of Service,SEND Specialist Services - SEMH Support Programme,Professional Fees and Hired Services
Cambridgeshire County Council,25-Apr-19,51300836262,-900.11,THE MARBROOK CENTRE,CARE ESTABLISHMENT,OPMH - Under 65,Older People Mental Health - Under 65's,Nursing Care
Cambridgeshire County Council,25-Apr-19,51300836273,-900.11,THE MARBROOK CENTRE,CARE ESTABLISHMENT,OPMH - Under 65,Older People Mental Health - Under 65's,Nursing Care
Cambridgeshire County Council,25-Apr-19,51300838346,-893.00,CAMBRIDGE MANOR CARE HOME (TLC),CARE ESTABLISHMENT,OPMH - City & South,Older People Mental Health E Cambs,Nursing Care
Cambridgeshire County Council,25-Apr-19,51300838222,-893.00,CAMBRIDGE MANOR CARE HOME (TLC),CARE ESTABLISHMENT,OPMH - City & South,Older People Mental Health E Cambs,Nursing Care
Cambridgeshire County Council,25-Apr-19,51300822266,-891.84,Potton House,COMPANY,OP - City & South Locality,Older People - City & South,Nursing Care
Cambridgeshire County Council,25-Apr-19,51300822267,-891.84,Potton House,COMPANY,OP - City & South Locality,Older People - City & South,Nursing Care
Cambridgeshire County Council,05-Apr-19,51300846009,-887.03,COTTENHAM COURT NURSING HOME,CARE ESTABLISHMENT,OP - East Cambs Locality,East Cambs - O P Team,Nursing Care
Cambridgeshire County Council,25-Apr-19,51300819440,-875.61,GLENNFIELD CARE CENTRE (OP),CARE ESTABLISHMENT,AMH - Hunts & Fens,Hunts Mental Health Team,Residential Care
Cambridgeshire County Council,25-Apr-19,51300819439,-875.61,GLENNFIELD CARE CENTRE (OP),CARE ESTABLISHMENT,AMH - Hunts & Fens,Hunts Mental Health Team,Residential Care
Cambridgeshire County Council,25-Apr-19,51300825728,-875.61,GLENNFIELD CARE CENTRE (OP),CARE ESTABLISHMENT,AMH - Hunts & Fens,E Cambs & Fenland Mental Health Team,Residential Care
Cambridgeshire County Council,25-Apr-19,51300825730,-875.61,GLENNFIELD CARE CENTRE (OP),CARE ESTABLISHMENT,AMH - Hunts & Fens,E Cambs & Fenland Mental Health Team,Residential Care
Cambridgeshire County Council,25-Apr-19,51300867790,-875.00,THE HILLINGS LIMITED,CARE ESTABLISHMENT,OP - Hunts Locality,Hunts O P  Team,Residential Care
Cambridgeshire County Council,25-Apr-19,51300867781,-875.00,THE HILLINGS LIMITED,CARE ESTABLISHMENT,OP - Hunts Locality,Hunts O P  Team,Residential Care
Cambridgeshire County Council,25-Apr-19,51300867788,-875.00,THE HILLINGS LIMITED,CARE ESTABLISHMENT,OP - Hunts Locality,Hunts O P  Team,Residential Care
Cambridgeshire County Council,25-Apr-19,51300867772,-875.00,THE HILLINGS LIMITED,CARE ESTABLISHMENT,OP - Hunts Locality,Hunts O P  Team,Residential Care
Cambridgeshire County Council,25-Apr-19,51300867776,-875.00,THE HILLINGS LIMITED,CARE ESTABLISHMENT,OP - Hunts Locality,Hunts O P  Team,Residential Care
Cambridgeshire County Council,25-Apr-19,51300867782,-875.00,THE HILLINGS LIMITED,CARE ESTABLISHMENT,OP - Hunts Locality,Hunts O P  Team,Residential Care
Cambridgeshire County Council,25-Apr-19,51300841924,-866.25,Accomplish Group Support Limited,CARE ESTABLISHMENT,AMH - Hunts & Fens,Hunts Mental Health Team,Residential Care
Cambridgeshire County Council,25-Apr-19,51300841932,-866.25,Accomplish Group Support Limited,CARE ESTABLISHMENT,AMH - Hunts & Fens,Hunts Mental Health Team,Residential Care
Cambridgeshire County Council,25-Apr-19,51300841907,-866.25,Accomplish Group Support Limited,CARE ESTABLISHMENT,AMH - Hunts & Fens,Hunts Mental Health Team,Residential Care
Cambridgeshire County Council,25-Apr-19,51300841930,-866.25,Accomplish Group Support Limited,CARE ESTABLISHMENT,AMH - Hunts & Fens,Hunts Mental Health Team,Residential Care
Cambridgeshire County Council,25-Apr-19,51300841928,-866.25,Accomplish Group Support Limited,CARE ESTABLISHMENT,AMH - Hunts & Fens,Hunts Mental Health Team,Residential Care
Cambridgeshire County Council,25-Apr-19,51300841910,-866.25,Accomplish Group Support Limited,CARE ESTABLISHMENT,AMH - Hunts & Fens,Hunts Mental Health Team,Residential Care
Cambridgeshire County Council,25-Apr-19,51300841927,-866.25,Accomplish Group Support Limited,CARE ESTABLISHMENT,AMH - Hunts & Fens,Hunts Mental Health Team,Residential Care
Cambridgeshire County Council,25-Apr-19,51300841912,-866.25,Accomplish Group Support Limited,CARE ESTABLISHMENT,AMH - Hunts & Fens,Hunts Mental Health Team,Residential Care
Cambridgeshire County Council,25-Apr-19,51300827695,-857.00,WATERBEACH LODGE (SCIMITAR),CARE ESTABLISHMENT,OP - City & South Locality,Older People - City & South,Residential Care
Cambridgeshire County Council,25-Apr-19,51300827696,-857.00,WATERBEACH LODGE (SCIMITAR),CARE ESTABLISHMENT,OP - City & South Locality,Older People - City & South,Residential Care
Cambridgeshire County Council,25-Apr-19,51300866985,-856.80,MEADOWS HOMECARE SERVICES,CARE ESTABLISHMENT,Physical Disablity,Countywide PD Service - Care,Domiciliary Care
Cambridgeshire County Council,25-Apr-19,51300866984,-856.80,MEADOWS HOMECARE SERVICES,CARE ESTABLISHMENT,Physical Disablity,Countywide PD Service - Care,Domiciliary Care
Cambridgeshire County Council,25-Apr-19,51300817165,-855.00,SYMONDS HOUSE NURSING HOME,CARE ESTABLISHMENT,OP - City & South Locality,Older People - City & South,Nursing Care
Cambridgeshire County Council,25-Apr-19,51300841036,-855.00,SYMONDS HOUSE NURSING HOME,CARE ESTABLISHMENT,OP - City & South Locality,Older People - City & South,Nursing Care
Cambridgeshire County Council,25-Apr-19,51300864600,-855.00,SYMONDS HOUSE NURSING HOME,CARE ESTABLISHMENT,OP - City & South Locality,Older People - City & South,Nursing Care
Cambridgeshire County Council,25-Apr-19,51300864598,-855.00,SYMONDS HOUSE NURSING HOME,CARE ESTABLISHMENT,OP - City & South Locality,Older People - City & South,Nursing Care
Cambridgeshire County Council,25-Apr-19,51300864599,-855.00,SYMONDS HOUSE NURSING HOME,CARE ESTABLISHMENT,OP - City & South Locality,Older People - City & South,Nursing Care
Cambridgeshire County Council,25-Apr-19,51300841037,-855.00,SYMONDS HOUSE NURSING HOME,CARE ESTABLISHMENT,OP - City & South Locality,Older People - City & South,Nursing Care
Cambridgeshire County Council,25-Apr-19,51300864596,-855.00,SYMONDS HOUSE NURSING HOME,CARE ESTABLISHMENT,OP - City & South Locality,Older People - City & South,Nursing Care
Cambridgeshire County Council,25-Apr-19,51300864601,-855.00,SYMONDS HOUSE NURSING HOME,CARE ESTABLISHMENT,OP - City & South Locality,Older People - City & South,Nursing Care
Cambridgeshire County Council,25-Apr-19,51300817163,-855.00,SYMONDS HOUSE NURSING HOME,CARE ESTABLISHMENT,OP - City & South Locality,Older People - City & South,Nursing Care
Cambridgeshire County Council,25-Apr-19,51300864597,-855.00,SYMONDS HOUSE NURSING HOME,CARE ESTABLISHMENT,OP - City & South Locality,Older People - City & South,Nursing Care
Cambridgeshire County Council,05-Apr-19,51300810609,-854.10,TARMAC TRADING LIMITED,COMPANY,GCP - Cambridge South East (A1307),GCP - Cambridge South East (A1307),Construction - External Professional Fees
Cambridgeshire County Council,05-Apr-19,51300820895,-850.00,ST GEORGE'S COURT,CARE ESTABLISHMENT,OP - East Cambs Locality,East Cambs - O P Team,Residential Care
Cambridgeshire County Council,05-Apr-19,51300820896,-850.00,ST GEORGE'S COURT,CARE ESTABLISHMENT,OP - East Cambs Locality,East Cambs - O P Team,Residential Care
Cambridgeshire County Council,25-Apr-19,51300834548,-850.00,HOME CLOSE LTD,CARE ESTABLISHMENT,OP - City & South Locality,Older People - City & South,Nursing Care
Cambridgeshire County Council,25-Apr-19,51300834557,-850.00,HOME CLOSE LTD,CARE ESTABLISHMENT,OP - City & South Locality,Older People - City & South,Nursing Care
Cambridgeshire County Council,25-Apr-19,51300817431,-850.00,ARIA COURT,CARE ESTABLISHMENT,OP - Fenland Locality,Older People - Fenland,Residential Care
Cambridgeshire County Council,25-Apr-19,51300817434,-850.00,ARIA COURT,CARE ESTABLISHMENT,OP - Fenland Locality,Older People - Fenland,Residential Care
Cambridgeshire County Council,25-Apr-19,51300826490,-850.00,ORCHARD HOUSE (SAWSTON),CARE ESTABLISHMENT,OP - City & South Locality,Older People - City & South,Residential Care
Cambridgeshire County Council,25-Apr-19,51300826480,-850.00,ORCHARD HOUSE (SAWSTON),CARE ESTABLISHMENT,OP - City & South Locality,Older People - City & South,Residential Care
Cambridgeshire County Council,25-Apr-19,51300840065,-850.00,WATERBEACH LODGE (SCIMITAR),CARE ESTABLISHMENT,OP - City & South Locality,Older People - City & South,Residential Care
Cambridgeshire County Council,25-Apr-19,51300840066,-850.00,WATERBEACH LODGE (SCIMITAR),CARE ESTABLISHMENT,OP - City & South Locality,Older People - City & South,Residential Care
Cambridgeshire County Council,25-Apr-19,51300838747,-850.00,THE MARBROOK CENTRE,CARE ESTABLISHMENT,OPMH - Hunts & Fens,Older People Mental Health Hunts,Nursing Care
Cambridgeshire County Council,25-Apr-19,51300838745,-850.00,THE MARBROOK CENTRE,CARE ESTABLISHMENT,OPMH - Hunts & Fens,Older People Mental Health Hunts,Nursing Care
Cambridgeshire County Council,25-Apr-19,51300813180,-841.84,ASKHAM VILLAGE COMMUNITY LTD,CARE ESTABLISHMENT,OP - Fenland Locality,Older People - Fenland,Nursing Care
Cambridgeshire County Council,25-Apr-19,51300813181,-841.84,ASKHAM VILLAGE COMMUNITY LTD,CARE ESTABLISHMENT,OP - Fenland Locality,Older People - Fenland,Nursing Care
Cambridgeshire County Council,25-Apr-19,51300854477,-841.84,ASKHAM VILLAGE COMMUNITY LTD,CARE ESTABLISHMENT,OPMH - Under 65,Older People Mental Health - Under 65's,Nursing Care
Cambridgeshire County Council,25-Apr-19,51300854480,-841.84,ASKHAM VILLAGE COMMUNITY LTD,CARE ESTABLISHMENT,OPMH - Under 65,Older People Mental Health - Under 65's,Nursing Care
Cambridgeshire County Council,25-Apr-19,51300854479,-841.84,ASKHAM VILLAGE COMMUNITY LTD,CARE ESTABLISHMENT,OPMH - Under 65,Older People Mental Health - Under 65's,Nursing Care
Cambridgeshire County Council,25-Apr-19,51300854482,-841.84,ASKHAM VILLAGE COMMUNITY LTD,CARE ESTABLISHMENT,OPMH - Under 65,Older People Mental Health - Under 65's,Nursing Care
Cambridgeshire County Council,25-Apr-19,51300854478,-841.84,ASKHAM VILLAGE COMMUNITY LTD,CARE ESTABLISHMENT,OPMH - Under 65,Older People Mental Health - Under 65's,Nursing Care
Cambridgeshire County Council,25-Apr-19,51300854481,-841.84,ASKHAM VILLAGE COMMUNITY LTD,CARE ESTABLISHMENT,OPMH - Under 65,Older People Mental Health - Under 65's,Nursing Care
Cambridgeshire County Council,25-Apr-19,51300848252,-840.00,HARDWICK DENE,CARE ESTABLISHMENT,OPMH - Hunts & Fens,Older People Mental Health Hunts,Residential Care
Cambridgeshire County Council,25-Apr-19,51300848251,-840.00,HARDWICK DENE,CARE ESTABLISHMENT,OPMH - Hunts & Fens,Older People Mental Health Hunts,Residential Care
Cambridgeshire County Council,18-Apr-19,51300857343,-830.42,MENCAP (COWLEY ROAD),CARE ESTABLISHMENT,LD - City Locality,LD - City - Care,Supported Living
Cambridgeshire County Council,18-Apr-19,51300857336,-830.42,MENCAP (COWLEY ROAD),CARE ESTABLISHMENT,LD - City Locality,LD - City - Care,Supported Living
Cambridgeshire County Council,18-Apr-19,51300857338,-830.42,MENCAP (COWLEY ROAD),CARE ESTABLISHMENT,LD - City Locality,LD - City - Care,Supported Living
Cambridgeshire County Council,18-Apr-19,51300857342,-830.42,MENCAP (COWLEY ROAD),CARE ESTABLISHMENT,LD - City Locality,LD - City - Care,Supported Living
Cambridgeshire County Council,25-Apr-19,51300840178,-829.50,Accomplish Group Support Limited,CARE ESTABLISHMENT,LD - Hunts Locality,LD - Huntigndonshire  - Special Needs,Residential Care
Cambridgeshire County Council,25-Apr-19,51300840141,-829.50,Accomplish Group Support Limited,CARE ESTABLISHMENT,LD - Hunts Locality,LD - Huntigndonshire  - Special Needs,Residential Care
Cambridgeshire County Council,25-Apr-19,51300813865,-823.00,WINSTON HOUSE(2CARE),CARE ESTABLISHMENT,AMH - Specialist & Primary,Mental Health - Specialist & Primary,Residential Care
Cambridgeshire County Council,25-Apr-19,51300813864,-823.00,WINSTON HOUSE(2CARE),CARE ESTABLISHMENT,AMH - Specialist & Primary,Mental Health - Specialist & Primary,Residential Care
Cambridgeshire County Council,11-Apr-19,51300833448,-821.03,CARETECH COMMUNITY SERVICES,CARE ESTABLISHMENT,LD - South Locality,LD - South Cambs - Care,Residential Care
Cambridgeshire County Council,05-Apr-19,51300830401,-820.00,A CLASS CARE LTD,CARE ESTABLISHMENT,OP - City & South Locality,Older People - City & South,Domiciliary Care
Cambridgeshire County Council,05-Apr-19,51300830384,-820.00,A CLASS CARE LTD,CARE ESTABLISHMENT,OP - City & South Locality,Older People - City & South,Domiciliary Care
Cambridgeshire County Council,23-Apr-19,51300501945,-818.90,NORTHGATE PUBLIC SERVICES (UK) LTD,TRADE SUPPLIER,Operations - Norwich,3rd Party Contracts,Computer hardware - maintenance
Cambridgeshire County Council,25-Apr-19,51300826592,-812.40,OAKLANDS CARE HOME,CARE ESTABLISHMENT,Physical Disablity,Countywide PD Service - Care,Nursing Care
Cambridgeshire County Council,25-Apr-19,51300826593,-812.40,OAKLANDS CARE HOME,CARE ESTABLISHMENT,Physical Disablity,Countywide PD Service - Care,Nursing Care
Cambridgeshire County Council,25-Apr-19,51300835908,-807.88,CARE UK LIMITED,CARE ESTABLISHMENT,OPMH - City & South,Older People Mental Health City & South,Nursing Care
Cambridgeshire County Council,25-Apr-19,51300835907,-807.88,CARE UK LIMITED,CARE ESTABLISHMENT,OPMH - City & South,Older People Mental Health City & South,Nursing Care
Cambridgeshire County Council,25-Apr-19,51300860640,-807.48,AA GLOBAL LANGUAGE SERVICE LTD,TRADE SUPPLIER,Safeguarding Hunts and Fenland,C&F Safeguarding H&F - Interpreters,Professional Fees and Hired Services
Cambridgeshire County Council,25-Apr-19,51300833652,-807.00,METHODIST HOMES FOR THE AGED (MHA),CARE ESTABLISHMENT,OP - City & South Locality,Older People - City & South,Residential Care
Cambridgeshire County Council,25-Apr-19,51300833651,-807.00,METHODIST HOMES FOR THE AGED (MHA),CARE ESTABLISHMENT,OP - City & South Locality,Older People - City & South,Residential Care
Cambridgeshire County Council,05-Apr-19,51300840861,-806.00,ST GEORGE'S COURT,CARE ESTABLISHMENT,OP - City & South Locality,Older People - City & South,Nursing Care
Cambridgeshire County Council,05-Apr-19,51300840901,-806.00,ST GEORGE'S COURT,CARE ESTABLISHMENT,OP - City & South Locality,Older People - City & South,Nursing Care
Cambridgeshire County Council,25-Apr-19,51300835549,-805.03,THE CAMBRIDGE NURSING CENTRE,CARE ESTABLISHMENT,OPMH - City & South,Older People Mental Health City & South,Nursing Care
Cambridgeshire County Council,25-Apr-19,51300832000,-804.00,ASKHAM PLACE PD,CARE ESTABLISHMENT,Physical Disablity,Countywide PD Service - Care,Residential Care
Cambridgeshire County Council,25-Apr-19,51300832013,-804.00,ASKHAM PLACE PD,CARE ESTABLISHMENT,Physical Disablity,Countywide PD Service - Care,Residential Care
Cambridgeshire County Council,25-Apr-19,51300823931,-803.15,OAKLANDS CARE HOME,CARE ESTABLISHMENT,OPMH - City & South,Older People Mental Health City & South,Nursing Care
Cambridgeshire County Council,25-Apr-19,51300823919,-803.15,OAKLANDS CARE HOME,CARE ESTABLISHMENT,OPMH - City & South,Older People Mental Health City & South,Nursing Care
Cambridgeshire County Council,18-Apr-19,51300865610,-802.00,MIDAS CARE LTD,CARE ESTABLISHMENT,OP - City & South Locality,Older People - City & South,Domiciliary Care
Cambridgeshire County Council,18-Apr-19,51300865607,-802.00,MIDAS CARE LTD,CARE ESTABLISHMENT,OP - City & South Locality,Older People - City & South,Domiciliary Care
Cambridgeshire County Council,18-Apr-19,51300865598,-802.00,MIDAS CARE LTD,CARE ESTABLISHMENT,OP - City & South Locality,Older People - City & South,Domiciliary Care
Cambridgeshire County Council,18-Apr-19,51300865609,-802.00,MIDAS CARE LTD,CARE ESTABLISHMENT,OP - City & South Locality,Older People - City & South,Domiciliary Care
Cambridgeshire County Council,25-Apr-19,51300872246,-802.00,BETTER HEALTHCARE SERVICES LTD,CARE ESTABLISHMENT,OP - East Cambs Locality,East Cambs - O P Team,Domiciliary Care
Cambridgeshire County Council,11-Apr-19,51300860219,-800.00,MK WORLDWIDE LTD (T/A LEAD CARE),CARE ESTABLISHMENT,OP - Fenland Locality,Older People - Fenland,Domiciliary Care
Cambridgeshire County Council,11-Apr-19,51300860220,-800.00,MK WORLDWIDE LTD (T/A LEAD CARE),CARE ESTABLISHMENT,OP - Fenland Locality,Older People - Fenland,Domiciliary Care
Cambridgeshire County Council,25-Apr-19,51300882723,-800.00,ETHELDRED HOUSE,CARE ESTABLISHMENT,OP - City & South Locality,Older People - City & South,Residential Care
Cambridgeshire County Council,25-Apr-19,51300882757,-800.00,ETHELDRED HOUSE,CARE ESTABLISHMENT,OP - City & South Locality,Older People - City & South,Residential Care
Cambridgeshire County Council,25-Apr-19,51300882736,-800.00,ETHELDRED HOUSE,CARE ESTABLISHMENT,OP - City & South Locality,Older People - City & South,Residential Care
Cambridgeshire County Council,25-Apr-19,51300825417,-800.00,GLENNFIELD CARE CENTRE (OP),CARE ESTABLISHMENT,OP - Fenland Locality,Older People - Fenland,Nursing Care
Cambridgeshire County Council,25-Apr-19,51300825416,-800.00,GLENNFIELD CARE CENTRE (OP),CARE ESTABLISHMENT,OP - Fenland Locality,Older People - Fenland,Nursing Care
Cambridgeshire County Council,25-Apr-19,51300869276,-800.00,ORCHARD HOUSE NURSING HOME,CARE ESTABLISHMENT,OP - Fenland Locality,Older People - Fenland,Nursing Care
Cambridgeshire County Council,25-Apr-19,51300869276,-800.00,ORCHARD HOUSE NURSING HOME,CARE ESTABLISHMENT,OP - Fenland Locality,Older People - Fenland,Nursing Care
Cambridgeshire County Council,25-Apr-19,51300869276,-800.00,ORCHARD HOUSE NURSING HOME,CARE ESTABLISHMENT,OP - Fenland Locality,Older People - Fenland,Nursing Care
Cambridgeshire County Council,25-Apr-19,51300869276,-800.00,ORCHARD HOUSE NURSING HOME,CARE ESTABLISHMENT,OP - Fenland Locality,Older People - Fenland,Nursing Care
Cambridgeshire County Council,25-Apr-19,51300869276,-800.00,ORCHARD HOUSE NURSING HOME,CARE ESTABLISHMENT,OP - Fenland Locality,Older People - Fenland,Nursing Care
Cambridgeshire County Council,05-Apr-19,51300846934,-795.26,THE EDMUND TRUST,CARE ESTABLISHMENT,LD - City Locality,LD - City - Care,Supported Living
Cambridgeshire County Council,05-Apr-19,51300846937,-795.26,THE EDMUND TRUST,CARE ESTABLISHMENT,LD - City Locality,LD - City - Care,Supported Living
Cambridgeshire County Council,05-Apr-19,51300846932,-795.26,THE EDMUND TRUST,CARE ESTABLISHMENT,LD - South Locality,LD - South Cambs - Care,Supported Living
Cambridgeshire County Council,11-Apr-19,51300855827,-795.26,THE EDMUND TRUST,CARE ESTABLISHMENT,LD - City Locality,LD - City - Care,Supported Living
Cambridgeshire County Council,11-Apr-19,51300855834,-795.26,THE EDMUND TRUST,CARE ESTABLISHMENT,LD - City Locality,LD - City - Care,Supported Living
Cambridgeshire County Council,11-Apr-19,51300855828,-795.26,THE EDMUND TRUST,CARE ESTABLISHMENT,LD - South Locality,LD - South Cambs - Care,Supported Living
Cambridgeshire County Council,18-Apr-19,51300865579,-795.26,THE EDMUND TRUST,CARE ESTABLISHMENT,LD - South Locality,LD - South Cambs - Care,Supported Living
Cambridgeshire County Council,18-Apr-19,51300865577,-795.26,THE EDMUND TRUST,CARE ESTABLISHMENT,LD - City Locality,LD - City - Care,Supported Living
Cambridgeshire County Council,18-Apr-19,51300865572,-795.26,THE EDMUND TRUST,CARE ESTABLISHMENT,LD - South Locality,LD - South Cambs - Care,Supported Living
Cambridgeshire County Council,25-Apr-19,51300877579,-795.26,THE EDMUND TRUST,CARE ESTABLISHMENT,LD - South Locality,LD - South Cambs - Care,Supported Living
Cambridgeshire County Council,25-Apr-19,51300877574,-795.26,THE EDMUND TRUST,CARE ESTABLISHMENT,LD - South Locality,LD - South Cambs - Care,Supported Living
Cambridgeshire County Council,25-Apr-19,51300877594,-795.26,THE EDMUND TRUST,CARE ESTABLISHMENT,LD - South Locality,LD - South Cambs - Care,Supported Living
Cambridgeshire County Council,25-Apr-19,51300817088,-794.95,CROMWELL HOUSE HEALTH CARE,CARE ESTABLISHMENT,OP - Hunts Locality,Hunts O P  Team,Nursing Care
Cambridgeshire County Council,25-Apr-19,51300817087,-794.95,CROMWELL HOUSE HEALTH CARE,CARE ESTABLISHMENT,OP - Hunts Locality,Hunts O P  Team,Nursing Care
Cambridgeshire County Council,25-Apr-19,51300819794,-793.75,ASKHAM PLACE PD,CARE ESTABLISHMENT,Physical Disablity,Countywide PD Service - Care,Nursing Care
Cambridgeshire County Council,25-Apr-19,51300819793,-793.75,ASKHAM PLACE PD,CARE ESTABLISHMENT,Physical Disablity,Countywide PD Service - Care,Nursing Care
Cambridgeshire County Council,11-Apr-19,51300815130,-793.11,KINGFISHER HOUSE,CARE ESTABLISHMENT,OP - East Cambs Locality,East Cambs - O P Team,Nursing Care
Cambridgeshire County Council,11-Apr-19,51300815127,-793.11,KINGFISHER HOUSE,CARE ESTABLISHMENT,OP - East Cambs Locality,East Cambs - O P Team,Nursing Care
Cambridgeshire County Council,25-Apr-19,51300836257,-792.00,GLENNFIELD CARE CENTRE (OP),CARE ESTABLISHMENT,Physical Disablity,Countywide PD Service - Care,Nursing Care
Cambridgeshire County Council,25-Apr-19,51300836256,-792.00,GLENNFIELD CARE CENTRE (OP),CARE ESTABLISHMENT,Physical Disablity,Countywide PD Service - Care,Nursing Care
Cambridgeshire County Council,25-Apr-19,51300866001,-791.84,GLENNFIELD CARE CENTRE (OP),CARE ESTABLISHMENT,OPMH - Under 65,Older People Mental Health - Under 65's,Nursing Care
Cambridgeshire County Council,25-Apr-19,51300869820,-791.84,GLENNFIELD CARE CENTRE (OP),CARE ESTABLISHMENT,AMH - Specialist & Primary,Mental Health - Specialist & Primary,Nursing Care
Cambridgeshire County Council,25-Apr-19,51300869820,-791.84,GLENNFIELD CARE CENTRE (OP),CARE ESTABLISHMENT,AMH - Specialist & Primary,Mental Health - Specialist & Primary,Nursing Care
Cambridgeshire County Council,25-Apr-19,51300869820,-791.84,GLENNFIELD CARE CENTRE (OP),CARE ESTABLISHMENT,AMH - Specialist & Primary,Mental Health - Specialist & Primary,Nursing Care
Cambridgeshire County Council,25-Apr-19,51300869820,-791.84,GLENNFIELD CARE CENTRE (OP),CARE ESTABLISHMENT,AMH - Specialist & Primary,Mental Health - Specialist & Primary,Nursing Care
Cambridgeshire County Council,25-Apr-19,51300869820,-791.84,GLENNFIELD CARE CENTRE (OP),CARE ESTABLISHMENT,AMH - Specialist & Primary,Mental Health - Specialist & Primary,Nursing Care
Cambridgeshire County Council,25-Apr-19,51300869820,-791.84,GLENNFIELD CARE CENTRE (OP),CARE ESTABLISHMENT,AMH - Specialist & Primary,Mental Health - Specialist & Primary,Nursing Care
Cambridgeshire County Council,25-Apr-19,51300869820,-791.84,GLENNFIELD CARE CENTRE (OP),CARE ESTABLISHMENT,AMH - Specialist & Primary,Mental Health - Specialist & Primary,Nursing Care
Cambridgeshire County Council,25-Apr-19,51300869820,-791.84,GLENNFIELD CARE CENTRE (OP),CARE ESTABLISHMENT,AMH - Specialist & Primary,Mental Health - Specialist & Primary,Nursing Care
Cambridgeshire County Council,25-Apr-19,51300869820,-791.84,GLENNFIELD CARE CENTRE (OP),CARE ESTABLISHMENT,AMH - Specialist & Primary,Mental Health - Specialist & Primary,Nursing Care
Cambridgeshire County Council,25-Apr-19,51300869820,-791.84,GLENNFIELD CARE CENTRE (OP),CARE ESTABLISHMENT,AMH - Specialist & Primary,Mental Health - Specialist & Primary,Nursing Care
Cambridgeshire County Council,25-Apr-19,51300869820,-791.84,GLENNFIELD CARE CENTRE (OP),CARE ESTABLISHMENT,AMH - Specialist & Primary,Mental Health - Specialist & Primary,Nursing Care
Cambridgeshire County Council,25-Apr-19,51300869820,-791.84,GLENNFIELD CARE CENTRE (OP),CARE ESTABLISHMENT,AMH - Specialist & Primary,Mental Health - Specialist & Primary,Nursing Care
Cambridgeshire County Council,25-Apr-19,51300869820,-791.84,GLENNFIELD CARE CENTRE (OP),CARE ESTABLISHMENT,AMH - Specialist & Primary,Mental Health - Specialist & Primary,Nursing Care
Cambridgeshire County Council,25-Apr-19,51300869820,-791.84,GLENNFIELD CARE CENTRE (OP),CARE ESTABLISHMENT,AMH - Specialist & Primary,Mental Health - Specialist & Primary,Nursing Care
Cambridgeshire County Council,25-Apr-19,51300869820,-791.84,GLENNFIELD CARE CENTRE (OP),CARE ESTABLISHMENT,AMH - Specialist & Primary,Mental Health - Specialist & Primary,Nursing Care
Cambridgeshire County Council,25-Apr-19,51300869820,-791.84,GLENNFIELD CARE CENTRE (OP),CARE ESTABLISHMENT,AMH - Specialist & Primary,Mental Health - Specialist & Primary,Nursing Care
Cambridgeshire County Council,25-Apr-19,51300869820,-791.84,GLENNFIELD CARE CENTRE (OP),CARE ESTABLISHMENT,AMH - Specialist & Primary,Mental Health - Specialist & Primary,Nursing Care
Cambridgeshire County Council,25-Apr-19,51300869820,-791.84,GLENNFIELD CARE CENTRE (OP),CARE ESTABLISHMENT,AMH - Specialist & Primary,Mental Health - Specialist & Primary,Nursing Care
Cambridgeshire County Council,25-Apr-19,51300865999,-791.84,GLENNFIELD CARE CENTRE (OP),CARE ESTABLISHMENT,OPMH - Under 65,Older People Mental Health - Under 65's,Nursing Care
Cambridgeshire County Council,25-Apr-19,51300866003,-791.84,GLENNFIELD CARE CENTRE (OP),CARE ESTABLISHMENT,OPMH - Under 65,Older People Mental Health - Under 65's,Nursing Care
Cambridgeshire County Council,25-Apr-19,51300866000,-791.84,GLENNFIELD CARE CENTRE (OP),CARE ESTABLISHMENT,OPMH - Under 65,Older People Mental Health - Under 65's,Nursing Care
Cambridgeshire County Council,25-Apr-19,51300866002,-791.84,GLENNFIELD CARE CENTRE (OP),CARE ESTABLISHMENT,OPMH - Under 65,Older People Mental Health - Under 65's,Nursing Care
Cambridgeshire County Council,25-Apr-19,51300866004,-791.84,GLENNFIELD CARE CENTRE (OP),CARE ESTABLISHMENT,OPMH - Under 65,Older People Mental Health - Under 65's,Nursing Care
Cambridgeshire County Council,25-Apr-19,51300813732,-791.84,ASKHAM PLACE PD,CARE ESTABLISHMENT,OP - Fenland Locality,Older People - Fenland,Nursing Care
Cambridgeshire County Council,25-Apr-19,51300813735,-791.84,ASKHAM PLACE PD,CARE ESTABLISHMENT,OP - Fenland Locality,Older People - Fenland,Nursing Care
Cambridgeshire County Council,25-Apr-19,51300827513,-791.84,CROMWELL HOUSE HEALTH CARE,CARE ESTABLISHMENT,OP - Hunts Locality,Hunts O P  Team,Nursing Care
Cambridgeshire County Council,25-Apr-19,51300821704,-791.84,CROMWELL HOUSE HEALTH CARE,CARE ESTABLISHMENT,OP - Hunts Locality,Hunts O P  Team,Nursing Care
Cambridgeshire County Council,25-Apr-19,51300827514,-791.84,CROMWELL HOUSE HEALTH CARE,CARE ESTABLISHMENT,OP - Hunts Locality,Hunts O P  Team,Nursing Care
Cambridgeshire County Council,25-Apr-19,51300821705,-791.84,CROMWELL HOUSE HEALTH CARE,CARE ESTABLISHMENT,OP - Hunts Locality,Hunts O P  Team,Nursing Care
Cambridgeshire County Council,25-Apr-19,51300814965,-791.84,ASKHAM VILLAGE COMMUNITY LTD,CARE ESTABLISHMENT,Physical Disablity,Countywide PD Service - Care,Nursing Care
Cambridgeshire County Council,25-Apr-19,51300814966,-791.84,ASKHAM VILLAGE COMMUNITY LTD,CARE ESTABLISHMENT,Physical Disablity,Countywide PD Service - Care,Nursing Care
Cambridgeshire County Council,25-Apr-19,51300830284,-791.84,ASKHAM VILLAGE COMMUNITY LTD,CARE ESTABLISHMENT,OP - Fenland Locality,Older People - Fenland,Nursing Care
Cambridgeshire County Council,25-Apr-19,51300830285,-791.84,ASKHAM VILLAGE COMMUNITY LTD,CARE ESTABLISHMENT,OP - Fenland Locality,Older People - Fenland,Nursing Care
Cambridgeshire County Council,25-Apr-19,51300878518,-791.54,ASKHAM HALL,CARE ESTABLISHMENT,OP - Fenland Locality,Older People - Fenland,Nursing Care
Cambridgeshire County Council,25-Apr-19,51300847121,-791.54,ASKHAM HALL,CARE ESTABLISHMENT,OP - Fenland Locality,Older People - Fenland,Nursing Care
Cambridgeshire County Council,25-Apr-19,51300865655,-791.54,ASKHAM HALL,CARE ESTABLISHMENT,OP - City & South Locality,Older People - City & South,Nursing Care
Cambridgeshire County Council,25-Apr-19,51300855970,-791.54,ASKHAM HALL,CARE ESTABLISHMENT,OP - City & South Locality,Older People - City & South,Nursing Care
Cambridgeshire County Council,25-Apr-19,51300822091,-787.50,THE MARBROOK CENTRE,CARE ESTABLISHMENT,OPMH - Hunts & Fens,Older People Mental Health Hunts,Nursing Care
